{"text_format":"1","workbook":"xlsx","n_sheets":12,"sheets":["přihlášky","Začátečníci L","Začátečníci M","Začátečníci S","Pokročilí L","Pokročilí M","Pokročilí S","Veteráni L","Veteráni M","Veteráni S","List3","List1"],"not_rendered":{"charts":0,"images":0,"macros":1,"external_links":0,"defined_names":11,"comments":0,"pivot_tables":0},"unopened":[],"bounds":{"document_bytes":16777216,"sheet_cells":100000,"rows_first":2000,"rows_last":500,"rows_between":2000,"halvings":0,"cell_chars":16384,"cell_head_chars":4096},"cells_cut":0,"cells_raw":0,"read":"whole","date_system":"1900"}

{"sheet":"přihlášky","index":0,"n_rows":63,"n_cols":8,"rows_kept":63,"cut":false,"hidden":false,"merged":[]}
["Přihlášky"]
["Jméno","Pes","Kategorie","Velikost","Sloupec1"]
["Helena Vocetkova","Matýsek","Veteráni","S","Veteráni S","Kopírovat data do příslušného listu podle kategorie a velikosti"]
["Lucie Trojanová","Dasty","Začátečníci","M","Začátečníci M"]
["Pavla Eliášová","Enrico z Tržiště","Začátečníci","L","Začátečníci L"]
["Plačková Zuzana","Caira","Začátečníci","L","Začátečníci L"]
["Lucie Bohuslavová","Ashly Brixa's Family","Začátečníci","L","Začátečníci L"]
["Alice Franková","Denny","Veteráni","S","Veteráni S"]
["Pavla Eliášová","Andy z Bílé cesty","Veteráni","S","Veteráni S"]
["Antonín Motyčka","Daffy z Lantiková","Pokročilí","L","Pokročilí L"]
["Karolína Korejzova","Conni","Začátečníci","L","Začátečníci L"]
["Markéta Dvořáková","Gigi","Začátečníci","L","Začátečníci L"]
["Diana Vyskočilová","Trim","Pokročilí","S","Pokročilí S"]
["Antonín Motyčka","Audi Quattro From Their Hearts","Začátečníci","L","Začátečníci L"]
["Evelína Dobešová","Alegría","Začátečníci","L","Začátečníci L"]
["Jana Šaková","Charlie Sheen","Začátečníci","S","Začátečníci S"]
["Romana Krunclová","Babeta (Babu)","Pokročilí","S","Pokročilí S"]
["Denisa Pšeničková","Mína","Začátečníci","L","Začátečníci L"]
["Zuzana Lochmanová","Ennie","Pokročilí","L","Pokročilí L"]
["Petra Kořánová","Kevin","Začátečníci","S","Začátečníci S"]
["Nikol Hořejší","Atilla","Začátečníci","M","Začátečníci M"]
["Olga Cermáková","Larry","Pokročilí","L","Pokročilí L"]
["Alena Köhlerová","Yassi Venus z Kovárny","Veteráni","L","Veteráni L"]
["Diana Vyskočilová","Rozinka","Začátečníci","S","Začátečníci S"]
["Radka Klosová","Jasper","Pokročilí","S","Pokročilí S"]
["Alice Mládková","Sccoty","Pokročilí","L","Pokročilí L"]
["Alena Köhlerová","AM I LISCHKA Yassalen","Pokročilí","L","Pokročilí L"]
["Tereza Hospodářská","Olinka","Pokročilí","S","Pokročilí S"]
["Mirka Perglová","Teddy","Začátečníci","L","Začátečníci L"]
["Radka Klosová","Merlin","Začátečníci","S","Začátečníci S"]
["Jitka Fišerová","Arashid Foxy Fox (Raš)","Začátečníci","L","Začátečníci L"]
["Anabela Vaňková","Nexi","Pokročilí","L","Pokročilí L"]
["Renata Vondráčková","Fido","Veteráni","S","Veteráni S"]
["Jana Křížová","Alú","Začátečníci","L","Začátečníci L"]
["Miloslava Moravcová","Lili","Začátečníci","S","Začátečníci S"]
["Šárka Krčálová","Kejsy","Začátečníci","S","Začátečníci S"]
["Markéta Hanzlíková","Ashly","Začátečníci","S","Začátečníci S"]
["Michaela Štroblová","Carrie","Začátečníci","S","Začátečníci S"]
["Klára Velíková","Fíbí","Začátečníci","S","Začátečníci S"]
["Diana Vyskočilová","Kira","Pokročilí","S","Pokročilí S"]
["Hana Lukášová","Cornelia Černý Křišťál","Pokročilí","S","Pokročilí S"]
["Lucie Linhartová","Hoor Nazira Manwe","Pokročilí","L","Pokročilí L"]
["Klára Velíková","Woody","Pokročilí","M","Pokročilí M"]
["Zuzana Lochmanová","Bailey","Pokročilí","L","Pokročilí L"]
["Hana Lukášová","Baby Maria Magdalensis / Jessie","Veteráni","S","Veteráni S"]
["Tereza Pexová","Max","Začátečníci","M","Začátečníci M"]
["Klára Velíková","Jessie","Veteráni","S","Veteráni S"]
["Zuzana Hloušková","Aura","Začátečníci","S","Začátečníci S"]
["Veronika Zahradníková","Kim","Začátečníci","L","Začátečníci L"]
["Jiří Rožníček","Andy","Začátečníci","L","Začátečníci L"]
["Petra Kořánová","Merlin","Začátečníci","S","Začátečníci S"]
["Červenková Vendula","Jenny","Začátečníci","L","Začátečníci L"]
["Dominik Šanda","Kofí","Začátečníci","M","Začátečníci M"]
["Ilona Pánková","Čiky (fena)","Veteráni","S","Veteráni S"]
[null,null,null,null,null,null,"Začátečníci S",3]
[null,null,null,null,null,null,"Začátečníci M",2]
[null,null,null,null,null,null,"Začátečníci L",1]
[null,null,null,null,null,null,"Pokročilí S",6]
[null,null,null,null,null,null,"Pokročilí M",5]
[null,null,null,null,null,null,"Pokročilí L",4]
[null,null,null,null,null,null,"Veteráni S",9]
[null,null,null,null,null,null,"Veteráni M",8]
[null,null,null,null,null,null,"Veteráni L",7]

{"sheet":"Začátečníci L","index":1,"n_rows":90,"n_cols":15,"rows_kept":90,"cut":false,"hidden":false,"merged":[[0,1,0,5],[0,8,0,14],[49,10,49,11],[50,10,50,11],[51,10,51,11],[1,8,1,9],[1,10,1,11],[44,10,44,11],[45,10,45,11],[46,10,46,11],[47,10,47,11],[48,10,48,11],[39,10,39,11],[40,10,40,11],[41,10,41,11],[42,10,42,11],[43,10,43,11],[34,10,34,11],[35,10,35,11],[36,10,36,11],[37,10,37,11],[38,10,38,11],[29,10,29,11],[30,10,30,11],[31,10,31,11],[32,10,32,11],[33,10,33,11],[24,10,24,11],[25,10,25,11],[26,10,26,11],[27,10,27,11],[28,10,28,11],[19,10,19,11],[20,10,20,11],[21,10,21,11],[22,10,22,11],[23,10,23,11],[47,8,47,9],[48,8,48,9],[49,8,49,9],[50,8,50,9],[32,8,32,9],[33,8,33,9],[34,8,34,9],[35,8,35,9],[36,8,36,9],[46,8,46,9],[37,8,37,9],[38,8,38,9],[39,8,39,9],[40,8,40,9],[41,8,41,9],[4,10,4,11],[5,10,5,11],[6,10,6,11],[7,10,7,11],[8,10,8,11],[27,8,27,9],[28,8,28,9],[29,8,29,9],[30,8,30,9],[17,10,17,11],[18,10,18,11],[9,10,9,11],[10,10,10,11],[11,10,11,11],[12,10,12,11],[13,10,13,11],[26,8,26,9],[14,10,14,11],[15,10,15,11],[16,10,16,11],[17,8,17,9],[18,8,18,9],[19,8,19,9],[20,8,20,9],[21,8,21,9],[1,6,51,6],[4,8,4,9],[5,8,5,9],[6,8,6,9],[7,8,7,9],[8,8,8,9],[9,8,9,9],[10,8,10,9],[11,8,11,9],[12,8,12,9],[13,8,13,9],[14,8,14,9],[15,8,15,9],[16,8,16,9],[51,8,51,9],[42,8,42,9],[43,8,43,9],[44,8,44,9],[45,8,45,9],[31,8,31,9],[22,8,22,9],[23,8,23,9],[24,8,24,9],[25,8,25,9],[58,6,72,6],[76,14,89,15],[57,7,57,14],[57,0,57,5],[59,8,59,9],[60,8,60,9],[61,8,61,9],[62,8,62,9],[63,8,63,9],[64,8,64,9],[65,8,65,9],[66,8,66,9],[67,8,67,9],[62,10,62,11],[68,8,68,9],[69,8,69,9],[70,8,70,9],[71,8,71,9],[74,0,74,11],[58,10,58,11],[68,10,68,11],[69,10,69,11],[70,10,70,11],[71,10,71,11],[72,10,72,11],[63,10,63,11],[64,10,64,11],[65,10,65,11],[66,10,66,11],[67,10,67,11],[58,8,58,9],[59,10,59,11],[60,10,60,11],[61,10,61,11],[72,8,72,9]]}
[null,"Začátečníci L",null,null,null,null,null,null,"Začátečníci L"]
["1. tabulka","Jméno","Pes","Čas","Chyby, odmítnutí","DISK","Zkopírovat tabulku a zkopírovanou seřadit podle DISK, Chyby a odmítnutí, Čas - vše od nejmenšího\n\n   - Potřeba počítat s jiným počtem startujících","2. tabulka","Jméno",null,"Pes",null,"Čas","Chyby, odmítnutí","DISK"]
[null,{"$f":"IF(přihlášky!D:D=\"L\",IF(přihlášky!C:C=\"Začátečníci\",přihlášky!A:A,\" \"),\" \")","v":" "},{"$f":"IF(přihlášky!D:D=\"L\",IF(přihlášky!C:C=\"Začátečníci\",přihlášky!B:B,\" \"),\" \")","v":" "},null,null,null,null,null,null,{"$f":"B3","v":" "},{"$f":"C3","v":" "}]
[null,{"$f":"IF(přihlášky!D:D=\"L\",IF(přihlášky!C:C=\"Začátečníci\",přihlášky!A:A,\" \"),\" \")","v":" "},{"$f":"IF(přihlášky!D:D=\"L\",IF(přihlášky!C:C=\"Začátečníci\",přihlášky!B:B,\" \"),\" \")","v":" "},null,null,null,null,null,null," "," "]
[null,{"$f":"IF(přihlášky!D:D=\"L\",IF(přihlášky!C:C=\"Začátečníci\",přihlášky!A:A,\" \"),\" \")","v":"Pavla Eliášová"},{"$f":"IF(přihlášky!D:D=\"L\",IF(přihlášky!C:C=\"Začátečníci\",přihlášky!B:B,\" \"),\" \")","v":"Enrico z Tržiště"},35.6,1,0,null,null,{"$f":"B5","v":"Pavla Eliášová"},null,"Enrico z Tržiště",null,29.8,1,1]
[null,{"$f":"IF(přihlášky!D:D=\"L\",IF(přihlášky!C:C=\"Začátečníci\",přihlášky!A:A,\" \"),\" \")","v":"Plačková Zuzana"},{"$f":"IF(přihlášky!D:D=\"L\",IF(přihlášky!C:C=\"Začátečníci\",přihlášky!B:B,\" \"),\" \")","v":"Caira"},36.5,1,0,null,null,"Plačková Zuzana",null,"Caira",null,29.7,0,0]
[null,{"$f":"IF(přihlášky!D:D=\"L\",IF(přihlášky!C:C=\"Začátečníci\",přihlášky!A:A,\" \"),\" \")","v":"Lucie Bohuslavová"},{"$f":"IF(přihlášky!D:D=\"L\",IF(přihlášky!C:C=\"Začátečníci\",přihlášky!B:B,\" \"),\" \")","v":"Ashly Brixa's Family"},34.200000000000003,0,0,null,null,"Lucie Bohuslavová",null,"Ashly Brixa's Family",null,30.5,0,0]
[null,{"$f":"IF(přihlášky!D:D=\"L\",IF(přihlášky!C:C=\"Začátečníci\",přihlášky!A:A,\" \"),\" \")","v":" "},{"$f":"IF(přihlášky!D:D=\"L\",IF(přihlášky!C:C=\"Začátečníci\",přihlášky!B:B,\" \"),\" \")","v":" "},null,null,null,null,null," ",null," "]
[null,{"$f":"IF(přihlášky!D:D=\"L\",IF(přihlášky!C:C=\"Začátečníci\",přihlášky!A:A,\" \"),\" \")","v":" "},{"$f":"IF(přihlášky!D:D=\"L\",IF(přihlášky!C:C=\"Začátečníci\",přihlášky!B:B,\" \"),\" \")","v":" "},null,null,null,null,null," ",null," "]
[null,{"$f":"IF(přihlášky!D:D=\"L\",IF(přihlášky!C:C=\"Začátečníci\",přihlášky!A:A,\" \"),\" \")","v":" "},{"$f":"IF(přihlášky!D:D=\"L\",IF(přihlášky!C:C=\"Začátečníci\",přihlášky!B:B,\" \"),\" \")","v":" "},null,null,null,null,null," ",null," "]
[null,{"$f":"IF(přihlášky!D:D=\"L\",IF(přihlášky!C:C=\"Začátečníci\",přihlášky!A:A,\" \"),\" \")","v":"Karolína Korejzova"},{"$f":"IF(přihlášky!D:D=\"L\",IF(přihlášky!C:C=\"Začátečníci\",přihlášky!B:B,\" \"),\" \")","v":"Conni"},33.1,1,1,null,null,"Karolína Korejzova",null,"Conni",null,31.4,2,1]
[null,{"$f":"IF(přihlášky!D:D=\"L\",IF(přihlášky!C:C=\"Začátečníci\",přihlášky!A:A,\" \"),\" \")","v":"Markéta Dvořáková"},{"$f":"IF(přihlášky!D:D=\"L\",IF(přihlášky!C:C=\"Začátečníci\",přihlášky!B:B,\" \"),\" \")","v":"Gigi"},32.4,3,0,null,null,"Markéta Dvořáková",null,"Gigi",null,31.1,3,0]
[null,{"$f":"IF(přihlášky!D:D=\"L\",IF(přihlášky!C:C=\"Začátečníci\",přihlášky!A:A,\" \"),\" \")","v":" "},{"$f":"IF(přihlášky!D:D=\"L\",IF(přihlášky!C:C=\"Začátečníci\",přihlášky!B:B,\" \"),\" \")","v":" "},null,null,null,null,null," ",null," "]
[null,{"$f":"IF(přihlášky!D:D=\"L\",IF(přihlášky!C:C=\"Začátečníci\",přihlášky!A:A,\" \"),\" \")","v":"Antonín Motyčka"},{"$f":"IF(přihlášky!D:D=\"L\",IF(přihlášky!C:C=\"Začátečníci\",přihlášky!B:B,\" \"),\" \")","v":"Audi Quattro From Their Hearts"},36.799999999999997,0,0,null,null,"Antonín Motyčka",null,"Audi Quattro From Their Hearts",null,29.9,2,2]
[null,{"$f":"IF(přihlášky!D:D=\"L\",IF(přihlášky!C:C=\"Začátečníci\",přihlášky!A:A,\" \"),\" \")","v":"Evelína Dobešová"},{"$f":"IF(přihlášky!D:D=\"L\",IF(přihlášky!C:C=\"Začátečníci\",přihlášky!B:B,\" \"),\" \")","v":"Alegría"},34,1,0,null,null,"Evelína Dobešová",null,"Alegría",null,39.799999999999997,4,4]
[null,{"$f":"IF(přihlášky!D:D=\"L\",IF(přihlášky!C:C=\"Začátečníci\",přihlášky!A:A,\" \"),\" \")","v":" "},{"$f":"IF(přihlášky!D:D=\"L\",IF(přihlášky!C:C=\"Začátečníci\",přihlášky!B:B,\" \"),\" \")","v":" "},null,null,null,null,null," ",null," "]
[null,{"$f":"IF(přihlášky!D:D=\"L\",IF(přihlášky!C:C=\"Začátečníci\",přihlášky!A:A,\" \"),\" \")","v":" "},{"$f":"IF(přihlášky!D:D=\"L\",IF(přihlášky!C:C=\"Začátečníci\",přihlášky!B:B,\" \"),\" \")","v":" "},null,null,null,null,null," ",null," "]
[null,{"$f":"IF(přihlášky!D:D=\"L\",IF(přihlášky!C:C=\"Začátečníci\",přihlášky!A:A,\" \"),\" \")","v":"Denisa Pšeničková"},{"$f":"IF(přihlášky!D:D=\"L\",IF(přihlášky!C:C=\"Začátečníci\",přihlášky!B:B,\" \"),\" \")","v":"Mína"},33.5,0,3,null,null,"Denisa Pšeničková",null,"Mína",null,35.4,3,1]
[null,{"$f":"IF(přihlášky!D:D=\"L\",IF(přihlášky!C:C=\"Začátečníci\",přihlášky!A:A,\" \"),\" \")","v":" "},{"$f":"IF(přihlášky!D:D=\"L\",IF(přihlášky!C:C=\"Začátečníci\",přihlášky!B:B,\" \"),\" \")","v":" "},null,null,null,null,null," ",null," "]
[null,{"$f":"IF(přihlášky!D:D=\"L\",IF(přihlášky!C:C=\"Začátečníci\",přihlášky!A:A,\" \"),\" \")","v":" "},{"$f":"IF(přihlášky!D:D=\"L\",IF(přihlášky!C:C=\"Začátečníci\",přihlášky!B:B,\" \"),\" \")","v":" "},null,null,null,null,null," ",null," "]
[null,{"$f":"IF(přihlášky!D:D=\"L\",IF(přihlášky!C:C=\"Začátečníci\",přihlášky!A:A,\" \"),\" \")","v":" "},{"$f":"IF(přihlášky!D:D=\"L\",IF(přihlášky!C:C=\"Začátečníci\",přihlášky!B:B,\" \"),\" \")","v":" "},null,null,null,null,null," ",null," "]
[null,{"$f":"IF(přihlášky!D:D=\"L\",IF(přihlášky!C:C=\"Začátečníci\",přihlášky!A:A,\" \"),\" \")","v":" "},{"$f":"IF(přihlášky!D:D=\"L\",IF(přihlášky!C:C=\"Začátečníci\",přihlášky!B:B,\" \"),\" \")","v":" "},null,null,null,null,null," ",null," "]
[null,{"$f":"IF(přihlášky!D:D=\"L\",IF(přihlášky!C:C=\"Začátečníci\",přihlášky!A:A,\" \"),\" \")","v":" "},{"$f":"IF(přihlášky!D:D=\"L\",IF(přihlášky!C:C=\"Začátečníci\",přihlášky!B:B,\" \"),\" \")","v":" "},null,null,null,null,null," ",null," "]
[null,{"$f":"IF(přihlášky!D:D=\"L\",IF(přihlášky!C:C=\"Začátečníci\",přihlášky!A:A,\" \"),\" \")","v":" "},{"$f":"IF(přihlášky!D:D=\"L\",IF(přihlášky!C:C=\"Začátečníci\",přihlášky!B:B,\" \"),\" \")","v":" "},null,null,null,null,null," ",null," "]
[null,{"$f":"IF(přihlášky!D:D=\"L\",IF(přihlášky!C:C=\"Začátečníci\",přihlášky!A:A,\" \"),\" \")","v":" "},{"$f":"IF(přihlášky!D:D=\"L\",IF(přihlášky!C:C=\"Začátečníci\",přihlášky!B:B,\" \"),\" \")","v":" "},null,null,null,null,null," ",null," "]
[null,{"$f":"IF(přihlášky!D:D=\"L\",IF(přihlášky!C:C=\"Začátečníci\",přihlášky!A:A,\" \"),\" \")","v":" "},{"$f":"IF(přihlášky!D:D=\"L\",IF(přihlášky!C:C=\"Začátečníci\",přihlášky!B:B,\" \"),\" \")","v":" "},null,null,null,null,null," ",null," "]
[null,{"$f":"IF(přihlášky!D:D=\"L\",IF(přihlášky!C:C=\"Začátečníci\",přihlášky!A:A,\" \"),\" \")","v":" "},{"$f":"IF(přihlášky!D:D=\"L\",IF(přihlášky!C:C=\"Začátečníci\",přihlášky!B:B,\" \"),\" \")","v":" "},null,null,null,null,null," ",null," "]
[null,{"$f":"IF(přihlášky!D:D=\"L\",IF(přihlášky!C:C=\"Začátečníci\",přihlášky!A:A,\" \"),\" \")","v":" "},{"$f":"IF(přihlášky!D:D=\"L\",IF(přihlášky!C:C=\"Začátečníci\",přihlášky!B:B,\" \"),\" \")","v":" "},null,null,null,null,null," ",null," "]
[null,{"$f":"IF(přihlášky!D:D=\"L\",IF(přihlášky!C:C=\"Začátečníci\",přihlášky!A:A,\" \"),\" \")","v":"Mirka Perglová"},{"$f":"IF(přihlášky!D:D=\"L\",IF(přihlášky!C:C=\"Začátečníci\",přihlášky!B:B,\" \"),\" \")","v":"Teddy"},34.1,1,1,null,null,"Mirka Perglová",null,"Teddy",null,31,0,0]
[null,{"$f":"IF(přihlášky!D:D=\"L\",IF(přihlášky!C:C=\"Začátečníci\",přihlášky!A:A,\" \"),\" \")","v":" "},{"$f":"IF(přihlášky!D:D=\"L\",IF(přihlášky!C:C=\"Začátečníci\",přihlášky!B:B,\" \"),\" \")","v":" "},null,null,null,null,null," ",null," "]
[null,{"$f":"IF(přihlášky!D:D=\"L\",IF(přihlášky!C:C=\"Začátečníci\",přihlášky!A:A,\" \"),\" \")","v":"Jitka Fišerová"},{"$f":"IF(přihlášky!D:D=\"L\",IF(přihlášky!C:C=\"Začátečníci\",přihlášky!B:B,\" \"),\" \")","v":"Arashid Foxy Fox (Raš)"},33.4,2,0,null,null,"Jitka Fišerová",null,"Arashid Foxy Fox (Raš)",null,32.5,0,0]
[null,{"$f":"IF(přihlášky!D:D=\"L\",IF(přihlášky!C:C=\"Začátečníci\",přihlášky!A:A,\" \"),\" \")","v":" "},{"$f":"IF(přihlášky!D:D=\"L\",IF(přihlášky!C:C=\"Začátečníci\",přihlášky!B:B,\" \"),\" \")","v":" "},null,null,null,null,null," ",null," "]
[null,{"$f":"IF(přihlášky!D:D=\"L\",IF(přihlášky!C:C=\"Začátečníci\",přihlášky!A:A,\" \"),\" \")","v":" "},{"$f":"IF(přihlášky!D:D=\"L\",IF(přihlášky!C:C=\"Začátečníci\",přihlášky!B:B,\" \"),\" \")","v":" "},null,null,null,null,null," ",null," "]
[null,{"$f":"IF(přihlášky!D:D=\"L\",IF(přihlášky!C:C=\"Začátečníci\",přihlášky!A:A,\" \"),\" \")","v":"Jana Křížová"},{"$f":"IF(přihlášky!D:D=\"L\",IF(přihlášky!C:C=\"Začátečníci\",přihlášky!B:B,\" \"),\" \")","v":"Alú"},36.4,1,1,null,null,"Jana Křížová",null,"Alú",null,29.7,0,0]
[null,{"$f":"IF(přihlášky!D:D=\"L\",IF(přihlášky!C:C=\"Začátečníci\",přihlášky!A:A,\" \"),\" \")","v":" "},{"$f":"IF(přihlášky!D:D=\"L\",IF(přihlášky!C:C=\"Začátečníci\",přihlášky!B:B,\" \"),\" \")","v":" "},null,null,null,null,null," ",null," "]
[null,{"$f":"IF(přihlášky!D:D=\"L\",IF(přihlášky!C:C=\"Začátečníci\",přihlášky!A:A,\" \"),\" \")","v":" "},{"$f":"IF(přihlášky!D:D=\"L\",IF(přihlášky!C:C=\"Začátečníci\",přihlášky!B:B,\" \"),\" \")","v":" "},null,null,null,null,null," ",null," "]
[null,{"$f":"IF(přihlášky!D:D=\"L\",IF(přihlášky!C:C=\"Začátečníci\",přihlášky!A:A,\" \"),\" \")","v":" "},{"$f":"IF(přihlášky!D:D=\"L\",IF(přihlášky!C:C=\"Začátečníci\",přihlášky!B:B,\" \"),\" \")","v":" "},null,null,null,null,null," ",null," "]
[null,{"$f":"IF(přihlášky!D:D=\"L\",IF(přihlášky!C:C=\"Začátečníci\",přihlášky!A:A,\" \"),\" \")","v":" "},{"$f":"IF(přihlášky!D:D=\"L\",IF(přihlášky!C:C=\"Začátečníci\",přihlášky!B:B,\" \"),\" \")","v":" "},null,null,null,null,null," ",null," "]
[null,{"$f":"IF(přihlášky!D:D=\"L\",IF(přihlášky!C:C=\"Začátečníci\",přihlášky!A:A,\" \"),\" \")","v":" "},{"$f":"IF(přihlášky!D:D=\"L\",IF(přihlášky!C:C=\"Začátečníci\",přihlášky!B:B,\" \"),\" \")","v":" "},null,null,null,null,null," ",null," "]
[null,{"$f":"IF(přihlášky!D:D=\"L\",IF(přihlášky!C:C=\"Začátečníci\",přihlášky!A:A,\" \"),\" \")","v":" "},{"$f":"IF(přihlášky!D:D=\"L\",IF(přihlášky!C:C=\"Začátečníci\",přihlášky!B:B,\" \"),\" \")","v":" "},null,null,null,null,null," ",null," "]
[null,{"$f":"IF(přihlášky!D:D=\"L\",IF(přihlášky!C:C=\"Začátečníci\",přihlášky!A:A,\" \"),\" \")","v":" "},{"$f":"IF(přihlášky!D:D=\"L\",IF(přihlášky!C:C=\"Začátečníci\",přihlášky!B:B,\" \"),\" \")","v":" "},null,null,null,null,null," ",null," "]
[null,{"$f":"IF(přihlášky!D:D=\"L\",IF(přihlášky!C:C=\"Začátečníci\",přihlášky!A:A,\" \"),\" \")","v":" "},{"$f":"IF(přihlášky!D:D=\"L\",IF(přihlášky!C:C=\"Začátečníci\",přihlášky!B:B,\" \"),\" \")","v":" "},null,null,null,null,null," ",null," "]
[null,{"$f":"IF(přihlášky!D:D=\"L\",IF(přihlášky!C:C=\"Začátečníci\",přihlášky!A:A,\" \"),\" \")","v":" "},{"$f":"IF(přihlášky!D:D=\"L\",IF(přihlášky!C:C=\"Začátečníci\",přihlášky!B:B,\" \"),\" \")","v":" "},null,null,null,null,null," ",null," "]
[null,{"$f":"IF(přihlášky!D:D=\"L\",IF(přihlášky!C:C=\"Začátečníci\",přihlášky!A:A,\" \"),\" \")","v":" "},{"$f":"IF(přihlášky!D:D=\"L\",IF(přihlášky!C:C=\"Začátečníci\",přihlášky!B:B,\" \"),\" \")","v":" "},null,null,null,null,null," ",null," "]
[null,{"$f":"IF(přihlášky!D:D=\"L\",IF(přihlášky!C:C=\"Začátečníci\",přihlášky!A:A,\" \"),\" \")","v":" "},{"$f":"IF(přihlášky!D:D=\"L\",IF(přihlášky!C:C=\"Začátečníci\",přihlášky!B:B,\" \"),\" \")","v":" "},null,null,null,null,null," ",null," "]
[null,{"$f":"IF(přihlášky!D:D=\"L\",IF(přihlášky!C:C=\"Začátečníci\",přihlášky!A:A,\" \"),\" \")","v":" "},{"$f":"IF(přihlášky!D:D=\"L\",IF(přihlášky!C:C=\"Začátečníci\",přihlášky!B:B,\" \"),\" \")","v":" "},null,null,null,null,null," ",null," "]
[null,{"$f":"IF(přihlášky!D:D=\"L\",IF(přihlášky!C:C=\"Začátečníci\",přihlášky!A:A,\" \"),\" \")","v":" "},{"$f":"IF(přihlášky!D:D=\"L\",IF(přihlášky!C:C=\"Začátečníci\",přihlášky!B:B,\" \"),\" \")","v":" "},null,null,null,null,null," ",null," "]
[null,{"$f":"IF(přihlášky!D:D=\"L\",IF(přihlášky!C:C=\"Začátečníci\",přihlášky!A:A,\" \"),\" \")","v":" "},{"$f":"IF(přihlášky!D:D=\"L\",IF(přihlášky!C:C=\"Začátečníci\",přihlášky!B:B,\" \"),\" \")","v":" "},null,null,null,null,null," ",null," "]
[null,{"$f":"IF(přihlášky!D:D=\"L\",IF(přihlášky!C:C=\"Začátečníci\",přihlášky!A:A,\" \"),\" \")","v":"Veronika Zahradníková"},{"$f":"IF(přihlášky!D:D=\"L\",IF(přihlášky!C:C=\"Začátečníci\",přihlášky!B:B,\" \"),\" \")","v":"Kim"},34.700000000000003,0,0,null,null,"Veronika Zahradníková",null,"Kim",null,30.5,1,1]
[null,{"$f":"IF(přihlášky!D:D=\"L\",IF(přihlášky!C:C=\"Začátečníci\",přihlášky!A:A,\" \"),\" \")","v":"Jiří Rožníček"},{"$f":"IF(přihlášky!D:D=\"L\",IF(přihlášky!C:C=\"Začátečníci\",přihlášky!B:B,\" \"),\" \")","v":"Andy"},39.700000000000003,1,4,null,null,"Jiří Rožníček",null,"Andy",null,30.9,4,0]
[null,{"$f":"IF(přihlášky!D:D=\"L\",IF(přihlášky!C:C=\"Začátečníci\",přihlášky!A:A,\" \"),\" \")","v":" "},{"$f":"IF(přihlášky!D:D=\"L\",IF(přihlášky!C:C=\"Začátečníci\",přihlášky!B:B,\" \"),\" \")","v":" "},null,null,null,null,null," ",null," "]
[null,{"$f":"IF(přihlášky!D:D=\"L\",IF(přihlášky!C:C=\"Začátečníci\",přihlášky!A:A,\" \"),\" \")","v":"Červenková Vendula"},{"$f":"IF(přihlášky!D:D=\"L\",IF(přihlášky!C:C=\"Začátečníci\",přihlášky!B:B,\" \"),\" \")","v":"Jenny"},34.799999999999997,1,3,null,null,"Červenková Vendula",null,{"$f":"C52","v":"Jenny"},null,30.7,1,4]
[null,{"$f":"IF(přihlášky!D:D=\"L\",IF(přihlášky!C:C=\"Začátečníci\",přihlášky!A:A,\" \"),\" \")","v":" "},{"$f":"IF(přihlášky!D:D=\"L\",IF(přihlášky!C:C=\"Začátečníci\",přihlášky!B:B,\" \"),\" \")","v":" "},null,null,null,null,null,null,{"$f":"B53","v":" "},{"$f":"C53","v":" "}]
[null,{"$f":"IF(přihlášky!D:D=\"L\",IF(přihlášky!C:C=\"Začátečníci\",přihlášky!A:A,\" \"),\" \")","v":" "},{"$f":"IF(přihlášky!D:D=\"L\",IF(přihlášky!C:C=\"Začátečníci\",přihlášky!B:B,\" \"),\" \")","v":" "},null,null,null,null,null,null," "," "]
[null,{"$f":"IF(přihlášky!D:D=\"L\",IF(přihlášky!C:C=\"Začátečníci\",přihlášky!A:A,\" \"),\" \")","v":" "},{"$f":"IF(přihlášky!D:D=\"L\",IF(přihlášky!C:C=\"Začátečníci\",přihlášky!B:B,\" \"),\" \")","v":" "},null,null,null,null,null,null," "," "]
[null,{"$f":"IF(přihlášky!D:D=\"L\",IF(přihlášky!C:C=\"Začátečníci\",přihlášky!A:A,\" \"),\" \")","v":" "},{"$f":"IF(přihlášky!D:D=\"L\",IF(přihlášky!C:C=\"Začátečníci\",přihlášky!B:B,\" \"),\" \")","v":" "},null,null,null,null,null,null," "," "]
[]
["3. tabulka                                                                                        Začátečníci L",null,null,null,null,null,null,"4. tabulka                                                                                   Začátečníci L"]
["Umístění","Jméno","Pes","Čas","Chyby, odmítnutí","DISK","Doplnit umístění","Umístění ","Jméno",null,"Pes",null,"Čas","Chyby, odmítnutí","DISK"]
[null,"Pavla Eliášová","Enrico z Tržiště",35.6,1,0,null,null,"Pavla Eliášová",null,"Enrico z Tržiště",null,29.8,1,1]
[null,"Plačková Zuzana","Caira",36.5,1,0,null,null,"Plačková Zuzana",null,"Caira",null,29.7,0,0]
[null,"Lucie Bohuslavová","Ashly Brixa's Family",34.200000000000003,0,0,null,null,"Lucie Bohuslavová",null,"Ashly Brixa's Family",null,30.5,0,0]
[null,"Karolína Korejzova","Conni",33.1,1,1,null,null,"Karolína Korejzova",null,"Conni",null,31.4,2,1]
[null,"Markéta Dvořáková","Gigi",32.4,3,0,null,null,"Markéta Dvořáková",null,"Gigi",null,31.1,3,0]
[null,"Antonín Motyčka","Audi Quattro From Their Hearts",36.799999999999997,0,0,null,null,"Antonín Motyčka",null,"Audi Quattro From Their Hearts",null,29.9,2,2]
[null,"Evelína Dobešová","Alegría",34,1,0,null,null,"Evelína Dobešová",null,"Alegría",null,39.799999999999997,4,4]
[null,"Denisa Pšeničková","Mína",33.5,0,3,null,null,"Denisa Pšeničková",null,"Mína",null,35.4,3,1]
[null,"Mirka Perglová","Teddy",34.1,1,1,null,null,"Mirka Perglová",null,"Teddy",null,31,0,0]
[null,"Jitka Fišerová","Arashid Foxy Fox (Raš)",33.4,2,0,null,null,"Jitka Fišerová",null,"Arashid Foxy Fox (Raš)",null,32.5,0,0]
[null,"Jana Křížová","Alú",36.4,1,1,null,null,"Jana Křížová",null,"Alú",null,29.7,0,0]
[null,"Veronika Zahradníková","Kim",34.700000000000003,0,0,null,null,"Veronika Zahradníková",null,"Kim",null,30.5,1,1]
[null,"Jiří Rožníček","Andy",39.700000000000003,1,4,null,null,"Jiří Rožníček",null,"Andy",null,30.9,4,0]
[null,"Červenková Vendula","Jenny",34.799999999999997,1,3,null,null,"Červenková Vendula",null,"Jenny",null,30.7,1,4]
[]
["5. tabulka                                                                                               Začátečníci L"]
["Umístění","Jméno","Pes","Čas 1 ","Čas  2","Čas celkem","Chyby  1","Chyby 2 ","Chyby celkem","DISK 1 ","DISK  2","DISK celkem"]
[null,"Pavla Eliášová","Enrico z Tržiště",35.6,29.8,{"$f":"D77+E77","v":65.400000000000006},1,1,{"$f":"G77+H77","v":2},0,1,{"$f":"J77+K77","v":1},null,null,"Získat data z předchozích tabulek: Jméno a Pes podle první tabulky;   \n       Výsledky z první a druhé tabulky. Sečíst buňky 1+2 a vše seřadit podle DISK celkem, Chyby celkem, čas celkem od nejmenšího. Doplnit umístění"]
[null,"Plačková Zuzana","Caira",36.5,29.7,{"$f":"D78+E78","v":66.2},1,0,{"$f":"G78+H78","v":1},0,0,{"$f":"J78+K78","v":0}]
[null,"Lucie Bohuslavová","Ashly Brixa's Family",34.200000000000003,30.5,64.7,0,0,0,0,0,0]
[null,"Karolína Korejzova","Conni",33.1,31.4,64.5,1,2,3,1,1,2]
[null,"Markéta Dvořáková","Gigi",32.4,31.1,63.5,3,3,6,0,0,0]
[null,"Antonín Motyčka","Audi Quattro From Their Hearts",36.799999999999997,29.9,66.699999999999989,0,2,2,0,2,2]
[null,"Evelína Dobešová","Alegría",34,39.799999999999997,73.8,1,4,5,0,4,4]
[null,"Denisa Pšeničková","Mína",33.5,35.4,68.900000000000006,0,3,3,3,1,4]
[null,"Mirka Perglová","Teddy",34.1,31,65.099999999999994,1,0,1,1,0,1]
[null,"Jitka Fišerová","Arashid Foxy Fox (Raš)",33.4,32.5,65.900000000000006,2,0,2,0,0,0]
[null,"Jana Křížová","Alú",36.4,29.7,66.099999999999994,1,0,1,1,0,1]
[null,"Veronika Zahradníková","Kim",34.700000000000003,30.5,65.2,0,1,1,0,1,1]
[null,"Jiří Rožníček","Andy",39.700000000000003,30.9,70.599999999999994,1,4,5,4,0,4]
[null,"Červenková Vendula","Jenny",34.799999999999997,30.7,65.5,1,1,2,3,4,7]

{"sheet":"Začátečníci M","index":2,"n_rows":12,"n_cols":13,"rows_kept":12,"cut":false,"hidden":false,"merged":[]}
["Jméno","Pes","Čas","Chyby, odmítnutí","DISK","Umístění",null,"Jméno","Pes","Čas","Chyby, odmítnutí","DISK","Umístění"]
[{"$f":"IF(přihlášky!D:D=\"S\",IF(přihlášky!C:C=\"Začátečníci\",přihlášky!A:A,\" \"),\" \")","v":" "},{"$f":"IF(přihlášky!D:D=\"S\",IF(přihlášky!C:C=\"Začátečníci\",přihlášky!B:B,\" \"),\" \")","v":" "},null,null,null,null,null,{"$f":"A2","v":" "}," "]
[{"$f":"IF(přihlášky!D:D=\"S\",IF(přihlášky!C:C=\"Začátečníci\",přihlášky!A:A,\" \"),\" \")","v":" "},{"$f":"IF(přihlášky!D:D=\"S\",IF(přihlášky!C:C=\"Začátečníci\",přihlášky!B:B,\" \"),\" \")","v":" "},null,null,null,null,null," "," "]
[{"$f":"IF(přihlášky!D:D=\"S\",IF(přihlášky!C:C=\"Začátečníci\",přihlášky!A:A,\" \"),\" \")","v":" "},{"$f":"IF(přihlášky!D:D=\"S\",IF(přihlášky!C:C=\"Začátečníci\",přihlášky!B:B,\" \"),\" \")","v":" "},null,null,null,null,null," "," "]
[{"$f":"IF(přihlášky!D:D=\"S\",IF(přihlášky!C:C=\"Začátečníci\",přihlášky!A:A,\" \"),\" \")","v":" "},{"$f":"IF(přihlášky!D:D=\"S\",IF(přihlášky!C:C=\"Začátečníci\",přihlášky!B:B,\" \"),\" \")","v":" "},null,null,null,null,null," "," "]
[{"$f":"IF(přihlášky!D:D=\"S\",IF(přihlášky!C:C=\"Začátečníci\",přihlášky!A:A,\" \"),\" \")","v":" "},{"$f":"IF(přihlášky!D:D=\"S\",IF(přihlášky!C:C=\"Začátečníci\",přihlášky!B:B,\" \"),\" \")","v":" "},null,null,null,null,null," "," "]
[{"$f":"IF(přihlášky!D:D=\"S\",IF(přihlášky!C:C=\"Začátečníci\",přihlášky!A:A,\" \"),\" \")","v":" "},{"$f":"IF(přihlášky!D:D=\"S\",IF(přihlášky!C:C=\"Začátečníci\",přihlášky!B:B,\" \"),\" \")","v":" "},null,null,null,null,null," "," "]
[{"$f":"IF(přihlášky!D:D=\"S\",IF(přihlášky!C:C=\"Začátečníci\",přihlášky!A:A,\" \"),\" \")","v":" "},{"$f":"IF(přihlášky!D:D=\"S\",IF(přihlášky!C:C=\"Začátečníci\",přihlášky!B:B,\" \"),\" \")","v":" "},null,null,null,null,null," "," "]
[{"$f":"IF(přihlášky!D:D=\"S\",IF(přihlášky!C:C=\"Začátečníci\",přihlášky!A:A,\" \"),\" \")","v":" "},{"$f":"IF(přihlášky!D:D=\"S\",IF(přihlášky!C:C=\"Začátečníci\",přihlášky!B:B,\" \"),\" \")","v":" "},null,null,null,null,null," "," "]
[{"$f":"IF(přihlášky!D:D=\"S\",IF(přihlášky!C:C=\"Začátečníci\",přihlášky!A:A,\" \"),\" \")","v":" "},{"$f":"IF(přihlášky!D:D=\"S\",IF(přihlášky!C:C=\"Začátečníci\",přihlášky!B:B,\" \"),\" \")","v":" "},null,null,null,null,null," "," "]
[{"$f":"IF(přihlášky!D:D=\"S\",IF(přihlášky!C:C=\"Začátečníci\",přihlášky!A:A,\" \"),\" \")","v":" "},{"$f":"IF(přihlášky!D:D=\"S\",IF(přihlášky!C:C=\"Začátečníci\",přihlášky!B:B,\" \"),\" \")","v":" "},null,null,null,null,null," "," "]
[{"$f":"IF(přihlášky!D:D=\"S\",IF(přihlášky!C:C=\"Začátečníci\",přihlášky!A:A,\" \"),\" \")","v":" "},{"$f":"IF(přihlášky!D:D=\"S\",IF(přihlášky!C:C=\"Začátečníci\",přihlášky!B:B,\" \"),\" \")","v":" "},null,null,null,null,null," "," "]

{"sheet":"Začátečníci S","index":3,"n_rows":56,"n_cols":13,"rows_kept":56,"cut":false,"hidden":false,"merged":[]}
[]
["Jméno","Pes","Čas","Chyby, odmítnutí","DISK","Umístění",null,"Jméno","Pes","Čas","Chyby, odmítnutí","DISK","Umístění"]
[{"$f":"IF(přihlášky!D:D=\"S\",IF(přihlášky!C:C=\"Začátečníci\",přihlášky!A:A,\" \"),\" \")","v":" "},{"$f":"IF(přihlášky!D:D=\"S\",IF(přihlášky!C:C=\"Začátečníci\",přihlášky!B:B,\" \"),\" \")","v":" "},null,null,null,null,null,{"$f":"A3","v":" "},{"$f":"B3","v":" "}]
[{"$f":"IF(přihlášky!D:D=\"S\",IF(přihlášky!C:C=\"Začátečníci\",přihlášky!A:A,\" \"),\" \")","v":" "},{"$f":"IF(přihlášky!D:D=\"S\",IF(přihlášky!C:C=\"Začátečníci\",přihlášky!B:B,\" \"),\" \")","v":" "},null,null,null,null,null,{"$f":"A4","v":" "},{"$f":"B4","v":" "}]
[{"$f":"IF(přihlášky!D:D=\"S\",IF(přihlášky!C:C=\"Začátečníci\",přihlášky!A:A,\" \"),\" \")","v":" "},{"$f":"IF(přihlášky!D:D=\"S\",IF(přihlášky!C:C=\"Začátečníci\",přihlášky!B:B,\" \"),\" \")","v":" "},null,null,null,null,null," "," "]
[{"$f":"IF(přihlášky!D:D=\"S\",IF(přihlášky!C:C=\"Začátečníci\",přihlášky!A:A,\" \"),\" \")","v":" "},{"$f":"IF(přihlášky!D:D=\"S\",IF(přihlášky!C:C=\"Začátečníci\",přihlášky!B:B,\" \"),\" \")","v":" "},null,null,null,null,null," "," "]
[{"$f":"IF(přihlášky!D:D=\"S\",IF(přihlášky!C:C=\"Začátečníci\",přihlášky!A:A,\" \"),\" \")","v":" "},{"$f":"IF(přihlášky!D:D=\"S\",IF(přihlášky!C:C=\"Začátečníci\",přihlášky!B:B,\" \"),\" \")","v":" "},null,null,null,null,null," "," "]
[{"$f":"IF(přihlášky!D:D=\"S\",IF(přihlášky!C:C=\"Začátečníci\",přihlášky!A:A,\" \"),\" \")","v":" "},{"$f":"IF(přihlášky!D:D=\"S\",IF(přihlášky!C:C=\"Začátečníci\",přihlášky!B:B,\" \"),\" \")","v":" "},null,null,null,null,null," "," "]
[{"$f":"IF(přihlášky!D:D=\"S\",IF(přihlášky!C:C=\"Začátečníci\",přihlášky!A:A,\" \"),\" \")","v":" "},{"$f":"IF(přihlášky!D:D=\"S\",IF(přihlášky!C:C=\"Začátečníci\",přihlášky!B:B,\" \"),\" \")","v":" "},null,null,null,null,null," "," "]
[{"$f":"IF(přihlášky!D:D=\"S\",IF(přihlášky!C:C=\"Začátečníci\",přihlášky!A:A,\" \"),\" \")","v":" "},{"$f":"IF(přihlášky!D:D=\"S\",IF(přihlášky!C:C=\"Začátečníci\",přihlášky!B:B,\" \"),\" \")","v":" "},null,null,null,null,null," "," "]
[{"$f":"IF(přihlášky!D:D=\"S\",IF(přihlášky!C:C=\"Začátečníci\",přihlášky!A:A,\" \"),\" \")","v":" "},{"$f":"IF(přihlášky!D:D=\"S\",IF(přihlášky!C:C=\"Začátečníci\",přihlášky!B:B,\" \"),\" \")","v":" "},null,null,null,null,null," "," "]
[{"$f":"IF(přihlášky!D:D=\"S\",IF(přihlášky!C:C=\"Začátečníci\",přihlášky!A:A,\" \"),\" \")","v":" "},{"$f":"IF(přihlášky!D:D=\"S\",IF(přihlášky!C:C=\"Začátečníci\",přihlášky!B:B,\" \"),\" \")","v":" "},null,null,null,null,null," "," "]
[{"$f":"IF(přihlášky!D:D=\"S\",IF(přihlášky!C:C=\"Začátečníci\",přihlášky!A:A,\" \"),\" \")","v":" "},{"$f":"IF(přihlášky!D:D=\"S\",IF(přihlášky!C:C=\"Začátečníci\",přihlášky!B:B,\" \"),\" \")","v":" "},null,null,null,null,null," "," "]
[{"$f":"IF(přihlášky!D:D=\"S\",IF(přihlášky!C:C=\"Začátečníci\",přihlášky!A:A,\" \"),\" \")","v":" "},{"$f":"IF(přihlášky!D:D=\"S\",IF(přihlášky!C:C=\"Začátečníci\",přihlášky!B:B,\" \"),\" \")","v":" "},null,null,null,null,null," "," "]
[{"$f":"IF(přihlášky!D:D=\"S\",IF(přihlášky!C:C=\"Začátečníci\",přihlášky!A:A,\" \"),\" \")","v":" "},{"$f":"IF(přihlášky!D:D=\"S\",IF(přihlášky!C:C=\"Začátečníci\",přihlášky!B:B,\" \"),\" \")","v":" "},null,null,null,null,null," "," "]
[{"$f":"IF(přihlášky!D:D=\"S\",IF(přihlášky!C:C=\"Začátečníci\",přihlášky!A:A,\" \"),\" \")","v":"Jana Šaková"},{"$f":"IF(přihlášky!D:D=\"S\",IF(přihlášky!C:C=\"Začátečníci\",přihlášky!B:B,\" \"),\" \")","v":"Charlie Sheen"},null,null,null,null,null,"Jana Šaková","Charlie Sheen"]
[{"$f":"IF(přihlášky!D:D=\"S\",IF(přihlášky!C:C=\"Začátečníci\",přihlášky!A:A,\" \"),\" \")","v":" "},{"$f":"IF(přihlášky!D:D=\"S\",IF(přihlášky!C:C=\"Začátečníci\",přihlášky!B:B,\" \"),\" \")","v":" "},null,null,null,null,null," "," "]
[{"$f":"IF(přihlášky!D:D=\"S\",IF(přihlášky!C:C=\"Začátečníci\",přihlášky!A:A,\" \"),\" \")","v":" "},{"$f":"IF(přihlášky!D:D=\"S\",IF(přihlášky!C:C=\"Začátečníci\",přihlášky!B:B,\" \"),\" \")","v":" "},null,null,null,null,null," "," "]
[{"$f":"IF(přihlášky!D:D=\"S\",IF(přihlášky!C:C=\"Začátečníci\",přihlášky!A:A,\" \"),\" \")","v":" "},{"$f":"IF(přihlášky!D:D=\"S\",IF(přihlášky!C:C=\"Začátečníci\",přihlášky!B:B,\" \"),\" \")","v":" "},null,null,null,null,null," "," "]
[{"$f":"IF(přihlášky!D:D=\"S\",IF(přihlášky!C:C=\"Začátečníci\",přihlášky!A:A,\" \"),\" \")","v":"Petra Kořánová"},{"$f":"IF(přihlášky!D:D=\"S\",IF(přihlášky!C:C=\"Začátečníci\",přihlášky!B:B,\" \"),\" \")","v":"Kevin"},null,null,null,null,null,"Petra Kořánová","Kevin"]
[{"$f":"IF(přihlášky!D:D=\"S\",IF(přihlášky!C:C=\"Začátečníci\",přihlášky!A:A,\" \"),\" \")","v":" "},{"$f":"IF(přihlášky!D:D=\"S\",IF(přihlášky!C:C=\"Začátečníci\",přihlášky!B:B,\" \"),\" \")","v":" "},null,null,null,null,null," "," "]
[{"$f":"IF(přihlášky!D:D=\"S\",IF(přihlášky!C:C=\"Začátečníci\",přihlášky!A:A,\" \"),\" \")","v":" "},{"$f":"IF(přihlášky!D:D=\"S\",IF(přihlášky!C:C=\"Začátečníci\",přihlášky!B:B,\" \"),\" \")","v":" "},null,null,null,null,null," "," "]
[{"$f":"IF(přihlášky!D:D=\"S\",IF(přihlášky!C:C=\"Začátečníci\",přihlášky!A:A,\" \"),\" \")","v":" "},{"$f":"IF(přihlášky!D:D=\"S\",IF(přihlášky!C:C=\"Začátečníci\",přihlášky!B:B,\" \"),\" \")","v":" "},null,null,null,null,null," "," "]
[{"$f":"IF(přihlášky!D:D=\"S\",IF(přihlášky!C:C=\"Začátečníci\",přihlášky!A:A,\" \"),\" \")","v":"Diana Vyskočilová"},{"$f":"IF(přihlášky!D:D=\"S\",IF(přihlášky!C:C=\"Začátečníci\",přihlášky!B:B,\" \"),\" \")","v":"Rozinka"},null,null,null,null,null,"Diana Vyskočilová","Rozinka"]
[{"$f":"IF(přihlášky!D:D=\"S\",IF(přihlášky!C:C=\"Začátečníci\",přihlášky!A:A,\" \"),\" \")","v":" "},{"$f":"IF(přihlášky!D:D=\"S\",IF(přihlášky!C:C=\"Začátečníci\",přihlášky!B:B,\" \"),\" \")","v":" "},null,null,null,null,null," "," "]
[{"$f":"IF(přihlášky!D:D=\"S\",IF(přihlášky!C:C=\"Začátečníci\",přihlášky!A:A,\" \"),\" \")","v":" "},{"$f":"IF(přihlášky!D:D=\"S\",IF(přihlášky!C:C=\"Začátečníci\",přihlášky!B:B,\" \"),\" \")","v":" "},null,null,null,null,null," "," "]
[{"$f":"IF(přihlášky!D:D=\"S\",IF(přihlášky!C:C=\"Začátečníci\",přihlášky!A:A,\" \"),\" \")","v":" "},{"$f":"IF(přihlášky!D:D=\"S\",IF(přihlášky!C:C=\"Začátečníci\",přihlášky!B:B,\" \"),\" \")","v":" "},null,null,null,null,null," "," "]
[{"$f":"IF(přihlášky!D:D=\"S\",IF(přihlášky!C:C=\"Začátečníci\",přihlášky!A:A,\" \"),\" \")","v":" "},{"$f":"IF(přihlášky!D:D=\"S\",IF(přihlášky!C:C=\"Začátečníci\",přihlášky!B:B,\" \"),\" \")","v":" "},null,null,null,null,null," "," "]
[{"$f":"IF(přihlášky!D:D=\"S\",IF(přihlášky!C:C=\"Začátečníci\",přihlášky!A:A,\" \"),\" \")","v":" "},{"$f":"IF(přihlášky!D:D=\"S\",IF(přihlášky!C:C=\"Začátečníci\",přihlášky!B:B,\" \"),\" \")","v":" "},null,null,null,null,null," "," "]
[{"$f":"IF(přihlášky!D:D=\"S\",IF(přihlášky!C:C=\"Začátečníci\",přihlášky!A:A,\" \"),\" \")","v":"Radka Klosová"},{"$f":"IF(přihlášky!D:D=\"S\",IF(přihlášky!C:C=\"Začátečníci\",přihlášky!B:B,\" \"),\" \")","v":"Merlin"},null,null,null,null,null,"Radka Klosová","Merlin"]
[{"$f":"IF(přihlášky!D:D=\"S\",IF(přihlášky!C:C=\"Začátečníci\",přihlášky!A:A,\" \"),\" \")","v":" "},{"$f":"IF(přihlášky!D:D=\"S\",IF(přihlášky!C:C=\"Začátečníci\",přihlášky!B:B,\" \"),\" \")","v":" "},null,null,null,null,null," "," "]
[{"$f":"IF(přihlášky!D:D=\"S\",IF(přihlášky!C:C=\"Začátečníci\",přihlášky!A:A,\" \"),\" \")","v":" "},{"$f":"IF(přihlášky!D:D=\"S\",IF(přihlášky!C:C=\"Začátečníci\",přihlášky!B:B,\" \"),\" \")","v":" "},null,null,null,null,null," "," "]
[{"$f":"IF(přihlášky!D:D=\"S\",IF(přihlášky!C:C=\"Začátečníci\",přihlášky!A:A,\" \"),\" \")","v":" "},{"$f":"IF(přihlášky!D:D=\"S\",IF(přihlášky!C:C=\"Začátečníci\",přihlášky!B:B,\" \"),\" \")","v":" "},null,null,null,null,null," "," "]
[{"$f":"IF(přihlášky!D:D=\"S\",IF(přihlášky!C:C=\"Začátečníci\",přihlášky!A:A,\" \"),\" \")","v":" "},{"$f":"IF(přihlášky!D:D=\"S\",IF(přihlášky!C:C=\"Začátečníci\",přihlášky!B:B,\" \"),\" \")","v":" "},null,null,null,null,null," "," "]
[{"$f":"IF(přihlášky!D:D=\"S\",IF(přihlášky!C:C=\"Začátečníci\",přihlášky!A:A,\" \"),\" \")","v":"Miloslava Moravcová"},{"$f":"IF(přihlášky!D:D=\"S\",IF(přihlášky!C:C=\"Začátečníci\",přihlášky!B:B,\" \"),\" \")","v":"Lili"},null,null,null,null,null,"Miloslava Moravcová","Lili"]
[{"$f":"IF(přihlášky!D:D=\"S\",IF(přihlášky!C:C=\"Začátečníci\",přihlášky!A:A,\" \"),\" \")","v":"Šárka Krčálová"},{"$f":"IF(přihlášky!D:D=\"S\",IF(přihlášky!C:C=\"Začátečníci\",přihlášky!B:B,\" \"),\" \")","v":"Kejsy"},null,null,null,null,null,"Šárka Krčálová","Kejsy"]
[{"$f":"IF(přihlášky!D:D=\"S\",IF(přihlášky!C:C=\"Začátečníci\",přihlášky!A:A,\" \"),\" \")","v":"Markéta Hanzlíková"},{"$f":"IF(přihlášky!D:D=\"S\",IF(přihlášky!C:C=\"Začátečníci\",přihlášky!B:B,\" \"),\" \")","v":"Ashly"},null,null,null,null,null,"Markéta Hanzlíková","Ashly"]
[{"$f":"IF(přihlášky!D:D=\"S\",IF(přihlášky!C:C=\"Začátečníci\",přihlášky!A:A,\" \"),\" \")","v":"Michaela Štroblová"},{"$f":"IF(přihlášky!D:D=\"S\",IF(přihlášky!C:C=\"Začátečníci\",přihlášky!B:B,\" \"),\" \")","v":"Carrie"},null,null,null,null,null,"Michaela Štroblová","Carrie"]
[{"$f":"IF(přihlášky!D:D=\"S\",IF(přihlášky!C:C=\"Začátečníci\",přihlášky!A:A,\" \"),\" \")","v":"Klára Velíková"},{"$f":"IF(přihlášky!D:D=\"S\",IF(přihlášky!C:C=\"Začátečníci\",přihlášky!B:B,\" \"),\" \")","v":"Fíbí"},null,null,null,null,null,"Klára Velíková","Fíbí"]
[{"$f":"IF(přihlášky!D:D=\"S\",IF(přihlášky!C:C=\"Začátečníci\",přihlášky!A:A,\" \"),\" \")","v":" "},{"$f":"IF(přihlášky!D:D=\"S\",IF(přihlášky!C:C=\"Začátečníci\",přihlášky!B:B,\" \"),\" \")","v":" "},null,null,null,null,null," "," "]
[{"$f":"IF(přihlášky!D:D=\"S\",IF(přihlášky!C:C=\"Začátečníci\",přihlášky!A:A,\" \"),\" \")","v":" "},{"$f":"IF(přihlášky!D:D=\"S\",IF(přihlášky!C:C=\"Začátečníci\",přihlášky!B:B,\" \"),\" \")","v":" "},null,null,null,null,null," "," "]
[{"$f":"IF(přihlášky!D:D=\"S\",IF(přihlášky!C:C=\"Začátečníci\",přihlášky!A:A,\" \"),\" \")","v":" "},{"$f":"IF(přihlášky!D:D=\"S\",IF(přihlášky!C:C=\"Začátečníci\",přihlášky!B:B,\" \"),\" \")","v":" "},null,null,null,null,null," "," "]
[{"$f":"IF(přihlášky!D:D=\"S\",IF(přihlášky!C:C=\"Začátečníci\",přihlášky!A:A,\" \"),\" \")","v":" "},{"$f":"IF(přihlášky!D:D=\"S\",IF(přihlášky!C:C=\"Začátečníci\",přihlášky!B:B,\" \"),\" \")","v":" "},null,null,null,null,null," "," "]
[{"$f":"IF(přihlášky!D:D=\"S\",IF(přihlášky!C:C=\"Začátečníci\",přihlášky!A:A,\" \"),\" \")","v":" "},{"$f":"IF(přihlášky!D:D=\"S\",IF(přihlášky!C:C=\"Začátečníci\",přihlášky!B:B,\" \"),\" \")","v":" "},null,null,null,null,null," "," "]
[{"$f":"IF(přihlášky!D:D=\"S\",IF(přihlášky!C:C=\"Začátečníci\",přihlášky!A:A,\" \"),\" \")","v":" "},{"$f":"IF(přihlášky!D:D=\"S\",IF(přihlášky!C:C=\"Začátečníci\",přihlášky!B:B,\" \"),\" \")","v":" "},null,null,null,null,null," "," "]
[{"$f":"IF(přihlášky!D:D=\"S\",IF(přihlášky!C:C=\"Začátečníci\",přihlášky!A:A,\" \"),\" \")","v":" "},{"$f":"IF(přihlášky!D:D=\"S\",IF(přihlášky!C:C=\"Začátečníci\",přihlášky!B:B,\" \"),\" \")","v":" "},null,null,null,null,null," "," "]
[{"$f":"IF(přihlášky!D:D=\"S\",IF(přihlášky!C:C=\"Začátečníci\",přihlášky!A:A,\" \"),\" \")","v":" "},{"$f":"IF(přihlášky!D:D=\"S\",IF(přihlášky!C:C=\"Začátečníci\",přihlášky!B:B,\" \"),\" \")","v":" "},null,null,null,null,null," "," "]
[{"$f":"IF(přihlášky!D:D=\"S\",IF(přihlášky!C:C=\"Začátečníci\",přihlášky!A:A,\" \"),\" \")","v":"Zuzana Hloušková"},{"$f":"IF(přihlášky!D:D=\"S\",IF(přihlášky!C:C=\"Začátečníci\",přihlášky!B:B,\" \"),\" \")","v":"Aura"},null,null,null,null,null,"Zuzana Hloušková","Aura"]
[{"$f":"IF(přihlášky!D:D=\"S\",IF(přihlášky!C:C=\"Začátečníci\",přihlášky!A:A,\" \"),\" \")","v":" "},{"$f":"IF(přihlášky!D:D=\"S\",IF(přihlášky!C:C=\"Začátečníci\",přihlášky!B:B,\" \"),\" \")","v":" "},null,null,null,null,null," "," "]
[{"$f":"IF(přihlášky!D:D=\"S\",IF(přihlášky!C:C=\"Začátečníci\",přihlášky!A:A,\" \"),\" \")","v":" "},{"$f":"IF(přihlášky!D:D=\"S\",IF(přihlášky!C:C=\"Začátečníci\",přihlášky!B:B,\" \"),\" \")","v":" "},null,null,null,null,null," "," "]
[{"$f":"IF(přihlášky!D:D=\"S\",IF(přihlášky!C:C=\"Začátečníci\",přihlášky!A:A,\" \"),\" \")","v":"Petra Kořánová"},{"$f":"IF(přihlášky!D:D=\"S\",IF(přihlášky!C:C=\"Začátečníci\",přihlášky!B:B,\" \"),\" \")","v":"Merlin"},null,null,null,null,null,"Petra Kořánová","Merlin"]
[{"$f":"IF(přihlášky!D:D=\"S\",IF(přihlášky!C:C=\"Začátečníci\",přihlášky!A:A,\" \"),\" \")","v":" "},{"$f":"IF(přihlášky!D:D=\"S\",IF(přihlášky!C:C=\"Začátečníci\",přihlášky!B:B,\" \"),\" \")","v":" "},null,null,null,null,null," "," "]
[{"$f":"IF(přihlášky!D:D=\"S\",IF(přihlášky!C:C=\"Začátečníci\",přihlášky!A:A,\" \"),\" \")","v":" "},{"$f":"IF(přihlášky!D:D=\"S\",IF(přihlášky!C:C=\"Začátečníci\",přihlášky!B:B,\" \"),\" \")","v":" "},null,null,null,null,null," "," "]
[{"$f":"IF(přihlášky!D:D=\"S\",IF(přihlášky!C:C=\"Začátečníci\",přihlášky!A:A,\" \"),\" \")","v":" "},{"$f":"IF(přihlášky!D:D=\"S\",IF(přihlášky!C:C=\"Začátečníci\",přihlášky!B:B,\" \"),\" \")","v":" "},null,null,null,null,null," "," "]
[{"$f":"IF(přihlášky!D:D=\"S\",IF(přihlášky!C:C=\"Začátečníci\",přihlášky!A:A,\" \"),\" \")","v":" "},{"$f":"IF(přihlášky!D:D=\"S\",IF(přihlášky!C:C=\"Začátečníci\",přihlášky!B:B,\" \"),\" \")","v":" "},null,null,null,null,null," "," "]
[{"$f":"IF(přihlášky!D:D=\"S\",IF(přihlášky!C:C=\"Začátečníci\",přihlášky!A:A,\" \"),\" \")","v":" "},{"$f":"IF(přihlášky!D:D=\"S\",IF(přihlášky!C:C=\"Začátečníci\",přihlášky!B:B,\" \"),\" \")","v":" "},null,null,null,null,null," "," "]

{"sheet":"Pokročilí L","index":4,"n_rows":55,"n_cols":13,"rows_kept":55,"cut":false,"hidden":false,"merged":[]}
["Jméno","Pes","Čas","Chyby, odmítnutí","DISK","Umístění",null,"Jméno","Pes","Čas","Chyby, odmítnutí","DISK","Umístění"]
[{"$f":"IF(přihlášky!D:D=\"L\",IF(přihlášky!C:C=\"Pokročilí\",přihlášky!A:A,\" \"),\" \")","v":" "},{"$f":"IF(přihlášky!D:D=\"L\",IF(přihlášky!C:C=\"Pokročilí\",přihlášky!B:B,\" \"),\" \")","v":" "},null,null,null,null,null,{"$f":"A2","v":" "},{"$f":"B2","v":" "}]
[{"$f":"IF(přihlášky!D:D=\"L\",IF(přihlášky!C:C=\"Pokročilí\",přihlášky!A:A,\" \"),\" \")","v":" "},{"$f":"IF(přihlášky!D:D=\"L\",IF(přihlášky!C:C=\"Pokročilí\",přihlášky!B:B,\" \"),\" \")","v":" "},null,null,null,null,null,{"$f":"A3","v":" "},{"$f":"B3","v":" "}]
[{"$f":"IF(přihlášky!D:D=\"L\",IF(přihlášky!C:C=\"Pokročilí\",přihlášky!A:A,\" \"),\" \")","v":" "},{"$f":"IF(přihlášky!D:D=\"L\",IF(přihlášky!C:C=\"Pokročilí\",přihlášky!B:B,\" \"),\" \")","v":" "},null,null,null,null,null," "," "]
[{"$f":"IF(přihlášky!D:D=\"L\",IF(přihlášky!C:C=\"Pokročilí\",přihlášky!A:A,\" \"),\" \")","v":" "},{"$f":"IF(přihlášky!D:D=\"L\",IF(přihlášky!C:C=\"Pokročilí\",přihlášky!B:B,\" \"),\" \")","v":" "},null,null,null,null,null," "," "]
[{"$f":"IF(přihlášky!D:D=\"L\",IF(přihlášky!C:C=\"Pokročilí\",přihlášky!A:A,\" \"),\" \")","v":" "},{"$f":"IF(přihlášky!D:D=\"L\",IF(přihlášky!C:C=\"Pokročilí\",přihlášky!B:B,\" \"),\" \")","v":" "},null,null,null,null,null," "," "]
[{"$f":"IF(přihlášky!D:D=\"L\",IF(přihlášky!C:C=\"Pokročilí\",přihlášky!A:A,\" \"),\" \")","v":" "},{"$f":"IF(přihlášky!D:D=\"L\",IF(přihlášky!C:C=\"Pokročilí\",přihlášky!B:B,\" \"),\" \")","v":" "},null,null,null,null,null," "," "]
[{"$f":"IF(přihlášky!D:D=\"L\",IF(přihlášky!C:C=\"Pokročilí\",přihlášky!A:A,\" \"),\" \")","v":" "},{"$f":"IF(přihlášky!D:D=\"L\",IF(přihlášky!C:C=\"Pokročilí\",přihlášky!B:B,\" \"),\" \")","v":" "},null,null,null,null,null," "," "]
[{"$f":"IF(přihlášky!D:D=\"L\",IF(přihlášky!C:C=\"Pokročilí\",přihlášky!A:A,\" \"),\" \")","v":" "},{"$f":"IF(přihlášky!D:D=\"L\",IF(přihlášky!C:C=\"Pokročilí\",přihlášky!B:B,\" \"),\" \")","v":" "},null,null,null,null,null," "," "]
[{"$f":"IF(přihlášky!D:D=\"L\",IF(přihlášky!C:C=\"Pokročilí\",přihlášky!A:A,\" \"),\" \")","v":"Antonín Motyčka"},{"$f":"IF(přihlášky!D:D=\"L\",IF(přihlášky!C:C=\"Pokročilí\",přihlášky!B:B,\" \"),\" \")","v":"Daffy z Lantiková"},null,null,null,null,null,"Antonín Motyčka","Daffy z Lantiková"]
[{"$f":"IF(přihlášky!D:D=\"L\",IF(přihlášky!C:C=\"Pokročilí\",přihlášky!A:A,\" \"),\" \")","v":" "},{"$f":"IF(přihlášky!D:D=\"L\",IF(přihlášky!C:C=\"Pokročilí\",přihlášky!B:B,\" \"),\" \")","v":" "},null,null,null,null,null," "," "]
[{"$f":"IF(přihlášky!D:D=\"L\",IF(přihlášky!C:C=\"Pokročilí\",přihlášky!A:A,\" \"),\" \")","v":" "},{"$f":"IF(přihlášky!D:D=\"L\",IF(přihlášky!C:C=\"Pokročilí\",přihlášky!B:B,\" \"),\" \")","v":" "},null,null,null,null,null," "," "]
[{"$f":"IF(přihlášky!D:D=\"L\",IF(přihlášky!C:C=\"Pokročilí\",přihlášky!A:A,\" \"),\" \")","v":" "},{"$f":"IF(přihlášky!D:D=\"L\",IF(přihlášky!C:C=\"Pokročilí\",přihlášky!B:B,\" \"),\" \")","v":" "},null,null,null,null,null," "," "]
[{"$f":"IF(přihlášky!D:D=\"L\",IF(přihlášky!C:C=\"Pokročilí\",přihlášky!A:A,\" \"),\" \")","v":" "},{"$f":"IF(přihlášky!D:D=\"L\",IF(přihlášky!C:C=\"Pokročilí\",přihlášky!B:B,\" \"),\" \")","v":" "},null,null,null,null,null," "," "]
[{"$f":"IF(přihlášky!D:D=\"L\",IF(přihlášky!C:C=\"Pokročilí\",přihlášky!A:A,\" \"),\" \")","v":" "},{"$f":"IF(přihlášky!D:D=\"L\",IF(přihlášky!C:C=\"Pokročilí\",přihlášky!B:B,\" \"),\" \")","v":" "},null,null,null,null,null," "," "]
[{"$f":"IF(přihlášky!D:D=\"L\",IF(přihlášky!C:C=\"Pokročilí\",přihlášky!A:A,\" \"),\" \")","v":" "},{"$f":"IF(přihlášky!D:D=\"L\",IF(přihlášky!C:C=\"Pokročilí\",přihlášky!B:B,\" \"),\" \")","v":" "},null,null,null,null,null," "," "]
[{"$f":"IF(přihlášky!D:D=\"L\",IF(přihlášky!C:C=\"Pokročilí\",přihlášky!A:A,\" \"),\" \")","v":" "},{"$f":"IF(přihlášky!D:D=\"L\",IF(přihlášky!C:C=\"Pokročilí\",přihlášky!B:B,\" \"),\" \")","v":" "},null,null,null,null,null," "," "]
[{"$f":"IF(přihlášky!D:D=\"L\",IF(přihlášky!C:C=\"Pokročilí\",přihlášky!A:A,\" \"),\" \")","v":" "},{"$f":"IF(přihlášky!D:D=\"L\",IF(přihlášky!C:C=\"Pokročilí\",přihlášky!B:B,\" \"),\" \")","v":" "},null,null,null,null,null," "," "]
[{"$f":"IF(přihlášky!D:D=\"L\",IF(přihlášky!C:C=\"Pokročilí\",přihlášky!A:A,\" \"),\" \")","v":"Zuzana Lochmanová"},{"$f":"IF(přihlášky!D:D=\"L\",IF(přihlášky!C:C=\"Pokročilí\",přihlášky!B:B,\" \"),\" \")","v":"Ennie"},null,null,null,null,null,"Zuzana Lochmanová","Ennie"]
[{"$f":"IF(přihlášky!D:D=\"L\",IF(přihlášky!C:C=\"Pokročilí\",přihlášky!A:A,\" \"),\" \")","v":" "},{"$f":"IF(přihlášky!D:D=\"L\",IF(přihlášky!C:C=\"Pokročilí\",přihlášky!B:B,\" \"),\" \")","v":" "},null,null,null,null,null," "," "]
[{"$f":"IF(přihlášky!D:D=\"L\",IF(přihlášky!C:C=\"Pokročilí\",přihlášky!A:A,\" \"),\" \")","v":" "},{"$f":"IF(přihlášky!D:D=\"L\",IF(přihlášky!C:C=\"Pokročilí\",přihlášky!B:B,\" \"),\" \")","v":" "},null,null,null,null,null," "," "]
[{"$f":"IF(přihlášky!D:D=\"L\",IF(přihlášky!C:C=\"Pokročilí\",přihlášky!A:A,\" \"),\" \")","v":"Olga Cermáková"},{"$f":"IF(přihlášky!D:D=\"L\",IF(přihlášky!C:C=\"Pokročilí\",přihlášky!B:B,\" \"),\" \")","v":"Larry"},null,null,null,null,null,"Olga Cermáková","Larry"]
[{"$f":"IF(přihlášky!D:D=\"L\",IF(přihlášky!C:C=\"Pokročilí\",přihlášky!A:A,\" \"),\" \")","v":" "},{"$f":"IF(přihlášky!D:D=\"L\",IF(přihlášky!C:C=\"Pokročilí\",přihlášky!B:B,\" \"),\" \")","v":" "},null,null,null,null,null," "," "]
[{"$f":"IF(přihlášky!D:D=\"L\",IF(přihlášky!C:C=\"Pokročilí\",přihlášky!A:A,\" \"),\" \")","v":" "},{"$f":"IF(přihlášky!D:D=\"L\",IF(přihlášky!C:C=\"Pokročilí\",přihlášky!B:B,\" \"),\" \")","v":" "},null,null,null,null,null," "," "]
[{"$f":"IF(přihlášky!D:D=\"L\",IF(přihlášky!C:C=\"Pokročilí\",přihlášky!A:A,\" \"),\" \")","v":" "},{"$f":"IF(přihlášky!D:D=\"L\",IF(přihlášky!C:C=\"Pokročilí\",přihlášky!B:B,\" \"),\" \")","v":" "},null,null,null,null,null," "," "]
[{"$f":"IF(přihlášky!D:D=\"L\",IF(přihlášky!C:C=\"Pokročilí\",přihlášky!A:A,\" \"),\" \")","v":"Alice Mládková"},{"$f":"IF(přihlášky!D:D=\"L\",IF(přihlášky!C:C=\"Pokročilí\",přihlášky!B:B,\" \"),\" \")","v":"Sccoty"},null,null,null,null,null,"Alice Mládková","Sccoty"]
[{"$f":"IF(přihlášky!D:D=\"L\",IF(přihlášky!C:C=\"Pokročilí\",přihlášky!A:A,\" \"),\" \")","v":"Alena Köhlerová"},{"$f":"IF(přihlášky!D:D=\"L\",IF(přihlášky!C:C=\"Pokročilí\",přihlášky!B:B,\" \"),\" \")","v":"AM I LISCHKA Yassalen"},null,null,null,null,null,"Alena Köhlerová","AM I LISCHKA Yassalen"]
[{"$f":"IF(přihlášky!D:D=\"L\",IF(přihlášky!C:C=\"Pokročilí\",přihlášky!A:A,\" \"),\" \")","v":" "},{"$f":"IF(přihlášky!D:D=\"L\",IF(přihlášky!C:C=\"Pokročilí\",přihlášky!B:B,\" \"),\" \")","v":" "},null,null,null,null,null," "," "]
[{"$f":"IF(přihlášky!D:D=\"L\",IF(přihlášky!C:C=\"Pokročilí\",přihlášky!A:A,\" \"),\" \")","v":" "},{"$f":"IF(přihlášky!D:D=\"L\",IF(přihlášky!C:C=\"Pokročilí\",přihlášky!B:B,\" \"),\" \")","v":" "},null,null,null,null,null," "," "]
[{"$f":"IF(přihlášky!D:D=\"L\",IF(přihlášky!C:C=\"Pokročilí\",přihlášky!A:A,\" \"),\" \")","v":" "},{"$f":"IF(přihlášky!D:D=\"L\",IF(přihlášky!C:C=\"Pokročilí\",přihlášky!B:B,\" \"),\" \")","v":" "},null,null,null,null,null," "," "]
[{"$f":"IF(přihlášky!D:D=\"L\",IF(přihlášky!C:C=\"Pokročilí\",přihlášky!A:A,\" \"),\" \")","v":" "},{"$f":"IF(přihlášky!D:D=\"L\",IF(přihlášky!C:C=\"Pokročilí\",přihlášky!B:B,\" \"),\" \")","v":" "},null,null,null,null,null," "," "]
[{"$f":"IF(přihlášky!D:D=\"L\",IF(přihlášky!C:C=\"Pokročilí\",přihlášky!A:A,\" \"),\" \")","v":"Anabela Vaňková"},{"$f":"IF(přihlášky!D:D=\"L\",IF(přihlášky!C:C=\"Pokročilí\",přihlášky!B:B,\" \"),\" \")","v":"Nexi"},null,null,null,null,null,"Anabela Vaňková","Nexi"]
[{"$f":"IF(přihlášky!D:D=\"L\",IF(přihlášky!C:C=\"Pokročilí\",přihlášky!A:A,\" \"),\" \")","v":" "},{"$f":"IF(přihlášky!D:D=\"L\",IF(přihlášky!C:C=\"Pokročilí\",přihlášky!B:B,\" \"),\" \")","v":" "},null,null,null,null,null," "," "]
[{"$f":"IF(přihlášky!D:D=\"L\",IF(přihlášky!C:C=\"Pokročilí\",přihlášky!A:A,\" \"),\" \")","v":" "},{"$f":"IF(přihlášky!D:D=\"L\",IF(přihlášky!C:C=\"Pokročilí\",přihlášky!B:B,\" \"),\" \")","v":" "},null,null,null,null,null," "," "]
[{"$f":"IF(přihlášky!D:D=\"L\",IF(přihlášky!C:C=\"Pokročilí\",přihlášky!A:A,\" \"),\" \")","v":" "},{"$f":"IF(přihlášky!D:D=\"L\",IF(přihlášky!C:C=\"Pokročilí\",přihlášky!B:B,\" \"),\" \")","v":" "},null,null,null,null,null," "," "]
[{"$f":"IF(přihlášky!D:D=\"L\",IF(přihlášky!C:C=\"Pokročilí\",přihlášky!A:A,\" \"),\" \")","v":" "},{"$f":"IF(přihlášky!D:D=\"L\",IF(přihlášky!C:C=\"Pokročilí\",přihlášky!B:B,\" \"),\" \")","v":" "},null,null,null,null,null," "," "]
[{"$f":"IF(přihlášky!D:D=\"L\",IF(přihlášky!C:C=\"Pokročilí\",přihlášky!A:A,\" \"),\" \")","v":" "},{"$f":"IF(přihlášky!D:D=\"L\",IF(přihlášky!C:C=\"Pokročilí\",přihlášky!B:B,\" \"),\" \")","v":" "},null,null,null,null,null," "," "]
[{"$f":"IF(přihlášky!D:D=\"L\",IF(přihlášky!C:C=\"Pokročilí\",přihlášky!A:A,\" \"),\" \")","v":" "},{"$f":"IF(přihlášky!D:D=\"L\",IF(přihlášky!C:C=\"Pokročilí\",přihlášky!B:B,\" \"),\" \")","v":" "},null,null,null,null,null," "," "]
[{"$f":"IF(přihlášky!D:D=\"L\",IF(přihlášky!C:C=\"Pokročilí\",přihlášky!A:A,\" \"),\" \")","v":" "},{"$f":"IF(přihlášky!D:D=\"L\",IF(přihlášky!C:C=\"Pokročilí\",přihlášky!B:B,\" \"),\" \")","v":" "},null,null,null,null,null," "," "]
[{"$f":"IF(přihlášky!D:D=\"L\",IF(přihlášky!C:C=\"Pokročilí\",přihlášky!A:A,\" \"),\" \")","v":" "},{"$f":"IF(přihlášky!D:D=\"L\",IF(přihlášky!C:C=\"Pokročilí\",přihlášky!B:B,\" \"),\" \")","v":" "},null,null,null,null,null," "," "]
[{"$f":"IF(přihlášky!D:D=\"L\",IF(přihlášky!C:C=\"Pokročilí\",přihlášky!A:A,\" \"),\" \")","v":" "},{"$f":"IF(přihlášky!D:D=\"L\",IF(přihlášky!C:C=\"Pokročilí\",přihlášky!B:B,\" \"),\" \")","v":" "},null,null,null,null,null," "," "]
[{"$f":"IF(přihlášky!D:D=\"L\",IF(přihlášky!C:C=\"Pokročilí\",přihlášky!A:A,\" \"),\" \")","v":"Lucie Linhartová"},{"$f":"IF(přihlášky!D:D=\"L\",IF(přihlášky!C:C=\"Pokročilí\",přihlášky!B:B,\" \"),\" \")","v":"Hoor Nazira Manwe"},null,null,null,null,null,"Lucie Linhartová","Hoor Nazira Manwe"]
[{"$f":"IF(přihlášky!D:D=\"L\",IF(přihlášky!C:C=\"Pokročilí\",přihlášky!A:A,\" \"),\" \")","v":" "},{"$f":"IF(přihlášky!D:D=\"L\",IF(přihlášky!C:C=\"Pokročilí\",přihlášky!B:B,\" \"),\" \")","v":" "},null,null,null,null,null," "," "]
[{"$f":"IF(přihlášky!D:D=\"L\",IF(přihlášky!C:C=\"Pokročilí\",přihlášky!A:A,\" \"),\" \")","v":"Zuzana Lochmanová"},{"$f":"IF(přihlášky!D:D=\"L\",IF(přihlášky!C:C=\"Pokročilí\",přihlášky!B:B,\" \"),\" \")","v":"Bailey"},null,null,null,null,null,"Zuzana Lochmanová","Bailey"]
[{"$f":"IF(přihlášky!D:D=\"L\",IF(přihlášky!C:C=\"Pokročilí\",přihlášky!A:A,\" \"),\" \")","v":" "},{"$f":"IF(přihlášky!D:D=\"L\",IF(přihlášky!C:C=\"Pokročilí\",přihlášky!B:B,\" \"),\" \")","v":" "},null,null,null,null,null," "," "]
[{"$f":"IF(přihlášky!D:D=\"L\",IF(přihlášky!C:C=\"Pokročilí\",přihlášky!A:A,\" \"),\" \")","v":" "},{"$f":"IF(přihlášky!D:D=\"L\",IF(přihlášky!C:C=\"Pokročilí\",přihlášky!B:B,\" \"),\" \")","v":" "},null,null,null,null,null," "," "]
[{"$f":"IF(přihlášky!D:D=\"L\",IF(přihlášky!C:C=\"Pokročilí\",přihlášky!A:A,\" \"),\" \")","v":" "},{"$f":"IF(přihlášky!D:D=\"L\",IF(přihlášky!C:C=\"Pokročilí\",přihlášky!B:B,\" \"),\" \")","v":" "},null,null,null,null,null," "," "]
[{"$f":"IF(přihlášky!D:D=\"L\",IF(přihlášky!C:C=\"Pokročilí\",přihlášky!A:A,\" \"),\" \")","v":" "},{"$f":"IF(přihlášky!D:D=\"L\",IF(přihlášky!C:C=\"Pokročilí\",přihlášky!B:B,\" \"),\" \")","v":" "},null,null,null,null,null," "," "]
[{"$f":"IF(přihlášky!D:D=\"L\",IF(přihlášky!C:C=\"Pokročilí\",přihlášky!A:A,\" \"),\" \")","v":" "},{"$f":"IF(přihlášky!D:D=\"L\",IF(přihlášky!C:C=\"Pokročilí\",přihlášky!B:B,\" \"),\" \")","v":" "},null,null,null,null,null," "," "]
[{"$f":"IF(přihlášky!D:D=\"L\",IF(přihlášky!C:C=\"Pokročilí\",přihlášky!A:A,\" \"),\" \")","v":" "},{"$f":"IF(přihlášky!D:D=\"L\",IF(přihlášky!C:C=\"Pokročilí\",přihlášky!B:B,\" \"),\" \")","v":" "},null,null,null,null,null," "," "]
[{"$f":"IF(přihlášky!D:D=\"L\",IF(přihlášky!C:C=\"Pokročilí\",přihlášky!A:A,\" \"),\" \")","v":" "},{"$f":"IF(přihlášky!D:D=\"L\",IF(přihlášky!C:C=\"Pokročilí\",přihlášky!B:B,\" \"),\" \")","v":" "},null,null,null,null,null," "," "]
[{"$f":"IF(přihlášky!D:D=\"L\",IF(přihlášky!C:C=\"Pokročilí\",přihlášky!A:A,\" \"),\" \")","v":" "},{"$f":"IF(přihlášky!D:D=\"L\",IF(přihlášky!C:C=\"Pokročilí\",přihlášky!B:B,\" \"),\" \")","v":" "},null,null,null,null,null," "," "]
[{"$f":"IF(přihlášky!D:D=\"L\",IF(přihlášky!C:C=\"Pokročilí\",přihlášky!A:A,\" \"),\" \")","v":" "},{"$f":"IF(přihlášky!D:D=\"L\",IF(přihlášky!C:C=\"Pokročilí\",přihlášky!B:B,\" \"),\" \")","v":" "},null,null,null,null,null," "," "]
[{"$f":"IF(přihlášky!D:D=\"L\",IF(přihlášky!C:C=\"Pokročilí\",přihlášky!A:A,\" \"),\" \")","v":" "},{"$f":"IF(přihlášky!D:D=\"L\",IF(přihlášky!C:C=\"Pokročilí\",přihlášky!B:B,\" \"),\" \")","v":" "},null,null,null,null,null," "," "]
[{"$f":"IF(přihlášky!D:D=\"L\",IF(přihlášky!C:C=\"Pokročilí\",přihlášky!A:A,\" \"),\" \")","v":" "},{"$f":"IF(přihlášky!D:D=\"L\",IF(přihlášky!C:C=\"Pokročilí\",přihlášky!B:B,\" \"),\" \")","v":" "},null,null,null,null,null," "," "]

{"sheet":"Pokročilí M","index":5,"n_rows":55,"n_cols":13,"rows_kept":55,"cut":false,"hidden":false,"merged":[]}
["Jméno","Pes","Čas","Chyby, odmítnutí","DISK","Umístění",null,"Jméno","Pes","Čas","Chyby, odmítnutí","DISK","Umístění"]
[{"$f":"IF(přihlášky!D:D=\"M\",IF(přihlášky!C:C=\"Pokročilí\",přihlášky!A:A,\" \"),\" \")","v":" "},{"$f":"IF(přihlášky!D:D=\"M\",IF(přihlášky!C:C=\"Pokročilí\",přihlášky!B:B,\" \"),\" \")","v":" "},null,null,null,null,null,{"$f":"A2","v":" "},{"$f":"B2","v":" "}]
[{"$f":"IF(přihlášky!D:D=\"M\",IF(přihlášky!C:C=\"Pokročilí\",přihlášky!A:A,\" \"),\" \")","v":" "},{"$f":"IF(přihlášky!D:D=\"M\",IF(přihlášky!C:C=\"Pokročilí\",přihlášky!B:B,\" \"),\" \")","v":" "},null,null,null,null,null,{"$f":"A3","v":" "},{"$f":"B3","v":" "}]
[{"$f":"IF(přihlášky!D:D=\"M\",IF(přihlášky!C:C=\"Pokročilí\",přihlášky!A:A,\" \"),\" \")","v":" "},{"$f":"IF(přihlášky!D:D=\"M\",IF(přihlášky!C:C=\"Pokročilí\",přihlášky!B:B,\" \"),\" \")","v":" "},null,null,null,null,null," "," "]
[{"$f":"IF(přihlášky!D:D=\"M\",IF(přihlášky!C:C=\"Pokročilí\",přihlášky!A:A,\" \"),\" \")","v":" "},{"$f":"IF(přihlášky!D:D=\"M\",IF(přihlášky!C:C=\"Pokročilí\",přihlášky!B:B,\" \"),\" \")","v":" "},null,null,null,null,null," "," "]
[{"$f":"IF(přihlášky!D:D=\"M\",IF(přihlášky!C:C=\"Pokročilí\",přihlášky!A:A,\" \"),\" \")","v":" "},{"$f":"IF(přihlášky!D:D=\"M\",IF(přihlášky!C:C=\"Pokročilí\",přihlášky!B:B,\" \"),\" \")","v":" "},null,null,null,null,null," "," "]
[{"$f":"IF(přihlášky!D:D=\"M\",IF(přihlášky!C:C=\"Pokročilí\",přihlášky!A:A,\" \"),\" \")","v":" "},{"$f":"IF(přihlášky!D:D=\"M\",IF(přihlášky!C:C=\"Pokročilí\",přihlášky!B:B,\" \"),\" \")","v":" "},null,null,null,null,null," "," "]
[{"$f":"IF(přihlášky!D:D=\"M\",IF(přihlášky!C:C=\"Pokročilí\",přihlášky!A:A,\" \"),\" \")","v":" "},{"$f":"IF(přihlášky!D:D=\"M\",IF(přihlášky!C:C=\"Pokročilí\",přihlášky!B:B,\" \"),\" \")","v":" "},null,null,null,null,null," "," "]
[{"$f":"IF(přihlášky!D:D=\"M\",IF(přihlášky!C:C=\"Pokročilí\",přihlášky!A:A,\" \"),\" \")","v":" "},{"$f":"IF(přihlášky!D:D=\"M\",IF(přihlášky!C:C=\"Pokročilí\",přihlášky!B:B,\" \"),\" \")","v":" "},null,null,null,null,null," "," "]
[{"$f":"IF(přihlášky!D:D=\"M\",IF(přihlášky!C:C=\"Pokročilí\",přihlášky!A:A,\" \"),\" \")","v":" "},{"$f":"IF(přihlášky!D:D=\"M\",IF(přihlášky!C:C=\"Pokročilí\",přihlášky!B:B,\" \"),\" \")","v":" "},null,null,null,null,null," "," "]
[{"$f":"IF(přihlášky!D:D=\"M\",IF(přihlášky!C:C=\"Pokročilí\",přihlášky!A:A,\" \"),\" \")","v":" "},{"$f":"IF(přihlášky!D:D=\"M\",IF(přihlášky!C:C=\"Pokročilí\",přihlášky!B:B,\" \"),\" \")","v":" "},null,null,null,null,null," "," "]
[{"$f":"IF(přihlášky!D:D=\"M\",IF(přihlášky!C:C=\"Pokročilí\",přihlášky!A:A,\" \"),\" \")","v":" "},{"$f":"IF(přihlášky!D:D=\"M\",IF(přihlášky!C:C=\"Pokročilí\",přihlášky!B:B,\" \"),\" \")","v":" "},null,null,null,null,null," "," "]
[{"$f":"IF(přihlášky!D:D=\"M\",IF(přihlášky!C:C=\"Pokročilí\",přihlášky!A:A,\" \"),\" \")","v":" "},{"$f":"IF(přihlášky!D:D=\"M\",IF(přihlášky!C:C=\"Pokročilí\",přihlášky!B:B,\" \"),\" \")","v":" "},null,null,null,null,null," "," "]
[{"$f":"IF(přihlášky!D:D=\"M\",IF(přihlášky!C:C=\"Pokročilí\",přihlášky!A:A,\" \"),\" \")","v":" "},{"$f":"IF(přihlášky!D:D=\"M\",IF(přihlášky!C:C=\"Pokročilí\",přihlášky!B:B,\" \"),\" \")","v":" "},null,null,null,null,null," "," "]
[{"$f":"IF(přihlášky!D:D=\"M\",IF(přihlášky!C:C=\"Pokročilí\",přihlášky!A:A,\" \"),\" \")","v":" "},{"$f":"IF(přihlášky!D:D=\"M\",IF(přihlášky!C:C=\"Pokročilí\",přihlášky!B:B,\" \"),\" \")","v":" "},null,null,null,null,null," "," "]
[{"$f":"IF(přihlášky!D:D=\"M\",IF(přihlášky!C:C=\"Pokročilí\",přihlášky!A:A,\" \"),\" \")","v":" "},{"$f":"IF(přihlášky!D:D=\"M\",IF(přihlášky!C:C=\"Pokročilí\",přihlášky!B:B,\" \"),\" \")","v":" "},null,null,null,null,null," "," "]
[{"$f":"IF(přihlášky!D:D=\"M\",IF(přihlášky!C:C=\"Pokročilí\",přihlášky!A:A,\" \"),\" \")","v":" "},{"$f":"IF(přihlášky!D:D=\"M\",IF(přihlášky!C:C=\"Pokročilí\",přihlášky!B:B,\" \"),\" \")","v":" "},null,null,null,null,null," "," "]
[{"$f":"IF(přihlášky!D:D=\"M\",IF(přihlášky!C:C=\"Pokročilí\",přihlášky!A:A,\" \"),\" \")","v":" "},{"$f":"IF(přihlášky!D:D=\"M\",IF(přihlášky!C:C=\"Pokročilí\",přihlášky!B:B,\" \"),\" \")","v":" "},null,null,null,null,null," "," "]
[{"$f":"IF(přihlášky!D:D=\"M\",IF(přihlášky!C:C=\"Pokročilí\",přihlášky!A:A,\" \"),\" \")","v":" "},{"$f":"IF(přihlášky!D:D=\"M\",IF(přihlášky!C:C=\"Pokročilí\",přihlášky!B:B,\" \"),\" \")","v":" "},null,null,null,null,null," "," "]
[{"$f":"IF(přihlášky!D:D=\"M\",IF(přihlášky!C:C=\"Pokročilí\",přihlášky!A:A,\" \"),\" \")","v":" "},{"$f":"IF(přihlášky!D:D=\"M\",IF(přihlášky!C:C=\"Pokročilí\",přihlášky!B:B,\" \"),\" \")","v":" "},null,null,null,null,null," "," "]
[{"$f":"IF(přihlášky!D:D=\"M\",IF(přihlášky!C:C=\"Pokročilí\",přihlášky!A:A,\" \"),\" \")","v":" "},{"$f":"IF(přihlášky!D:D=\"M\",IF(přihlášky!C:C=\"Pokročilí\",přihlášky!B:B,\" \"),\" \")","v":" "},null,null,null,null,null," "," "]
[{"$f":"IF(přihlášky!D:D=\"M\",IF(přihlášky!C:C=\"Pokročilí\",přihlášky!A:A,\" \"),\" \")","v":" "},{"$f":"IF(přihlášky!D:D=\"M\",IF(přihlášky!C:C=\"Pokročilí\",přihlášky!B:B,\" \"),\" \")","v":" "},null,null,null,null,null," "," "]
[{"$f":"IF(přihlášky!D:D=\"M\",IF(přihlášky!C:C=\"Pokročilí\",přihlášky!A:A,\" \"),\" \")","v":" "},{"$f":"IF(přihlášky!D:D=\"M\",IF(přihlášky!C:C=\"Pokročilí\",přihlášky!B:B,\" \"),\" \")","v":" "},null,null,null,null,null," "," "]
[{"$f":"IF(přihlášky!D:D=\"M\",IF(přihlášky!C:C=\"Pokročilí\",přihlášky!A:A,\" \"),\" \")","v":" "},{"$f":"IF(přihlášky!D:D=\"M\",IF(přihlášky!C:C=\"Pokročilí\",přihlášky!B:B,\" \"),\" \")","v":" "},null,null,null,null,null," "," "]
[{"$f":"IF(přihlášky!D:D=\"M\",IF(přihlášky!C:C=\"Pokročilí\",přihlášky!A:A,\" \"),\" \")","v":" "},{"$f":"IF(přihlášky!D:D=\"M\",IF(přihlášky!C:C=\"Pokročilí\",přihlášky!B:B,\" \"),\" \")","v":" "},null,null,null,null,null," "," "]
[{"$f":"IF(přihlášky!D:D=\"M\",IF(přihlášky!C:C=\"Pokročilí\",přihlášky!A:A,\" \"),\" \")","v":" "},{"$f":"IF(přihlášky!D:D=\"M\",IF(přihlášky!C:C=\"Pokročilí\",přihlášky!B:B,\" \"),\" \")","v":" "},null,null,null,null,null," "," "]
[{"$f":"IF(přihlášky!D:D=\"M\",IF(přihlášky!C:C=\"Pokročilí\",přihlášky!A:A,\" \"),\" \")","v":" "},{"$f":"IF(přihlášky!D:D=\"M\",IF(přihlášky!C:C=\"Pokročilí\",přihlášky!B:B,\" \"),\" \")","v":" "},null,null,null,null,null," "," "]
[{"$f":"IF(přihlášky!D:D=\"M\",IF(přihlášky!C:C=\"Pokročilí\",přihlášky!A:A,\" \"),\" \")","v":" "},{"$f":"IF(přihlášky!D:D=\"M\",IF(přihlášky!C:C=\"Pokročilí\",přihlášky!B:B,\" \"),\" \")","v":" "},null,null,null,null,null," "," "]
[{"$f":"IF(přihlášky!D:D=\"M\",IF(přihlášky!C:C=\"Pokročilí\",přihlášky!A:A,\" \"),\" \")","v":" "},{"$f":"IF(přihlášky!D:D=\"M\",IF(přihlášky!C:C=\"Pokročilí\",přihlášky!B:B,\" \"),\" \")","v":" "},null,null,null,null,null," "," "]
[{"$f":"IF(přihlášky!D:D=\"M\",IF(přihlášky!C:C=\"Pokročilí\",přihlášky!A:A,\" \"),\" \")","v":" "},{"$f":"IF(přihlášky!D:D=\"M\",IF(přihlášky!C:C=\"Pokročilí\",přihlášky!B:B,\" \"),\" \")","v":" "},null,null,null,null,null," "," "]
[{"$f":"IF(přihlášky!D:D=\"M\",IF(přihlášky!C:C=\"Pokročilí\",přihlášky!A:A,\" \"),\" \")","v":" "},{"$f":"IF(přihlášky!D:D=\"M\",IF(přihlášky!C:C=\"Pokročilí\",přihlášky!B:B,\" \"),\" \")","v":" "},null,null,null,null,null," "," "]
[{"$f":"IF(přihlášky!D:D=\"M\",IF(přihlášky!C:C=\"Pokročilí\",přihlášky!A:A,\" \"),\" \")","v":" "},{"$f":"IF(přihlášky!D:D=\"M\",IF(přihlášky!C:C=\"Pokročilí\",přihlášky!B:B,\" \"),\" \")","v":" "},null,null,null,null,null," "," "]
[{"$f":"IF(přihlášky!D:D=\"M\",IF(přihlášky!C:C=\"Pokročilí\",přihlášky!A:A,\" \"),\" \")","v":" "},{"$f":"IF(přihlášky!D:D=\"M\",IF(přihlášky!C:C=\"Pokročilí\",přihlášky!B:B,\" \"),\" \")","v":" "},null,null,null,null,null," "," "]
[{"$f":"IF(přihlášky!D:D=\"M\",IF(přihlášky!C:C=\"Pokročilí\",přihlášky!A:A,\" \"),\" \")","v":" "},{"$f":"IF(přihlášky!D:D=\"M\",IF(přihlášky!C:C=\"Pokročilí\",přihlášky!B:B,\" \"),\" \")","v":" "},null,null,null,null,null," "," "]
[{"$f":"IF(přihlášky!D:D=\"M\",IF(přihlášky!C:C=\"Pokročilí\",přihlášky!A:A,\" \"),\" \")","v":" "},{"$f":"IF(přihlášky!D:D=\"M\",IF(přihlášky!C:C=\"Pokročilí\",přihlášky!B:B,\" \"),\" \")","v":" "},null,null,null,null,null," "," "]
[{"$f":"IF(přihlášky!D:D=\"M\",IF(přihlášky!C:C=\"Pokročilí\",přihlášky!A:A,\" \"),\" \")","v":" "},{"$f":"IF(přihlášky!D:D=\"M\",IF(přihlášky!C:C=\"Pokročilí\",přihlášky!B:B,\" \"),\" \")","v":" "},null,null,null,null,null," "," "]
[{"$f":"IF(přihlášky!D:D=\"M\",IF(přihlášky!C:C=\"Pokročilí\",přihlášky!A:A,\" \"),\" \")","v":" "},{"$f":"IF(přihlášky!D:D=\"M\",IF(přihlášky!C:C=\"Pokročilí\",přihlášky!B:B,\" \"),\" \")","v":" "},null,null,null,null,null," "," "]
[{"$f":"IF(přihlášky!D:D=\"M\",IF(přihlášky!C:C=\"Pokročilí\",přihlášky!A:A,\" \"),\" \")","v":" "},{"$f":"IF(přihlášky!D:D=\"M\",IF(přihlášky!C:C=\"Pokročilí\",přihlášky!B:B,\" \"),\" \")","v":" "},null,null,null,null,null," "," "]
[{"$f":"IF(přihlášky!D:D=\"M\",IF(přihlášky!C:C=\"Pokročilí\",přihlášky!A:A,\" \"),\" \")","v":" "},{"$f":"IF(přihlášky!D:D=\"M\",IF(přihlášky!C:C=\"Pokročilí\",přihlášky!B:B,\" \"),\" \")","v":" "},null,null,null,null,null," "," "]
[{"$f":"IF(přihlášky!D:D=\"M\",IF(přihlášky!C:C=\"Pokročilí\",přihlášky!A:A,\" \"),\" \")","v":" "},{"$f":"IF(přihlášky!D:D=\"M\",IF(přihlášky!C:C=\"Pokročilí\",přihlášky!B:B,\" \"),\" \")","v":" "},null,null,null,null,null," "," "]
[{"$f":"IF(přihlášky!D:D=\"M\",IF(přihlášky!C:C=\"Pokročilí\",přihlášky!A:A,\" \"),\" \")","v":" "},{"$f":"IF(přihlášky!D:D=\"M\",IF(přihlášky!C:C=\"Pokročilí\",přihlášky!B:B,\" \"),\" \")","v":" "},null,null,null,null,null," "," "]
[{"$f":"IF(přihlášky!D:D=\"M\",IF(přihlášky!C:C=\"Pokročilí\",přihlášky!A:A,\" \"),\" \")","v":" "},{"$f":"IF(přihlášky!D:D=\"M\",IF(přihlášky!C:C=\"Pokročilí\",přihlášky!B:B,\" \"),\" \")","v":" "},null,null,null,null,null," "," "]
[{"$f":"IF(přihlášky!D:D=\"M\",IF(přihlášky!C:C=\"Pokročilí\",přihlášky!A:A,\" \"),\" \")","v":"Klára Velíková"},{"$f":"IF(přihlášky!D:D=\"M\",IF(přihlášky!C:C=\"Pokročilí\",přihlášky!B:B,\" \"),\" \")","v":"Woody"},null,null,null,null,null,"Klára Velíková","Woody"]
[{"$f":"IF(přihlášky!D:D=\"M\",IF(přihlášky!C:C=\"Pokročilí\",přihlášky!A:A,\" \"),\" \")","v":" "},{"$f":"IF(přihlášky!D:D=\"M\",IF(přihlášky!C:C=\"Pokročilí\",přihlášky!B:B,\" \"),\" \")","v":" "},null,null,null,null,null," "," "]
[{"$f":"IF(přihlášky!D:D=\"M\",IF(přihlášky!C:C=\"Pokročilí\",přihlášky!A:A,\" \"),\" \")","v":" "},{"$f":"IF(přihlášky!D:D=\"M\",IF(přihlášky!C:C=\"Pokročilí\",přihlášky!B:B,\" \"),\" \")","v":" "},null,null,null,null,null," "," "]
[{"$f":"IF(přihlášky!D:D=\"M\",IF(přihlášky!C:C=\"Pokročilí\",přihlášky!A:A,\" \"),\" \")","v":" "},{"$f":"IF(přihlášky!D:D=\"M\",IF(přihlášky!C:C=\"Pokročilí\",přihlášky!B:B,\" \"),\" \")","v":" "},null,null,null,null,null," "," "]
[{"$f":"IF(přihlášky!D:D=\"M\",IF(přihlášky!C:C=\"Pokročilí\",přihlášky!A:A,\" \"),\" \")","v":" "},{"$f":"IF(přihlášky!D:D=\"M\",IF(přihlášky!C:C=\"Pokročilí\",přihlášky!B:B,\" \"),\" \")","v":" "},null,null,null,null,null," "," "]
[{"$f":"IF(přihlášky!D:D=\"M\",IF(přihlášky!C:C=\"Pokročilí\",přihlášky!A:A,\" \"),\" \")","v":" "},{"$f":"IF(přihlášky!D:D=\"M\",IF(přihlášky!C:C=\"Pokročilí\",přihlášky!B:B,\" \"),\" \")","v":" "},null,null,null,null,null," "," "]
[{"$f":"IF(přihlášky!D:D=\"M\",IF(přihlášky!C:C=\"Pokročilí\",přihlášky!A:A,\" \"),\" \")","v":" "},{"$f":"IF(přihlášky!D:D=\"M\",IF(přihlášky!C:C=\"Pokročilí\",přihlášky!B:B,\" \"),\" \")","v":" "},null,null,null,null,null," "," "]
[{"$f":"IF(přihlášky!D:D=\"M\",IF(přihlášky!C:C=\"Pokročilí\",přihlášky!A:A,\" \"),\" \")","v":" "},{"$f":"IF(přihlášky!D:D=\"M\",IF(přihlášky!C:C=\"Pokročilí\",přihlášky!B:B,\" \"),\" \")","v":" "},null,null,null,null,null," "," "]
[{"$f":"IF(přihlášky!D:D=\"M\",IF(přihlášky!C:C=\"Pokročilí\",přihlášky!A:A,\" \"),\" \")","v":" "},{"$f":"IF(přihlášky!D:D=\"M\",IF(přihlášky!C:C=\"Pokročilí\",přihlášky!B:B,\" \"),\" \")","v":" "},null,null,null,null,null," "," "]
[{"$f":"IF(přihlášky!D:D=\"M\",IF(přihlášky!C:C=\"Pokročilí\",přihlášky!A:A,\" \"),\" \")","v":" "},{"$f":"IF(přihlášky!D:D=\"M\",IF(přihlášky!C:C=\"Pokročilí\",přihlášky!B:B,\" \"),\" \")","v":" "},null,null,null,null,null," "," "]
[{"$f":"IF(přihlášky!D:D=\"M\",IF(přihlášky!C:C=\"Pokročilí\",přihlášky!A:A,\" \"),\" \")","v":" "},{"$f":"IF(přihlášky!D:D=\"M\",IF(přihlášky!C:C=\"Pokročilí\",přihlášky!B:B,\" \"),\" \")","v":" "},null,null,null,null,null," "," "]
[{"$f":"IF(přihlášky!D:D=\"M\",IF(přihlášky!C:C=\"Pokročilí\",přihlášky!A:A,\" \"),\" \")","v":" "},{"$f":"IF(přihlášky!D:D=\"M\",IF(přihlášky!C:C=\"Pokročilí\",přihlášky!B:B,\" \"),\" \")","v":" "},null,null,null,null,null," "," "]
[{"$f":"IF(přihlášky!D:D=\"M\",IF(přihlášky!C:C=\"Pokročilí\",přihlášky!A:A,\" \"),\" \")","v":" "},{"$f":"IF(přihlášky!D:D=\"M\",IF(přihlášky!C:C=\"Pokročilí\",přihlášky!B:B,\" \"),\" \")","v":" "},null,null,null,null,null," "," "]

{"sheet":"Pokročilí S","index":6,"n_rows":55,"n_cols":13,"rows_kept":55,"cut":false,"hidden":false,"merged":[]}
["Jméno","Pes","Čas","Chyby, odmítnutí","DISK","Umístění",null,"Jméno","Pes","Čas","Chyby, odmítnutí","DISK","Umístění"]
[{"$f":"IF(přihlášky!D:D=\"S\",IF(přihlášky!C:C=\"Pokročilí\",přihlášky!A:A,\" \"),\" \")","v":" "},{"$f":"IF(přihlášky!D:D=\"S\",IF(přihlášky!C:C=\"Pokročilí\",přihlášky!B:B,\" \"),\" \")","v":" "},null,null,null,null,null,{"$f":"A2","v":" "},{"$f":"B2","v":" "}]
[{"$f":"IF(přihlášky!D:D=\"S\",IF(přihlášky!C:C=\"Pokročilí\",přihlášky!A:A,\" \"),\" \")","v":" "},{"$f":"IF(přihlášky!D:D=\"S\",IF(přihlášky!C:C=\"Pokročilí\",přihlášky!B:B,\" \"),\" \")","v":" "},null,null,null,null,null,{"$f":"A3","v":" "},{"$f":"B3","v":" "}]
[{"$f":"IF(přihlášky!D:D=\"S\",IF(přihlášky!C:C=\"Pokročilí\",přihlášky!A:A,\" \"),\" \")","v":" "},{"$f":"IF(přihlášky!D:D=\"S\",IF(přihlášky!C:C=\"Pokročilí\",přihlášky!B:B,\" \"),\" \")","v":" "},null,null,null,null,null," "," "]
[{"$f":"IF(přihlášky!D:D=\"S\",IF(přihlášky!C:C=\"Pokročilí\",přihlášky!A:A,\" \"),\" \")","v":" "},{"$f":"IF(přihlášky!D:D=\"S\",IF(přihlášky!C:C=\"Pokročilí\",přihlášky!B:B,\" \"),\" \")","v":" "},null,null,null,null,null," "," "]
[{"$f":"IF(přihlášky!D:D=\"S\",IF(přihlášky!C:C=\"Pokročilí\",přihlášky!A:A,\" \"),\" \")","v":" "},{"$f":"IF(přihlášky!D:D=\"S\",IF(přihlášky!C:C=\"Pokročilí\",přihlášky!B:B,\" \"),\" \")","v":" "},null,null,null,null,null," "," "]
[{"$f":"IF(přihlášky!D:D=\"S\",IF(přihlášky!C:C=\"Pokročilí\",přihlášky!A:A,\" \"),\" \")","v":" "},{"$f":"IF(přihlášky!D:D=\"S\",IF(přihlášky!C:C=\"Pokročilí\",přihlášky!B:B,\" \"),\" \")","v":" "},null,null,null,null,null," "," "]
[{"$f":"IF(přihlášky!D:D=\"S\",IF(přihlášky!C:C=\"Pokročilí\",přihlášky!A:A,\" \"),\" \")","v":" "},{"$f":"IF(přihlášky!D:D=\"S\",IF(přihlášky!C:C=\"Pokročilí\",přihlášky!B:B,\" \"),\" \")","v":" "},null,null,null,null,null," "," "]
[{"$f":"IF(přihlášky!D:D=\"S\",IF(přihlášky!C:C=\"Pokročilí\",přihlášky!A:A,\" \"),\" \")","v":" "},{"$f":"IF(přihlášky!D:D=\"S\",IF(přihlášky!C:C=\"Pokročilí\",přihlášky!B:B,\" \"),\" \")","v":" "},null,null,null,null,null," "," "]
[{"$f":"IF(přihlášky!D:D=\"S\",IF(přihlášky!C:C=\"Pokročilí\",přihlášky!A:A,\" \"),\" \")","v":" "},{"$f":"IF(přihlášky!D:D=\"S\",IF(přihlášky!C:C=\"Pokročilí\",přihlášky!B:B,\" \"),\" \")","v":" "},null,null,null,null,null," "," "]
[{"$f":"IF(přihlášky!D:D=\"S\",IF(přihlášky!C:C=\"Pokročilí\",přihlášky!A:A,\" \"),\" \")","v":" "},{"$f":"IF(přihlášky!D:D=\"S\",IF(přihlášky!C:C=\"Pokročilí\",přihlášky!B:B,\" \"),\" \")","v":" "},null,null,null,null,null," "," "]
[{"$f":"IF(přihlášky!D:D=\"S\",IF(přihlášky!C:C=\"Pokročilí\",přihlášky!A:A,\" \"),\" \")","v":" "},{"$f":"IF(přihlášky!D:D=\"S\",IF(přihlášky!C:C=\"Pokročilí\",přihlášky!B:B,\" \"),\" \")","v":" "},null,null,null,null,null," "," "]
[{"$f":"IF(přihlášky!D:D=\"S\",IF(přihlášky!C:C=\"Pokročilí\",přihlášky!A:A,\" \"),\" \")","v":"Diana Vyskočilová"},{"$f":"IF(přihlášky!D:D=\"S\",IF(přihlášky!C:C=\"Pokročilí\",přihlášky!B:B,\" \"),\" \")","v":"Trim"},null,null,null,null,null,"Diana Vyskočilová","Trim"]
[{"$f":"IF(přihlášky!D:D=\"S\",IF(přihlášky!C:C=\"Pokročilí\",přihlášky!A:A,\" \"),\" \")","v":" "},{"$f":"IF(přihlášky!D:D=\"S\",IF(přihlášky!C:C=\"Pokročilí\",přihlášky!B:B,\" \"),\" \")","v":" "},null,null,null,null,null," "," "]
[{"$f":"IF(přihlášky!D:D=\"S\",IF(přihlášky!C:C=\"Pokročilí\",přihlášky!A:A,\" \"),\" \")","v":" "},{"$f":"IF(přihlášky!D:D=\"S\",IF(přihlášky!C:C=\"Pokročilí\",přihlášky!B:B,\" \"),\" \")","v":" "},null,null,null,null,null," "," "]
[{"$f":"IF(přihlášky!D:D=\"S\",IF(přihlášky!C:C=\"Pokročilí\",přihlášky!A:A,\" \"),\" \")","v":" "},{"$f":"IF(přihlášky!D:D=\"S\",IF(přihlášky!C:C=\"Pokročilí\",přihlášky!B:B,\" \"),\" \")","v":" "},null,null,null,null,null," "," "]
[{"$f":"IF(přihlášky!D:D=\"S\",IF(přihlášky!C:C=\"Pokročilí\",přihlášky!A:A,\" \"),\" \")","v":"Romana Krunclová"},{"$f":"IF(přihlášky!D:D=\"S\",IF(přihlášky!C:C=\"Pokročilí\",přihlášky!B:B,\" \"),\" \")","v":"Babeta (Babu)"},null,null,null,null,null,"Romana Krunclová","Babeta (Babu)"]
[{"$f":"IF(přihlášky!D:D=\"S\",IF(přihlášky!C:C=\"Pokročilí\",přihlášky!A:A,\" \"),\" \")","v":" "},{"$f":"IF(přihlášky!D:D=\"S\",IF(přihlášky!C:C=\"Pokročilí\",přihlášky!B:B,\" \"),\" \")","v":" "},null,null,null,null,null," "," "]
[{"$f":"IF(přihlášky!D:D=\"S\",IF(přihlášky!C:C=\"Pokročilí\",přihlášky!A:A,\" \"),\" \")","v":" "},{"$f":"IF(přihlášky!D:D=\"S\",IF(přihlášky!C:C=\"Pokročilí\",přihlášky!B:B,\" \"),\" \")","v":" "},null,null,null,null,null," "," "]
[{"$f":"IF(přihlášky!D:D=\"S\",IF(přihlášky!C:C=\"Pokročilí\",přihlášky!A:A,\" \"),\" \")","v":" "},{"$f":"IF(přihlášky!D:D=\"S\",IF(přihlášky!C:C=\"Pokročilí\",přihlášky!B:B,\" \"),\" \")","v":" "},null,null,null,null,null," "," "]
[{"$f":"IF(přihlášky!D:D=\"S\",IF(přihlášky!C:C=\"Pokročilí\",přihlášky!A:A,\" \"),\" \")","v":" "},{"$f":"IF(přihlášky!D:D=\"S\",IF(přihlášky!C:C=\"Pokročilí\",přihlášky!B:B,\" \"),\" \")","v":" "},null,null,null,null,null," "," "]
[{"$f":"IF(přihlášky!D:D=\"S\",IF(přihlášky!C:C=\"Pokročilí\",přihlášky!A:A,\" \"),\" \")","v":" "},{"$f":"IF(přihlášky!D:D=\"S\",IF(přihlášky!C:C=\"Pokročilí\",přihlášky!B:B,\" \"),\" \")","v":" "},null,null,null,null,null," "," "]
[{"$f":"IF(přihlášky!D:D=\"S\",IF(přihlášky!C:C=\"Pokročilí\",přihlášky!A:A,\" \"),\" \")","v":" "},{"$f":"IF(přihlášky!D:D=\"S\",IF(přihlášky!C:C=\"Pokročilí\",přihlášky!B:B,\" \"),\" \")","v":" "},null,null,null,null,null," "," "]
[{"$f":"IF(přihlášky!D:D=\"S\",IF(přihlášky!C:C=\"Pokročilí\",přihlášky!A:A,\" \"),\" \")","v":" "},{"$f":"IF(přihlášky!D:D=\"S\",IF(přihlášky!C:C=\"Pokročilí\",přihlášky!B:B,\" \"),\" \")","v":" "},null,null,null,null,null," "," "]
[{"$f":"IF(přihlášky!D:D=\"S\",IF(přihlášky!C:C=\"Pokročilí\",přihlášky!A:A,\" \"),\" \")","v":"Radka Klosová"},{"$f":"IF(přihlášky!D:D=\"S\",IF(přihlášky!C:C=\"Pokročilí\",přihlášky!B:B,\" \"),\" \")","v":"Jasper"},null,null,null,null,null,"Radka Klosová","Jasper"]
[{"$f":"IF(přihlášky!D:D=\"S\",IF(přihlášky!C:C=\"Pokročilí\",přihlášky!A:A,\" \"),\" \")","v":" "},{"$f":"IF(přihlášky!D:D=\"S\",IF(přihlášky!C:C=\"Pokročilí\",přihlášky!B:B,\" \"),\" \")","v":" "},null,null,null,null,null," "," "]
[{"$f":"IF(přihlášky!D:D=\"S\",IF(přihlášky!C:C=\"Pokročilí\",přihlášky!A:A,\" \"),\" \")","v":" "},{"$f":"IF(přihlášky!D:D=\"S\",IF(přihlášky!C:C=\"Pokročilí\",přihlášky!B:B,\" \"),\" \")","v":" "},null,null,null,null,null," "," "]
[{"$f":"IF(přihlášky!D:D=\"S\",IF(přihlášky!C:C=\"Pokročilí\",přihlášky!A:A,\" \"),\" \")","v":"Tereza Hospodářská"},{"$f":"IF(přihlášky!D:D=\"S\",IF(přihlášky!C:C=\"Pokročilí\",přihlášky!B:B,\" \"),\" \")","v":"Olinka"},null,null,null,null,null,"Tereza Hospodářská","Olinka"]
[{"$f":"IF(přihlášky!D:D=\"S\",IF(přihlášky!C:C=\"Pokročilí\",přihlášky!A:A,\" \"),\" \")","v":" "},{"$f":"IF(přihlášky!D:D=\"S\",IF(přihlášky!C:C=\"Pokročilí\",přihlášky!B:B,\" \"),\" \")","v":" "},null,null,null,null,null," "," "]
[{"$f":"IF(přihlášky!D:D=\"S\",IF(přihlášky!C:C=\"Pokročilí\",přihlášky!A:A,\" \"),\" \")","v":" "},{"$f":"IF(přihlášky!D:D=\"S\",IF(přihlášky!C:C=\"Pokročilí\",přihlášky!B:B,\" \"),\" \")","v":" "},null,null,null,null,null," "," "]
[{"$f":"IF(přihlášky!D:D=\"S\",IF(přihlášky!C:C=\"Pokročilí\",přihlášky!A:A,\" \"),\" \")","v":" "},{"$f":"IF(přihlášky!D:D=\"S\",IF(přihlášky!C:C=\"Pokročilí\",přihlášky!B:B,\" \"),\" \")","v":" "},null,null,null,null,null," "," "]
[{"$f":"IF(přihlášky!D:D=\"S\",IF(přihlášky!C:C=\"Pokročilí\",přihlášky!A:A,\" \"),\" \")","v":" "},{"$f":"IF(přihlášky!D:D=\"S\",IF(přihlášky!C:C=\"Pokročilí\",přihlášky!B:B,\" \"),\" \")","v":" "},null,null,null,null,null," "," "]
[{"$f":"IF(přihlášky!D:D=\"S\",IF(přihlášky!C:C=\"Pokročilí\",přihlášky!A:A,\" \"),\" \")","v":" "},{"$f":"IF(přihlášky!D:D=\"S\",IF(přihlášky!C:C=\"Pokročilí\",přihlášky!B:B,\" \"),\" \")","v":" "},null,null,null,null,null," "," "]
[{"$f":"IF(přihlášky!D:D=\"S\",IF(přihlášky!C:C=\"Pokročilí\",přihlášky!A:A,\" \"),\" \")","v":" "},{"$f":"IF(přihlášky!D:D=\"S\",IF(přihlášky!C:C=\"Pokročilí\",přihlášky!B:B,\" \"),\" \")","v":" "},null,null,null,null,null," "," "]
[{"$f":"IF(přihlášky!D:D=\"S\",IF(přihlášky!C:C=\"Pokročilí\",přihlášky!A:A,\" \"),\" \")","v":" "},{"$f":"IF(přihlášky!D:D=\"S\",IF(přihlášky!C:C=\"Pokročilí\",přihlášky!B:B,\" \"),\" \")","v":" "},null,null,null,null,null," "," "]
[{"$f":"IF(přihlášky!D:D=\"S\",IF(přihlášky!C:C=\"Pokročilí\",přihlášky!A:A,\" \"),\" \")","v":" "},{"$f":"IF(přihlášky!D:D=\"S\",IF(přihlášky!C:C=\"Pokročilí\",přihlášky!B:B,\" \"),\" \")","v":" "},null,null,null,null,null," "," "]
[{"$f":"IF(přihlášky!D:D=\"S\",IF(přihlášky!C:C=\"Pokročilí\",přihlášky!A:A,\" \"),\" \")","v":" "},{"$f":"IF(přihlášky!D:D=\"S\",IF(přihlášky!C:C=\"Pokročilí\",přihlášky!B:B,\" \"),\" \")","v":" "},null,null,null,null,null," "," "]
[{"$f":"IF(přihlášky!D:D=\"S\",IF(přihlášky!C:C=\"Pokročilí\",přihlášky!A:A,\" \"),\" \")","v":" "},{"$f":"IF(přihlášky!D:D=\"S\",IF(přihlášky!C:C=\"Pokročilí\",přihlášky!B:B,\" \"),\" \")","v":" "},null,null,null,null,null," "," "]
[{"$f":"IF(přihlášky!D:D=\"S\",IF(přihlášky!C:C=\"Pokročilí\",přihlášky!A:A,\" \"),\" \")","v":" "},{"$f":"IF(přihlášky!D:D=\"S\",IF(přihlášky!C:C=\"Pokročilí\",přihlášky!B:B,\" \"),\" \")","v":" "},null,null,null,null,null," "," "]
[{"$f":"IF(přihlášky!D:D=\"S\",IF(přihlášky!C:C=\"Pokročilí\",přihlášky!A:A,\" \"),\" \")","v":"Diana Vyskočilová"},{"$f":"IF(přihlášky!D:D=\"S\",IF(přihlášky!C:C=\"Pokročilí\",přihlášky!B:B,\" \"),\" \")","v":"Kira"},null,null,null,null,null,"Diana Vyskočilová","Kira"]
[{"$f":"IF(přihlášky!D:D=\"S\",IF(přihlášky!C:C=\"Pokročilí\",přihlášky!A:A,\" \"),\" \")","v":"Hana Lukášová"},{"$f":"IF(přihlášky!D:D=\"S\",IF(přihlášky!C:C=\"Pokročilí\",přihlášky!B:B,\" \"),\" \")","v":"Cornelia Černý Křišťál"},null,null,null,null,null,"Hana Lukášová","Cornelia Černý Křišťál"]
[{"$f":"IF(přihlášky!D:D=\"S\",IF(přihlášky!C:C=\"Pokročilí\",přihlášky!A:A,\" \"),\" \")","v":" "},{"$f":"IF(přihlášky!D:D=\"S\",IF(přihlášky!C:C=\"Pokročilí\",přihlášky!B:B,\" \"),\" \")","v":" "},null,null,null,null,null," "," "]
[{"$f":"IF(přihlášky!D:D=\"S\",IF(přihlášky!C:C=\"Pokročilí\",přihlášky!A:A,\" \"),\" \")","v":" "},{"$f":"IF(přihlášky!D:D=\"S\",IF(přihlášky!C:C=\"Pokročilí\",přihlášky!B:B,\" \"),\" \")","v":" "},null,null,null,null,null," "," "]
[{"$f":"IF(přihlášky!D:D=\"S\",IF(přihlášky!C:C=\"Pokročilí\",přihlášky!A:A,\" \"),\" \")","v":" "},{"$f":"IF(přihlášky!D:D=\"S\",IF(přihlášky!C:C=\"Pokročilí\",přihlášky!B:B,\" \"),\" \")","v":" "},null,null,null,null,null," "," "]
[{"$f":"IF(přihlášky!D:D=\"S\",IF(přihlášky!C:C=\"Pokročilí\",přihlášky!A:A,\" \"),\" \")","v":" "},{"$f":"IF(přihlášky!D:D=\"S\",IF(přihlášky!C:C=\"Pokročilí\",přihlášky!B:B,\" \"),\" \")","v":" "},null,null,null,null,null," "," "]
[{"$f":"IF(přihlášky!D:D=\"S\",IF(přihlášky!C:C=\"Pokročilí\",přihlášky!A:A,\" \"),\" \")","v":" "},{"$f":"IF(přihlášky!D:D=\"S\",IF(přihlášky!C:C=\"Pokročilí\",přihlášky!B:B,\" \"),\" \")","v":" "},null,null,null,null,null," "," "]
[{"$f":"IF(přihlášky!D:D=\"S\",IF(přihlášky!C:C=\"Pokročilí\",přihlášky!A:A,\" \"),\" \")","v":" "},{"$f":"IF(přihlášky!D:D=\"S\",IF(přihlášky!C:C=\"Pokročilí\",přihlášky!B:B,\" \"),\" \")","v":" "},null,null,null,null,null," "," "]
[{"$f":"IF(přihlášky!D:D=\"S\",IF(přihlášky!C:C=\"Pokročilí\",přihlášky!A:A,\" \"),\" \")","v":" "},{"$f":"IF(přihlášky!D:D=\"S\",IF(přihlášky!C:C=\"Pokročilí\",přihlášky!B:B,\" \"),\" \")","v":" "},null,null,null,null,null," "," "]
[{"$f":"IF(přihlášky!D:D=\"S\",IF(přihlášky!C:C=\"Pokročilí\",přihlášky!A:A,\" \"),\" \")","v":" "},{"$f":"IF(přihlášky!D:D=\"S\",IF(přihlášky!C:C=\"Pokročilí\",přihlášky!B:B,\" \"),\" \")","v":" "},null,null,null,null,null," "," "]
[{"$f":"IF(přihlášky!D:D=\"S\",IF(přihlášky!C:C=\"Pokročilí\",přihlášky!A:A,\" \"),\" \")","v":" "},{"$f":"IF(přihlášky!D:D=\"S\",IF(přihlášky!C:C=\"Pokročilí\",přihlášky!B:B,\" \"),\" \")","v":" "},null,null,null,null,null," "," "]
[{"$f":"IF(přihlášky!D:D=\"S\",IF(přihlášky!C:C=\"Pokročilí\",přihlášky!A:A,\" \"),\" \")","v":" "},{"$f":"IF(přihlášky!D:D=\"S\",IF(přihlášky!C:C=\"Pokročilí\",přihlášky!B:B,\" \"),\" \")","v":" "},null,null,null,null,null," "," "]
[{"$f":"IF(přihlášky!D:D=\"S\",IF(přihlášky!C:C=\"Pokročilí\",přihlášky!A:A,\" \"),\" \")","v":" "},{"$f":"IF(přihlášky!D:D=\"S\",IF(přihlášky!C:C=\"Pokročilí\",přihlášky!B:B,\" \"),\" \")","v":" "},null,null,null,null,null," "," "]
[{"$f":"IF(přihlášky!D:D=\"S\",IF(přihlášky!C:C=\"Pokročilí\",přihlášky!A:A,\" \"),\" \")","v":" "},{"$f":"IF(přihlášky!D:D=\"S\",IF(přihlášky!C:C=\"Pokročilí\",přihlášky!B:B,\" \"),\" \")","v":" "},null,null,null,null,null," "," "]
[{"$f":"IF(přihlášky!D:D=\"S\",IF(přihlášky!C:C=\"Pokročilí\",přihlášky!A:A,\" \"),\" \")","v":" "},{"$f":"IF(přihlášky!D:D=\"S\",IF(přihlášky!C:C=\"Pokročilí\",přihlášky!B:B,\" \"),\" \")","v":" "},null,null,null,null,null," "," "]
[{"$f":"IF(přihlášky!D:D=\"S\",IF(přihlášky!C:C=\"Pokročilí\",přihlášky!A:A,\" \"),\" \")","v":" "},{"$f":"IF(přihlášky!D:D=\"S\",IF(přihlášky!C:C=\"Pokročilí\",přihlášky!B:B,\" \"),\" \")","v":" "},null,null,null,null,null," "," "]

{"sheet":"Veteráni L","index":7,"n_rows":55,"n_cols":13,"rows_kept":55,"cut":false,"hidden":false,"merged":[]}
["Jméno","Pes","Čas","Chyby, odmítnutí","DISK","Umístění",null,"Jméno","Pes","Čas","Chyby, odmítnutí","DISK","Umístění"]
[{"$f":"IF(přihlášky!D:D=\"L\",IF(přihlášky!C:C=\"Veteráni\",přihlášky!A:A,\" \"),\" \")","v":" "},{"$f":"IF(přihlášky!D:D=\"L\",IF(přihlášky!C:C=\"Veteráni\",přihlášky!B:B,\" \"),\" \")","v":" "},null,null,null,null,null,{"$f":"A2","v":" "},{"$f":"B2","v":" "}]
[{"$f":"IF(přihlášky!D:D=\"L\",IF(přihlášky!C:C=\"Veteráni\",přihlášky!A:A,\" \"),\" \")","v":" "},{"$f":"IF(přihlášky!D:D=\"L\",IF(přihlášky!C:C=\"Veteráni\",přihlášky!B:B,\" \"),\" \")","v":" "},null,null,null,null,null,{"$f":"A3","v":" "},{"$f":"B3","v":" "}]
[{"$f":"IF(přihlášky!D:D=\"L\",IF(přihlášky!C:C=\"Veteráni\",přihlášky!A:A,\" \"),\" \")","v":" "},{"$f":"IF(přihlášky!D:D=\"L\",IF(přihlášky!C:C=\"Veteráni\",přihlášky!B:B,\" \"),\" \")","v":" "},null,null,null,null,null," "," "]
[{"$f":"IF(přihlášky!D:D=\"L\",IF(přihlášky!C:C=\"Veteráni\",přihlášky!A:A,\" \"),\" \")","v":" "},{"$f":"IF(přihlášky!D:D=\"L\",IF(přihlášky!C:C=\"Veteráni\",přihlášky!B:B,\" \"),\" \")","v":" "},null,null,null,null,null," "," "]
[{"$f":"IF(přihlášky!D:D=\"L\",IF(přihlášky!C:C=\"Veteráni\",přihlášky!A:A,\" \"),\" \")","v":" "},{"$f":"IF(přihlášky!D:D=\"L\",IF(přihlášky!C:C=\"Veteráni\",přihlášky!B:B,\" \"),\" \")","v":" "},null,null,null,null,null," "," "]
[{"$f":"IF(přihlášky!D:D=\"L\",IF(přihlášky!C:C=\"Veteráni\",přihlášky!A:A,\" \"),\" \")","v":" "},{"$f":"IF(přihlášky!D:D=\"L\",IF(přihlášky!C:C=\"Veteráni\",přihlášky!B:B,\" \"),\" \")","v":" "},null,null,null,null,null," "," "]
[{"$f":"IF(přihlášky!D:D=\"L\",IF(přihlášky!C:C=\"Veteráni\",přihlášky!A:A,\" \"),\" \")","v":" "},{"$f":"IF(přihlášky!D:D=\"L\",IF(přihlášky!C:C=\"Veteráni\",přihlášky!B:B,\" \"),\" \")","v":" "},null,null,null,null,null," "," "]
[{"$f":"IF(přihlášky!D:D=\"L\",IF(přihlášky!C:C=\"Veteráni\",přihlášky!A:A,\" \"),\" \")","v":" "},{"$f":"IF(přihlášky!D:D=\"L\",IF(přihlášky!C:C=\"Veteráni\",přihlášky!B:B,\" \"),\" \")","v":" "},null,null,null,null,null," "," "]
[{"$f":"IF(přihlášky!D:D=\"L\",IF(přihlášky!C:C=\"Veteráni\",přihlášky!A:A,\" \"),\" \")","v":" "},{"$f":"IF(přihlášky!D:D=\"L\",IF(přihlášky!C:C=\"Veteráni\",přihlášky!B:B,\" \"),\" \")","v":" "},null,null,null,null,null," "," "]
[{"$f":"IF(přihlášky!D:D=\"L\",IF(přihlášky!C:C=\"Veteráni\",přihlášky!A:A,\" \"),\" \")","v":" "},{"$f":"IF(přihlášky!D:D=\"L\",IF(přihlášky!C:C=\"Veteráni\",přihlášky!B:B,\" \"),\" \")","v":" "},null,null,null,null,null," "," "]
[{"$f":"IF(přihlášky!D:D=\"L\",IF(přihlášky!C:C=\"Veteráni\",přihlášky!A:A,\" \"),\" \")","v":" "},{"$f":"IF(přihlášky!D:D=\"L\",IF(přihlášky!C:C=\"Veteráni\",přihlášky!B:B,\" \"),\" \")","v":" "},null,null,null,null,null," "," "]
[{"$f":"IF(přihlášky!D:D=\"L\",IF(přihlášky!C:C=\"Veteráni\",přihlášky!A:A,\" \"),\" \")","v":" "},{"$f":"IF(přihlášky!D:D=\"L\",IF(přihlášky!C:C=\"Veteráni\",přihlášky!B:B,\" \"),\" \")","v":" "},null,null,null,null,null," "," "]
[{"$f":"IF(přihlášky!D:D=\"L\",IF(přihlášky!C:C=\"Veteráni\",přihlášky!A:A,\" \"),\" \")","v":" "},{"$f":"IF(přihlášky!D:D=\"L\",IF(přihlášky!C:C=\"Veteráni\",přihlášky!B:B,\" \"),\" \")","v":" "},null,null,null,null,null," "," "]
[{"$f":"IF(přihlášky!D:D=\"L\",IF(přihlášky!C:C=\"Veteráni\",přihlášky!A:A,\" \"),\" \")","v":" "},{"$f":"IF(přihlášky!D:D=\"L\",IF(přihlášky!C:C=\"Veteráni\",přihlášky!B:B,\" \"),\" \")","v":" "},null,null,null,null,null," "," "]
[{"$f":"IF(přihlášky!D:D=\"L\",IF(přihlášky!C:C=\"Veteráni\",přihlášky!A:A,\" \"),\" \")","v":" "},{"$f":"IF(přihlášky!D:D=\"L\",IF(přihlášky!C:C=\"Veteráni\",přihlášky!B:B,\" \"),\" \")","v":" "},null,null,null,null,null," "," "]
[{"$f":"IF(přihlášky!D:D=\"L\",IF(přihlášky!C:C=\"Veteráni\",přihlášky!A:A,\" \"),\" \")","v":" "},{"$f":"IF(přihlášky!D:D=\"L\",IF(přihlášky!C:C=\"Veteráni\",přihlášky!B:B,\" \"),\" \")","v":" "},null,null,null,null,null," "," "]
[{"$f":"IF(přihlášky!D:D=\"L\",IF(přihlášky!C:C=\"Veteráni\",přihlášky!A:A,\" \"),\" \")","v":" "},{"$f":"IF(přihlášky!D:D=\"L\",IF(přihlášky!C:C=\"Veteráni\",přihlášky!B:B,\" \"),\" \")","v":" "},null,null,null,null,null," "," "]
[{"$f":"IF(přihlášky!D:D=\"L\",IF(přihlášky!C:C=\"Veteráni\",přihlášky!A:A,\" \"),\" \")","v":" "},{"$f":"IF(přihlášky!D:D=\"L\",IF(přihlášky!C:C=\"Veteráni\",přihlášky!B:B,\" \"),\" \")","v":" "},null,null,null,null,null," "," "]
[{"$f":"IF(přihlášky!D:D=\"L\",IF(přihlášky!C:C=\"Veteráni\",přihlášky!A:A,\" \"),\" \")","v":" "},{"$f":"IF(přihlášky!D:D=\"L\",IF(přihlášky!C:C=\"Veteráni\",přihlášky!B:B,\" \"),\" \")","v":" "},null,null,null,null,null," "," "]
[{"$f":"IF(přihlášky!D:D=\"L\",IF(přihlášky!C:C=\"Veteráni\",přihlášky!A:A,\" \"),\" \")","v":" "},{"$f":"IF(přihlášky!D:D=\"L\",IF(přihlášky!C:C=\"Veteráni\",přihlášky!B:B,\" \"),\" \")","v":" "},null,null,null,null,null," "," "]
[{"$f":"IF(přihlášky!D:D=\"L\",IF(přihlášky!C:C=\"Veteráni\",přihlášky!A:A,\" \"),\" \")","v":" "},{"$f":"IF(přihlášky!D:D=\"L\",IF(přihlášky!C:C=\"Veteráni\",přihlášky!B:B,\" \"),\" \")","v":" "},null,null,null,null,null," "," "]
[{"$f":"IF(přihlášky!D:D=\"L\",IF(přihlášky!C:C=\"Veteráni\",přihlášky!A:A,\" \"),\" \")","v":"Alena Köhlerová"},{"$f":"IF(přihlášky!D:D=\"L\",IF(přihlášky!C:C=\"Veteráni\",přihlášky!B:B,\" \"),\" \")","v":"Yassi Venus z Kovárny"},null,null,null,null,null,"Alena Köhlerová","Yassi Venus z Kovárny"]
[{"$f":"IF(přihlášky!D:D=\"L\",IF(přihlášky!C:C=\"Veteráni\",přihlášky!A:A,\" \"),\" \")","v":" "},{"$f":"IF(přihlášky!D:D=\"L\",IF(přihlášky!C:C=\"Veteráni\",přihlášky!B:B,\" \"),\" \")","v":" "},null,null,null,null,null," "," "]
[{"$f":"IF(přihlášky!D:D=\"L\",IF(přihlášky!C:C=\"Veteráni\",přihlášky!A:A,\" \"),\" \")","v":" "},{"$f":"IF(přihlášky!D:D=\"L\",IF(přihlášky!C:C=\"Veteráni\",přihlášky!B:B,\" \"),\" \")","v":" "},null,null,null,null,null," "," "]
[{"$f":"IF(přihlášky!D:D=\"L\",IF(přihlášky!C:C=\"Veteráni\",přihlášky!A:A,\" \"),\" \")","v":" "},{"$f":"IF(přihlášky!D:D=\"L\",IF(přihlášky!C:C=\"Veteráni\",přihlášky!B:B,\" \"),\" \")","v":" "},null,null,null,null,null," "," "]
[{"$f":"IF(přihlášky!D:D=\"L\",IF(přihlášky!C:C=\"Veteráni\",přihlášky!A:A,\" \"),\" \")","v":" "},{"$f":"IF(přihlášky!D:D=\"L\",IF(přihlášky!C:C=\"Veteráni\",přihlášky!B:B,\" \"),\" \")","v":" "},null,null,null,null,null," "," "]
[{"$f":"IF(přihlášky!D:D=\"L\",IF(přihlášky!C:C=\"Veteráni\",přihlášky!A:A,\" \"),\" \")","v":" "},{"$f":"IF(přihlášky!D:D=\"L\",IF(přihlášky!C:C=\"Veteráni\",přihlášky!B:B,\" \"),\" \")","v":" "},null,null,null,null,null," "," "]
[{"$f":"IF(přihlášky!D:D=\"L\",IF(přihlášky!C:C=\"Veteráni\",přihlášky!A:A,\" \"),\" \")","v":" "},{"$f":"IF(přihlášky!D:D=\"L\",IF(přihlášky!C:C=\"Veteráni\",přihlášky!B:B,\" \"),\" \")","v":" "},null,null,null,null,null," "," "]
[{"$f":"IF(přihlášky!D:D=\"L\",IF(přihlášky!C:C=\"Veteráni\",přihlášky!A:A,\" \"),\" \")","v":" "},{"$f":"IF(přihlášky!D:D=\"L\",IF(přihlášky!C:C=\"Veteráni\",přihlášky!B:B,\" \"),\" \")","v":" "},null,null,null,null,null," "," "]
[{"$f":"IF(přihlášky!D:D=\"L\",IF(přihlášky!C:C=\"Veteráni\",přihlášky!A:A,\" \"),\" \")","v":" "},{"$f":"IF(přihlášky!D:D=\"L\",IF(přihlášky!C:C=\"Veteráni\",přihlášky!B:B,\" \"),\" \")","v":" "},null,null,null,null,null," "," "]
[{"$f":"IF(přihlášky!D:D=\"L\",IF(přihlášky!C:C=\"Veteráni\",přihlášky!A:A,\" \"),\" \")","v":" "},{"$f":"IF(přihlášky!D:D=\"L\",IF(přihlášky!C:C=\"Veteráni\",přihlášky!B:B,\" \"),\" \")","v":" "},null,null,null,null,null," "," "]
[{"$f":"IF(přihlášky!D:D=\"L\",IF(přihlášky!C:C=\"Veteráni\",přihlášky!A:A,\" \"),\" \")","v":" "},{"$f":"IF(přihlášky!D:D=\"L\",IF(přihlášky!C:C=\"Veteráni\",přihlášky!B:B,\" \"),\" \")","v":" "},null,null,null,null,null," "," "]
[{"$f":"IF(přihlášky!D:D=\"L\",IF(přihlášky!C:C=\"Veteráni\",přihlášky!A:A,\" \"),\" \")","v":" "},{"$f":"IF(přihlášky!D:D=\"L\",IF(přihlášky!C:C=\"Veteráni\",přihlášky!B:B,\" \"),\" \")","v":" "},null,null,null,null,null," "," "]
[{"$f":"IF(přihlášky!D:D=\"L\",IF(přihlášky!C:C=\"Veteráni\",přihlášky!A:A,\" \"),\" \")","v":" "},{"$f":"IF(přihlášky!D:D=\"L\",IF(přihlášky!C:C=\"Veteráni\",přihlášky!B:B,\" \"),\" \")","v":" "},null,null,null,null,null," "," "]
[{"$f":"IF(přihlášky!D:D=\"L\",IF(přihlášky!C:C=\"Veteráni\",přihlášky!A:A,\" \"),\" \")","v":" "},{"$f":"IF(přihlášky!D:D=\"L\",IF(přihlášky!C:C=\"Veteráni\",přihlášky!B:B,\" \"),\" \")","v":" "},null,null,null,null,null," "," "]
[{"$f":"IF(přihlášky!D:D=\"L\",IF(přihlášky!C:C=\"Veteráni\",přihlášky!A:A,\" \"),\" \")","v":" "},{"$f":"IF(přihlášky!D:D=\"L\",IF(přihlášky!C:C=\"Veteráni\",přihlášky!B:B,\" \"),\" \")","v":" "},null,null,null,null,null," "," "]
[{"$f":"IF(přihlášky!D:D=\"L\",IF(přihlášky!C:C=\"Veteráni\",přihlášky!A:A,\" \"),\" \")","v":" "},{"$f":"IF(přihlášky!D:D=\"L\",IF(přihlášky!C:C=\"Veteráni\",přihlášky!B:B,\" \"),\" \")","v":" "},null,null,null,null,null," "," "]
[{"$f":"IF(přihlášky!D:D=\"L\",IF(přihlášky!C:C=\"Veteráni\",přihlášky!A:A,\" \"),\" \")","v":" "},{"$f":"IF(přihlášky!D:D=\"L\",IF(přihlášky!C:C=\"Veteráni\",přihlášky!B:B,\" \"),\" \")","v":" "},null,null,null,null,null," "," "]
[{"$f":"IF(přihlášky!D:D=\"L\",IF(přihlášky!C:C=\"Veteráni\",přihlášky!A:A,\" \"),\" \")","v":" "},{"$f":"IF(přihlášky!D:D=\"L\",IF(přihlášky!C:C=\"Veteráni\",přihlášky!B:B,\" \"),\" \")","v":" "},null,null,null,null,null," "," "]
[{"$f":"IF(přihlášky!D:D=\"L\",IF(přihlášky!C:C=\"Veteráni\",přihlášky!A:A,\" \"),\" \")","v":" "},{"$f":"IF(přihlášky!D:D=\"L\",IF(přihlášky!C:C=\"Veteráni\",přihlášky!B:B,\" \"),\" \")","v":" "},null,null,null,null,null," "," "]
[{"$f":"IF(přihlášky!D:D=\"L\",IF(přihlášky!C:C=\"Veteráni\",přihlášky!A:A,\" \"),\" \")","v":" "},{"$f":"IF(přihlášky!D:D=\"L\",IF(přihlášky!C:C=\"Veteráni\",přihlášky!B:B,\" \"),\" \")","v":" "},null,null,null,null,null," "," "]
[{"$f":"IF(přihlášky!D:D=\"L\",IF(přihlášky!C:C=\"Veteráni\",přihlášky!A:A,\" \"),\" \")","v":" "},{"$f":"IF(přihlášky!D:D=\"L\",IF(přihlášky!C:C=\"Veteráni\",přihlášky!B:B,\" \"),\" \")","v":" "},null,null,null,null,null," "," "]
[{"$f":"IF(přihlášky!D:D=\"L\",IF(přihlášky!C:C=\"Veteráni\",přihlášky!A:A,\" \"),\" \")","v":" "},{"$f":"IF(přihlášky!D:D=\"L\",IF(přihlášky!C:C=\"Veteráni\",přihlášky!B:B,\" \"),\" \")","v":" "},null,null,null,null,null," "," "]
[{"$f":"IF(přihlášky!D:D=\"L\",IF(přihlášky!C:C=\"Veteráni\",přihlášky!A:A,\" \"),\" \")","v":" "},{"$f":"IF(přihlášky!D:D=\"L\",IF(přihlášky!C:C=\"Veteráni\",přihlášky!B:B,\" \"),\" \")","v":" "},null,null,null,null,null," "," "]
[{"$f":"IF(přihlášky!D:D=\"L\",IF(přihlášky!C:C=\"Veteráni\",přihlášky!A:A,\" \"),\" \")","v":" "},{"$f":"IF(přihlášky!D:D=\"L\",IF(přihlášky!C:C=\"Veteráni\",přihlášky!B:B,\" \"),\" \")","v":" "},null,null,null,null,null," "," "]
[{"$f":"IF(přihlášky!D:D=\"L\",IF(přihlášky!C:C=\"Veteráni\",přihlášky!A:A,\" \"),\" \")","v":" "},{"$f":"IF(přihlášky!D:D=\"L\",IF(přihlášky!C:C=\"Veteráni\",přihlášky!B:B,\" \"),\" \")","v":" "},null,null,null,null,null," "," "]
[{"$f":"IF(přihlášky!D:D=\"L\",IF(přihlášky!C:C=\"Veteráni\",přihlášky!A:A,\" \"),\" \")","v":" "},{"$f":"IF(přihlášky!D:D=\"L\",IF(přihlášky!C:C=\"Veteráni\",přihlášky!B:B,\" \"),\" \")","v":" "},null,null,null,null,null," "," "]
[{"$f":"IF(přihlášky!D:D=\"L\",IF(přihlášky!C:C=\"Veteráni\",přihlášky!A:A,\" \"),\" \")","v":" "},{"$f":"IF(přihlášky!D:D=\"L\",IF(přihlášky!C:C=\"Veteráni\",přihlášky!B:B,\" \"),\" \")","v":" "},null,null,null,null,null," "," "]
[{"$f":"IF(přihlášky!D:D=\"L\",IF(přihlášky!C:C=\"Veteráni\",přihlášky!A:A,\" \"),\" \")","v":" "},{"$f":"IF(přihlášky!D:D=\"L\",IF(přihlášky!C:C=\"Veteráni\",přihlášky!B:B,\" \"),\" \")","v":" "},null,null,null,null,null," "," "]
[{"$f":"IF(přihlášky!D:D=\"L\",IF(přihlášky!C:C=\"Veteráni\",přihlášky!A:A,\" \"),\" \")","v":" "},{"$f":"IF(přihlášky!D:D=\"L\",IF(přihlášky!C:C=\"Veteráni\",přihlášky!B:B,\" \"),\" \")","v":" "},null,null,null,null,null," "," "]
[{"$f":"IF(přihlášky!D:D=\"L\",IF(přihlášky!C:C=\"Veteráni\",přihlášky!A:A,\" \"),\" \")","v":" "},{"$f":"IF(přihlášky!D:D=\"L\",IF(přihlášky!C:C=\"Veteráni\",přihlášky!B:B,\" \"),\" \")","v":" "},null,null,null,null,null," "," "]
[{"$f":"IF(přihlášky!D:D=\"L\",IF(přihlášky!C:C=\"Veteráni\",přihlášky!A:A,\" \"),\" \")","v":" "},{"$f":"IF(přihlášky!D:D=\"L\",IF(přihlášky!C:C=\"Veteráni\",přihlášky!B:B,\" \"),\" \")","v":" "},null,null,null,null,null," "," "]
[{"$f":"IF(přihlášky!D:D=\"L\",IF(přihlášky!C:C=\"Veteráni\",přihlášky!A:A,\" \"),\" \")","v":" "},{"$f":"IF(přihlášky!D:D=\"L\",IF(přihlášky!C:C=\"Veteráni\",přihlášky!B:B,\" \"),\" \")","v":" "},null,null,null,null,null," "," "]
[{"$f":"IF(přihlášky!D:D=\"L\",IF(přihlášky!C:C=\"Veteráni\",přihlášky!A:A,\" \"),\" \")","v":" "},{"$f":"IF(přihlášky!D:D=\"L\",IF(přihlášky!C:C=\"Veteráni\",přihlášky!B:B,\" \"),\" \")","v":" "},null,null,null,null,null," "," "]

{"sheet":"Veteráni M","index":8,"n_rows":55,"n_cols":13,"rows_kept":55,"cut":false,"hidden":false,"merged":[]}
["Jméno","Pes","Čas","Chyby, odmítnutí","DISK","Umístění",null,"Jméno","Pes","Čas","Chyby, odmítnutí","DISK","Umístění"]
[{"$f":"IF(přihlášky!D:D=\"M\",IF(přihlášky!C:C=\"Veteráni\",přihlášky!A:A,\" \"),\" \")","v":" "},{"$f":"IF(přihlášky!D:D=\"M\",IF(přihlášky!C:C=\"Veteráni\",přihlášky!B:B,\" \"),\" \")","v":" "},null,null,null,null,null,{"$f":"A2","v":" "},{"$f":"B2","v":" "}]
[{"$f":"IF(přihlášky!D:D=\"M\",IF(přihlášky!C:C=\"Veteráni\",přihlášky!A:A,\" \"),\" \")","v":" "},{"$f":"IF(přihlášky!D:D=\"M\",IF(přihlášky!C:C=\"Veteráni\",přihlášky!B:B,\" \"),\" \")","v":" "},null,null,null,null,null,{"$f":"A3","v":" "},{"$f":"B3","v":" "}]
[{"$f":"IF(přihlášky!D:D=\"M\",IF(přihlášky!C:C=\"Veteráni\",přihlášky!A:A,\" \"),\" \")","v":" "},{"$f":"IF(přihlášky!D:D=\"M\",IF(přihlášky!C:C=\"Veteráni\",přihlášky!B:B,\" \"),\" \")","v":" "},null,null,null,null,null," "," "]
[{"$f":"IF(přihlášky!D:D=\"M\",IF(přihlášky!C:C=\"Veteráni\",přihlášky!A:A,\" \"),\" \")","v":" "},{"$f":"IF(přihlášky!D:D=\"M\",IF(přihlášky!C:C=\"Veteráni\",přihlášky!B:B,\" \"),\" \")","v":" "},null,null,null,null,null," "," "]
[{"$f":"IF(přihlášky!D:D=\"M\",IF(přihlášky!C:C=\"Veteráni\",přihlášky!A:A,\" \"),\" \")","v":" "},{"$f":"IF(přihlášky!D:D=\"M\",IF(přihlášky!C:C=\"Veteráni\",přihlášky!B:B,\" \"),\" \")","v":" "},null,null,null,null,null," "," "]
[{"$f":"IF(přihlášky!D:D=\"M\",IF(přihlášky!C:C=\"Veteráni\",přihlášky!A:A,\" \"),\" \")","v":" "},{"$f":"IF(přihlášky!D:D=\"M\",IF(přihlášky!C:C=\"Veteráni\",přihlášky!B:B,\" \"),\" \")","v":" "},null,null,null,null,null," "," "]
[{"$f":"IF(přihlášky!D:D=\"M\",IF(přihlášky!C:C=\"Veteráni\",přihlášky!A:A,\" \"),\" \")","v":" "},{"$f":"IF(přihlášky!D:D=\"M\",IF(přihlášky!C:C=\"Veteráni\",přihlášky!B:B,\" \"),\" \")","v":" "},null,null,null,null,null," "," "]
[{"$f":"IF(přihlášky!D:D=\"M\",IF(přihlášky!C:C=\"Veteráni\",přihlášky!A:A,\" \"),\" \")","v":" "},{"$f":"IF(přihlášky!D:D=\"M\",IF(přihlášky!C:C=\"Veteráni\",přihlášky!B:B,\" \"),\" \")","v":" "},null,null,null,null,null," "," "]
[{"$f":"IF(přihlášky!D:D=\"M\",IF(přihlášky!C:C=\"Veteráni\",přihlášky!A:A,\" \"),\" \")","v":" "},{"$f":"IF(přihlášky!D:D=\"M\",IF(přihlášky!C:C=\"Veteráni\",přihlášky!B:B,\" \"),\" \")","v":" "},null,null,null,null,null," "," "]
[{"$f":"IF(přihlášky!D:D=\"M\",IF(přihlášky!C:C=\"Veteráni\",přihlášky!A:A,\" \"),\" \")","v":" "},{"$f":"IF(přihlášky!D:D=\"M\",IF(přihlášky!C:C=\"Veteráni\",přihlášky!B:B,\" \"),\" \")","v":" "},null,null,null,null,null," "," "]
[{"$f":"IF(přihlášky!D:D=\"M\",IF(přihlášky!C:C=\"Veteráni\",přihlášky!A:A,\" \"),\" \")","v":" "},{"$f":"IF(přihlášky!D:D=\"M\",IF(přihlášky!C:C=\"Veteráni\",přihlášky!B:B,\" \"),\" \")","v":" "},null,null,null,null,null," "," "]
[{"$f":"IF(přihlášky!D:D=\"M\",IF(přihlášky!C:C=\"Veteráni\",přihlášky!A:A,\" \"),\" \")","v":" "},{"$f":"IF(přihlášky!D:D=\"M\",IF(přihlášky!C:C=\"Veteráni\",přihlášky!B:B,\" \"),\" \")","v":" "},null,null,null,null,null," "," "]
[{"$f":"IF(přihlášky!D:D=\"M\",IF(přihlášky!C:C=\"Veteráni\",přihlášky!A:A,\" \"),\" \")","v":" "},{"$f":"IF(přihlášky!D:D=\"M\",IF(přihlášky!C:C=\"Veteráni\",přihlášky!B:B,\" \"),\" \")","v":" "},null,null,null,null,null," "," "]
[{"$f":"IF(přihlášky!D:D=\"M\",IF(přihlášky!C:C=\"Veteráni\",přihlášky!A:A,\" \"),\" \")","v":" "},{"$f":"IF(přihlášky!D:D=\"M\",IF(přihlášky!C:C=\"Veteráni\",přihlášky!B:B,\" \"),\" \")","v":" "},null,null,null,null,null," "," "]
[{"$f":"IF(přihlášky!D:D=\"M\",IF(přihlášky!C:C=\"Veteráni\",přihlášky!A:A,\" \"),\" \")","v":" "},{"$f":"IF(přihlášky!D:D=\"M\",IF(přihlášky!C:C=\"Veteráni\",přihlášky!B:B,\" \"),\" \")","v":" "},null,null,null,null,null," "," "]
[{"$f":"IF(přihlášky!D:D=\"M\",IF(přihlášky!C:C=\"Veteráni\",přihlášky!A:A,\" \"),\" \")","v":" "},{"$f":"IF(přihlášky!D:D=\"M\",IF(přihlášky!C:C=\"Veteráni\",přihlášky!B:B,\" \"),\" \")","v":" "},null,null,null,null,null," "," "]
[{"$f":"IF(přihlášky!D:D=\"M\",IF(přihlášky!C:C=\"Veteráni\",přihlášky!A:A,\" \"),\" \")","v":" "},{"$f":"IF(přihlášky!D:D=\"M\",IF(přihlášky!C:C=\"Veteráni\",přihlášky!B:B,\" \"),\" \")","v":" "},null,null,null,null,null," "," "]
[{"$f":"IF(přihlášky!D:D=\"M\",IF(přihlášky!C:C=\"Veteráni\",přihlášky!A:A,\" \"),\" \")","v":" "},{"$f":"IF(přihlášky!D:D=\"M\",IF(přihlášky!C:C=\"Veteráni\",přihlášky!B:B,\" \"),\" \")","v":" "},null,null,null,null,null," "," "]
[{"$f":"IF(přihlášky!D:D=\"M\",IF(přihlášky!C:C=\"Veteráni\",přihlášky!A:A,\" \"),\" \")","v":" "},{"$f":"IF(přihlášky!D:D=\"M\",IF(přihlášky!C:C=\"Veteráni\",přihlášky!B:B,\" \"),\" \")","v":" "},null,null,null,null,null," "," "]
[{"$f":"IF(přihlášky!D:D=\"M\",IF(přihlášky!C:C=\"Veteráni\",přihlášky!A:A,\" \"),\" \")","v":" "},{"$f":"IF(přihlášky!D:D=\"M\",IF(přihlášky!C:C=\"Veteráni\",přihlášky!B:B,\" \"),\" \")","v":" "},null,null,null,null,null," "," "]
[{"$f":"IF(přihlášky!D:D=\"M\",IF(přihlášky!C:C=\"Veteráni\",přihlášky!A:A,\" \"),\" \")","v":" "},{"$f":"IF(přihlášky!D:D=\"M\",IF(přihlášky!C:C=\"Veteráni\",přihlášky!B:B,\" \"),\" \")","v":" "},null,null,null,null,null," "," "]
[{"$f":"IF(přihlášky!D:D=\"M\",IF(přihlášky!C:C=\"Veteráni\",přihlášky!A:A,\" \"),\" \")","v":" "},{"$f":"IF(přihlášky!D:D=\"M\",IF(přihlášky!C:C=\"Veteráni\",přihlášky!B:B,\" \"),\" \")","v":" "},null,null,null,null,null," "," "]
[{"$f":"IF(přihlášky!D:D=\"M\",IF(přihlášky!C:C=\"Veteráni\",přihlášky!A:A,\" \"),\" \")","v":" "},{"$f":"IF(přihlášky!D:D=\"M\",IF(přihlášky!C:C=\"Veteráni\",přihlášky!B:B,\" \"),\" \")","v":" "},null,null,null,null,null," "," "]
[{"$f":"IF(přihlášky!D:D=\"M\",IF(přihlášky!C:C=\"Veteráni\",přihlášky!A:A,\" \"),\" \")","v":" "},{"$f":"IF(přihlášky!D:D=\"M\",IF(přihlášky!C:C=\"Veteráni\",přihlášky!B:B,\" \"),\" \")","v":" "},null,null,null,null,null," "," "]
[{"$f":"IF(přihlášky!D:D=\"M\",IF(přihlášky!C:C=\"Veteráni\",přihlášky!A:A,\" \"),\" \")","v":" "},{"$f":"IF(přihlášky!D:D=\"M\",IF(přihlášky!C:C=\"Veteráni\",přihlášky!B:B,\" \"),\" \")","v":" "},null,null,null,null,null," "," "]
[{"$f":"IF(přihlášky!D:D=\"M\",IF(přihlášky!C:C=\"Veteráni\",přihlášky!A:A,\" \"),\" \")","v":" "},{"$f":"IF(přihlášky!D:D=\"M\",IF(přihlášky!C:C=\"Veteráni\",přihlášky!B:B,\" \"),\" \")","v":" "},null,null,null,null,null," "," "]
[{"$f":"IF(přihlášky!D:D=\"M\",IF(přihlášky!C:C=\"Veteráni\",přihlášky!A:A,\" \"),\" \")","v":" "},{"$f":"IF(přihlášky!D:D=\"M\",IF(přihlášky!C:C=\"Veteráni\",přihlášky!B:B,\" \"),\" \")","v":" "},null,null,null,null,null," "," "]
[{"$f":"IF(přihlášky!D:D=\"M\",IF(přihlášky!C:C=\"Veteráni\",přihlášky!A:A,\" \"),\" \")","v":" "},{"$f":"IF(přihlášky!D:D=\"M\",IF(přihlášky!C:C=\"Veteráni\",přihlášky!B:B,\" \"),\" \")","v":" "},null,null,null,null,null," "," "]
[{"$f":"IF(přihlášky!D:D=\"M\",IF(přihlášky!C:C=\"Veteráni\",přihlášky!A:A,\" \"),\" \")","v":" "},{"$f":"IF(přihlášky!D:D=\"M\",IF(přihlášky!C:C=\"Veteráni\",přihlášky!B:B,\" \"),\" \")","v":" "},null,null,null,null,null," "," "]
[{"$f":"IF(přihlášky!D:D=\"M\",IF(přihlášky!C:C=\"Veteráni\",přihlášky!A:A,\" \"),\" \")","v":" "},{"$f":"IF(přihlášky!D:D=\"M\",IF(přihlášky!C:C=\"Veteráni\",přihlášky!B:B,\" \"),\" \")","v":" "},null,null,null,null,null," "," "]
[{"$f":"IF(přihlášky!D:D=\"M\",IF(přihlášky!C:C=\"Veteráni\",přihlášky!A:A,\" \"),\" \")","v":" "},{"$f":"IF(přihlášky!D:D=\"M\",IF(přihlášky!C:C=\"Veteráni\",přihlášky!B:B,\" \"),\" \")","v":" "},null,null,null,null,null," "," "]
[{"$f":"IF(přihlášky!D:D=\"M\",IF(přihlášky!C:C=\"Veteráni\",přihlášky!A:A,\" \"),\" \")","v":" "},{"$f":"IF(přihlášky!D:D=\"M\",IF(přihlášky!C:C=\"Veteráni\",přihlášky!B:B,\" \"),\" \")","v":" "},null,null,null,null,null," "," "]
[{"$f":"IF(přihlášky!D:D=\"M\",IF(přihlášky!C:C=\"Veteráni\",přihlášky!A:A,\" \"),\" \")","v":" "},{"$f":"IF(přihlášky!D:D=\"M\",IF(přihlášky!C:C=\"Veteráni\",přihlášky!B:B,\" \"),\" \")","v":" "},null,null,null,null,null," "," "]
[{"$f":"IF(přihlášky!D:D=\"M\",IF(přihlášky!C:C=\"Veteráni\",přihlášky!A:A,\" \"),\" \")","v":" "},{"$f":"IF(přihlášky!D:D=\"M\",IF(přihlášky!C:C=\"Veteráni\",přihlášky!B:B,\" \"),\" \")","v":" "},null,null,null,null,null," "," "]
[{"$f":"IF(přihlášky!D:D=\"M\",IF(přihlášky!C:C=\"Veteráni\",přihlášky!A:A,\" \"),\" \")","v":" "},{"$f":"IF(přihlášky!D:D=\"M\",IF(přihlášky!C:C=\"Veteráni\",přihlášky!B:B,\" \"),\" \")","v":" "},null,null,null,null,null," "," "]
[{"$f":"IF(přihlášky!D:D=\"M\",IF(přihlášky!C:C=\"Veteráni\",přihlášky!A:A,\" \"),\" \")","v":" "},{"$f":"IF(přihlášky!D:D=\"M\",IF(přihlášky!C:C=\"Veteráni\",přihlášky!B:B,\" \"),\" \")","v":" "},null,null,null,null,null," "," "]
[{"$f":"IF(přihlášky!D:D=\"M\",IF(přihlášky!C:C=\"Veteráni\",přihlášky!A:A,\" \"),\" \")","v":" "},{"$f":"IF(přihlášky!D:D=\"M\",IF(přihlášky!C:C=\"Veteráni\",přihlášky!B:B,\" \"),\" \")","v":" "},null,null,null,null,null," "," "]
[{"$f":"IF(přihlášky!D:D=\"M\",IF(přihlášky!C:C=\"Veteráni\",přihlášky!A:A,\" \"),\" \")","v":" "},{"$f":"IF(přihlášky!D:D=\"M\",IF(přihlášky!C:C=\"Veteráni\",přihlášky!B:B,\" \"),\" \")","v":" "},null,null,null,null,null," "," "]
[{"$f":"IF(přihlášky!D:D=\"M\",IF(přihlášky!C:C=\"Veteráni\",přihlášky!A:A,\" \"),\" \")","v":" "},{"$f":"IF(přihlášky!D:D=\"M\",IF(přihlášky!C:C=\"Veteráni\",přihlášky!B:B,\" \"),\" \")","v":" "},null,null,null,null,null," "," "]
[{"$f":"IF(přihlášky!D:D=\"M\",IF(přihlášky!C:C=\"Veteráni\",přihlášky!A:A,\" \"),\" \")","v":" "},{"$f":"IF(přihlášky!D:D=\"M\",IF(přihlášky!C:C=\"Veteráni\",přihlášky!B:B,\" \"),\" \")","v":" "},null,null,null,null,null," "," "]
[{"$f":"IF(přihlášky!D:D=\"M\",IF(přihlášky!C:C=\"Veteráni\",přihlášky!A:A,\" \"),\" \")","v":" "},{"$f":"IF(přihlášky!D:D=\"M\",IF(přihlášky!C:C=\"Veteráni\",přihlášky!B:B,\" \"),\" \")","v":" "},null,null,null,null,null," "," "]
[{"$f":"IF(přihlášky!D:D=\"M\",IF(přihlášky!C:C=\"Veteráni\",přihlášky!A:A,\" \"),\" \")","v":" "},{"$f":"IF(přihlášky!D:D=\"M\",IF(přihlášky!C:C=\"Veteráni\",přihlášky!B:B,\" \"),\" \")","v":" "},null,null,null,null,null," "," "]
[{"$f":"IF(přihlášky!D:D=\"M\",IF(přihlášky!C:C=\"Veteráni\",přihlášky!A:A,\" \"),\" \")","v":" "},{"$f":"IF(přihlášky!D:D=\"M\",IF(přihlášky!C:C=\"Veteráni\",přihlášky!B:B,\" \"),\" \")","v":" "},null,null,null,null,null," "," "]
[{"$f":"IF(přihlášky!D:D=\"M\",IF(přihlášky!C:C=\"Veteráni\",přihlášky!A:A,\" \"),\" \")","v":" "},{"$f":"IF(přihlášky!D:D=\"M\",IF(přihlášky!C:C=\"Veteráni\",přihlášky!B:B,\" \"),\" \")","v":" "},null,null,null,null,null," "," "]
[{"$f":"IF(přihlášky!D:D=\"M\",IF(přihlášky!C:C=\"Veteráni\",přihlášky!A:A,\" \"),\" \")","v":" "},{"$f":"IF(přihlášky!D:D=\"M\",IF(přihlášky!C:C=\"Veteráni\",přihlášky!B:B,\" \"),\" \")","v":" "},null,null,null,null,null," "," "]
[{"$f":"IF(přihlášky!D:D=\"M\",IF(přihlášky!C:C=\"Veteráni\",přihlášky!A:A,\" \"),\" \")","v":" "},{"$f":"IF(přihlášky!D:D=\"M\",IF(přihlášky!C:C=\"Veteráni\",přihlášky!B:B,\" \"),\" \")","v":" "},null,null,null,null,null," "," "]
[{"$f":"IF(přihlášky!D:D=\"M\",IF(přihlášky!C:C=\"Veteráni\",přihlášky!A:A,\" \"),\" \")","v":" "},{"$f":"IF(přihlášky!D:D=\"M\",IF(přihlášky!C:C=\"Veteráni\",přihlášky!B:B,\" \"),\" \")","v":" "},null,null,null,null,null," "," "]
[{"$f":"IF(přihlášky!D:D=\"M\",IF(přihlášky!C:C=\"Veteráni\",přihlášky!A:A,\" \"),\" \")","v":" "},{"$f":"IF(přihlášky!D:D=\"M\",IF(přihlášky!C:C=\"Veteráni\",přihlášky!B:B,\" \"),\" \")","v":" "},null,null,null,null,null," "," "]
[{"$f":"IF(přihlášky!D:D=\"M\",IF(přihlášky!C:C=\"Veteráni\",přihlášky!A:A,\" \"),\" \")","v":" "},{"$f":"IF(přihlášky!D:D=\"M\",IF(přihlášky!C:C=\"Veteráni\",přihlášky!B:B,\" \"),\" \")","v":" "},null,null,null,null,null," "," "]
[{"$f":"IF(přihlášky!D:D=\"M\",IF(přihlášky!C:C=\"Veteráni\",přihlášky!A:A,\" \"),\" \")","v":" "},{"$f":"IF(přihlášky!D:D=\"M\",IF(přihlášky!C:C=\"Veteráni\",přihlášky!B:B,\" \"),\" \")","v":" "},null,null,null,null,null," "," "]
[{"$f":"IF(přihlášky!D:D=\"M\",IF(přihlášky!C:C=\"Veteráni\",přihlášky!A:A,\" \"),\" \")","v":" "},{"$f":"IF(přihlášky!D:D=\"M\",IF(přihlášky!C:C=\"Veteráni\",přihlášky!B:B,\" \"),\" \")","v":" "},null,null,null,null,null," "," "]
[{"$f":"IF(přihlášky!D:D=\"M\",IF(přihlášky!C:C=\"Veteráni\",přihlášky!A:A,\" \"),\" \")","v":" "},{"$f":"IF(přihlášky!D:D=\"M\",IF(přihlášky!C:C=\"Veteráni\",přihlášky!B:B,\" \"),\" \")","v":" "},null,null,null,null,null," "," "]
[{"$f":"IF(přihlášky!D:D=\"M\",IF(přihlášky!C:C=\"Veteráni\",přihlášky!A:A,\" \"),\" \")","v":" "},{"$f":"IF(přihlášky!D:D=\"M\",IF(přihlášky!C:C=\"Veteráni\",přihlášky!B:B,\" \"),\" \")","v":" "},null,null,null,null,null," "," "]
[{"$f":"IF(přihlášky!D:D=\"M\",IF(přihlášky!C:C=\"Veteráni\",přihlášky!A:A,\" \"),\" \")","v":" "},{"$f":"IF(přihlášky!D:D=\"M\",IF(přihlášky!C:C=\"Veteráni\",přihlášky!B:B,\" \"),\" \")","v":" "},null,null,null,null,null," "," "]

{"sheet":"Veteráni S","index":9,"n_rows":55,"n_cols":13,"rows_kept":55,"cut":false,"hidden":false,"merged":[]}
["Jméno","Pes","Čas","Chyby, odmítnutí","DISK","Umístění",null,"Jméno","Pes","Čas","Chyby, odmítnutí","DISK","Umístění"]
[{"$f":"IF(přihlášky!D:D=\"S\",IF(přihlášky!C:C=\"Veteráni\",přihlášky!A:A,\" \"),\" \")","v":" "},{"$f":"IF(přihlášky!D:D=\"S\",IF(přihlášky!C:C=\"Veteráni\",přihlášky!B:B,\" \"),\" \")","v":" "},null,null,null,null,null,{"$f":"A2","v":" "},{"$f":"B2","v":" "}]
[{"$f":"IF(přihlášky!D:D=\"S\",IF(přihlášky!C:C=\"Veteráni\",přihlášky!A:A,\" \"),\" \")","v":"Helena Vocetkova"},{"$f":"IF(přihlášky!D:D=\"S\",IF(přihlášky!C:C=\"Veteráni\",přihlášky!B:B,\" \"),\" \")","v":"Matýsek"},null,null,null,null,null,{"$f":"A3","v":"Helena Vocetkova"},{"$f":"B3","v":"Matýsek"}]
[{"$f":"IF(přihlášky!D:D=\"S\",IF(přihlášky!C:C=\"Veteráni\",přihlášky!A:A,\" \"),\" \")","v":" "},{"$f":"IF(přihlášky!D:D=\"S\",IF(přihlášky!C:C=\"Veteráni\",přihlášky!B:B,\" \"),\" \")","v":" "},null,null,null,null,null," "," "]
[{"$f":"IF(přihlášky!D:D=\"S\",IF(přihlášky!C:C=\"Veteráni\",přihlášky!A:A,\" \"),\" \")","v":" "},{"$f":"IF(přihlášky!D:D=\"S\",IF(přihlášky!C:C=\"Veteráni\",přihlášky!B:B,\" \"),\" \")","v":" "},null,null,null,null,null," "," "]
[{"$f":"IF(přihlášky!D:D=\"S\",IF(přihlášky!C:C=\"Veteráni\",přihlášky!A:A,\" \"),\" \")","v":" "},{"$f":"IF(přihlášky!D:D=\"S\",IF(přihlášky!C:C=\"Veteráni\",přihlášky!B:B,\" \"),\" \")","v":" "},null,null,null,null,null," "," "]
[{"$f":"IF(přihlášky!D:D=\"S\",IF(přihlášky!C:C=\"Veteráni\",přihlášky!A:A,\" \"),\" \")","v":" "},{"$f":"IF(přihlášky!D:D=\"S\",IF(přihlášky!C:C=\"Veteráni\",přihlášky!B:B,\" \"),\" \")","v":" "},null,null,null,null,null," "," "]
[{"$f":"IF(přihlášky!D:D=\"S\",IF(přihlášky!C:C=\"Veteráni\",přihlášky!A:A,\" \"),\" \")","v":"Alice Franková"},{"$f":"IF(přihlášky!D:D=\"S\",IF(přihlášky!C:C=\"Veteráni\",přihlášky!B:B,\" \"),\" \")","v":"Denny"},null,null,null,null,null,"Alice Franková","Denny"]
[{"$f":"IF(přihlášky!D:D=\"S\",IF(přihlášky!C:C=\"Veteráni\",přihlášky!A:A,\" \"),\" \")","v":"Pavla Eliášová"},{"$f":"IF(přihlášky!D:D=\"S\",IF(přihlášky!C:C=\"Veteráni\",přihlášky!B:B,\" \"),\" \")","v":"Andy z Bílé cesty"},null,null,null,null,null,"Pavla Eliášová","Andy z Bílé cesty"]
[{"$f":"IF(přihlášky!D:D=\"S\",IF(přihlášky!C:C=\"Veteráni\",přihlášky!A:A,\" \"),\" \")","v":" "},{"$f":"IF(přihlášky!D:D=\"S\",IF(přihlášky!C:C=\"Veteráni\",přihlášky!B:B,\" \"),\" \")","v":" "},null,null,null,null,null," "," "]
[{"$f":"IF(přihlášky!D:D=\"S\",IF(přihlášky!C:C=\"Veteráni\",přihlášky!A:A,\" \"),\" \")","v":" "},{"$f":"IF(přihlášky!D:D=\"S\",IF(přihlášky!C:C=\"Veteráni\",přihlášky!B:B,\" \"),\" \")","v":" "},null,null,null,null,null," "," "]
[{"$f":"IF(přihlášky!D:D=\"S\",IF(přihlášky!C:C=\"Veteráni\",přihlášky!A:A,\" \"),\" \")","v":" "},{"$f":"IF(přihlášky!D:D=\"S\",IF(přihlášky!C:C=\"Veteráni\",přihlášky!B:B,\" \"),\" \")","v":" "},null,null,null,null,null," "," "]
[{"$f":"IF(přihlášky!D:D=\"S\",IF(přihlášky!C:C=\"Veteráni\",přihlášky!A:A,\" \"),\" \")","v":" "},{"$f":"IF(přihlášky!D:D=\"S\",IF(přihlášky!C:C=\"Veteráni\",přihlášky!B:B,\" \"),\" \")","v":" "},null,null,null,null,null," "," "]
[{"$f":"IF(přihlášky!D:D=\"S\",IF(přihlášky!C:C=\"Veteráni\",přihlášky!A:A,\" \"),\" \")","v":" "},{"$f":"IF(přihlášky!D:D=\"S\",IF(přihlášky!C:C=\"Veteráni\",přihlášky!B:B,\" \"),\" \")","v":" "},null,null,null,null,null," "," "]
[{"$f":"IF(přihlášky!D:D=\"S\",IF(přihlášky!C:C=\"Veteráni\",přihlášky!A:A,\" \"),\" \")","v":" "},{"$f":"IF(přihlášky!D:D=\"S\",IF(přihlášky!C:C=\"Veteráni\",přihlášky!B:B,\" \"),\" \")","v":" "},null,null,null,null,null," "," "]
[{"$f":"IF(přihlášky!D:D=\"S\",IF(přihlášky!C:C=\"Veteráni\",přihlášky!A:A,\" \"),\" \")","v":" "},{"$f":"IF(přihlášky!D:D=\"S\",IF(přihlášky!C:C=\"Veteráni\",přihlášky!B:B,\" \"),\" \")","v":" "},null,null,null,null,null," "," "]
[{"$f":"IF(přihlášky!D:D=\"S\",IF(přihlášky!C:C=\"Veteráni\",přihlášky!A:A,\" \"),\" \")","v":" "},{"$f":"IF(přihlášky!D:D=\"S\",IF(přihlášky!C:C=\"Veteráni\",přihlášky!B:B,\" \"),\" \")","v":" "},null,null,null,null,null," "," "]
[{"$f":"IF(přihlášky!D:D=\"S\",IF(přihlášky!C:C=\"Veteráni\",přihlášky!A:A,\" \"),\" \")","v":" "},{"$f":"IF(přihlášky!D:D=\"S\",IF(přihlášky!C:C=\"Veteráni\",přihlášky!B:B,\" \"),\" \")","v":" "},null,null,null,null,null," "," "]
[{"$f":"IF(přihlášky!D:D=\"S\",IF(přihlášky!C:C=\"Veteráni\",přihlášky!A:A,\" \"),\" \")","v":" "},{"$f":"IF(přihlášky!D:D=\"S\",IF(přihlášky!C:C=\"Veteráni\",přihlášky!B:B,\" \"),\" \")","v":" "},null,null,null,null,null," "," "]
[{"$f":"IF(přihlášky!D:D=\"S\",IF(přihlášky!C:C=\"Veteráni\",přihlášky!A:A,\" \"),\" \")","v":" "},{"$f":"IF(přihlášky!D:D=\"S\",IF(přihlášky!C:C=\"Veteráni\",přihlášky!B:B,\" \"),\" \")","v":" "},null,null,null,null,null," "," "]
[{"$f":"IF(přihlášky!D:D=\"S\",IF(přihlášky!C:C=\"Veteráni\",přihlášky!A:A,\" \"),\" \")","v":" "},{"$f":"IF(přihlášky!D:D=\"S\",IF(přihlášky!C:C=\"Veteráni\",přihlášky!B:B,\" \"),\" \")","v":" "},null,null,null,null,null," "," "]
[{"$f":"IF(přihlášky!D:D=\"S\",IF(přihlášky!C:C=\"Veteráni\",přihlášky!A:A,\" \"),\" \")","v":" "},{"$f":"IF(přihlášky!D:D=\"S\",IF(přihlášky!C:C=\"Veteráni\",přihlášky!B:B,\" \"),\" \")","v":" "},null,null,null,null,null," "," "]
[{"$f":"IF(přihlášky!D:D=\"S\",IF(přihlášky!C:C=\"Veteráni\",přihlášky!A:A,\" \"),\" \")","v":" "},{"$f":"IF(přihlášky!D:D=\"S\",IF(přihlášky!C:C=\"Veteráni\",přihlášky!B:B,\" \"),\" \")","v":" "},null,null,null,null,null," "," "]
[{"$f":"IF(přihlášky!D:D=\"S\",IF(přihlášky!C:C=\"Veteráni\",přihlášky!A:A,\" \"),\" \")","v":" "},{"$f":"IF(přihlášky!D:D=\"S\",IF(přihlášky!C:C=\"Veteráni\",přihlášky!B:B,\" \"),\" \")","v":" "},null,null,null,null,null," "," "]
[{"$f":"IF(přihlášky!D:D=\"S\",IF(přihlášky!C:C=\"Veteráni\",přihlášky!A:A,\" \"),\" \")","v":" "},{"$f":"IF(přihlášky!D:D=\"S\",IF(přihlášky!C:C=\"Veteráni\",přihlášky!B:B,\" \"),\" \")","v":" "},null,null,null,null,null," "," "]
[{"$f":"IF(přihlášky!D:D=\"S\",IF(přihlášky!C:C=\"Veteráni\",přihlášky!A:A,\" \"),\" \")","v":" "},{"$f":"IF(přihlášky!D:D=\"S\",IF(přihlášky!C:C=\"Veteráni\",přihlášky!B:B,\" \"),\" \")","v":" "},null,null,null,null,null," "," "]
[{"$f":"IF(přihlášky!D:D=\"S\",IF(přihlášky!C:C=\"Veteráni\",přihlášky!A:A,\" \"),\" \")","v":" "},{"$f":"IF(přihlášky!D:D=\"S\",IF(přihlášky!C:C=\"Veteráni\",přihlášky!B:B,\" \"),\" \")","v":" "},null,null,null,null,null," "," "]
[{"$f":"IF(přihlášky!D:D=\"S\",IF(přihlášky!C:C=\"Veteráni\",přihlášky!A:A,\" \"),\" \")","v":" "},{"$f":"IF(přihlášky!D:D=\"S\",IF(přihlášky!C:C=\"Veteráni\",přihlášky!B:B,\" \"),\" \")","v":" "},null,null,null,null,null," "," "]
[{"$f":"IF(přihlášky!D:D=\"S\",IF(přihlášky!C:C=\"Veteráni\",přihlášky!A:A,\" \"),\" \")","v":" "},{"$f":"IF(přihlášky!D:D=\"S\",IF(přihlášky!C:C=\"Veteráni\",přihlášky!B:B,\" \"),\" \")","v":" "},null,null,null,null,null," "," "]
[{"$f":"IF(přihlášky!D:D=\"S\",IF(přihlášky!C:C=\"Veteráni\",přihlášky!A:A,\" \"),\" \")","v":" "},{"$f":"IF(přihlášky!D:D=\"S\",IF(přihlášky!C:C=\"Veteráni\",přihlášky!B:B,\" \"),\" \")","v":" "},null,null,null,null,null," "," "]
[{"$f":"IF(přihlášky!D:D=\"S\",IF(přihlášky!C:C=\"Veteráni\",přihlášky!A:A,\" \"),\" \")","v":" "},{"$f":"IF(přihlášky!D:D=\"S\",IF(přihlášky!C:C=\"Veteráni\",přihlášky!B:B,\" \"),\" \")","v":" "},null,null,null,null,null," "," "]
[{"$f":"IF(přihlášky!D:D=\"S\",IF(přihlášky!C:C=\"Veteráni\",přihlášky!A:A,\" \"),\" \")","v":" "},{"$f":"IF(přihlášky!D:D=\"S\",IF(přihlášky!C:C=\"Veteráni\",přihlášky!B:B,\" \"),\" \")","v":" "},null,null,null,null,null," "," "]
[{"$f":"IF(přihlášky!D:D=\"S\",IF(přihlášky!C:C=\"Veteráni\",přihlášky!A:A,\" \"),\" \")","v":"Renata Vondráčková"},{"$f":"IF(přihlášky!D:D=\"S\",IF(přihlášky!C:C=\"Veteráni\",přihlášky!B:B,\" \"),\" \")","v":"Fido"},null,null,null,null,null,"Renata Vondráčková","Fido"]
[{"$f":"IF(přihlášky!D:D=\"S\",IF(přihlášky!C:C=\"Veteráni\",přihlášky!A:A,\" \"),\" \")","v":" "},{"$f":"IF(přihlášky!D:D=\"S\",IF(přihlášky!C:C=\"Veteráni\",přihlášky!B:B,\" \"),\" \")","v":" "},null,null,null,null,null," "," "]
[{"$f":"IF(přihlášky!D:D=\"S\",IF(přihlášky!C:C=\"Veteráni\",přihlášky!A:A,\" \"),\" \")","v":" "},{"$f":"IF(přihlášky!D:D=\"S\",IF(přihlášky!C:C=\"Veteráni\",přihlášky!B:B,\" \"),\" \")","v":" "},null,null,null,null,null," "," "]
[{"$f":"IF(přihlášky!D:D=\"S\",IF(přihlášky!C:C=\"Veteráni\",přihlášky!A:A,\" \"),\" \")","v":" "},{"$f":"IF(přihlášky!D:D=\"S\",IF(přihlášky!C:C=\"Veteráni\",přihlášky!B:B,\" \"),\" \")","v":" "},null,null,null,null,null," "," "]
[{"$f":"IF(přihlášky!D:D=\"S\",IF(přihlášky!C:C=\"Veteráni\",přihlášky!A:A,\" \"),\" \")","v":" "},{"$f":"IF(přihlášky!D:D=\"S\",IF(přihlášky!C:C=\"Veteráni\",přihlášky!B:B,\" \"),\" \")","v":" "},null,null,null,null,null," "," "]
[{"$f":"IF(přihlášky!D:D=\"S\",IF(přihlášky!C:C=\"Veteráni\",přihlášky!A:A,\" \"),\" \")","v":" "},{"$f":"IF(přihlášky!D:D=\"S\",IF(přihlášky!C:C=\"Veteráni\",přihlášky!B:B,\" \"),\" \")","v":" "},null,null,null,null,null," "," "]
[{"$f":"IF(přihlášky!D:D=\"S\",IF(přihlášky!C:C=\"Veteráni\",přihlášky!A:A,\" \"),\" \")","v":" "},{"$f":"IF(přihlášky!D:D=\"S\",IF(přihlášky!C:C=\"Veteráni\",přihlášky!B:B,\" \"),\" \")","v":" "},null,null,null,null,null," "," "]
[{"$f":"IF(přihlášky!D:D=\"S\",IF(přihlášky!C:C=\"Veteráni\",přihlášky!A:A,\" \"),\" \")","v":" "},{"$f":"IF(přihlášky!D:D=\"S\",IF(přihlášky!C:C=\"Veteráni\",přihlášky!B:B,\" \"),\" \")","v":" "},null,null,null,null,null," "," "]
[{"$f":"IF(přihlášky!D:D=\"S\",IF(přihlášky!C:C=\"Veteráni\",přihlášky!A:A,\" \"),\" \")","v":" "},{"$f":"IF(přihlášky!D:D=\"S\",IF(přihlášky!C:C=\"Veteráni\",přihlášky!B:B,\" \"),\" \")","v":" "},null,null,null,null,null," "," "]
[{"$f":"IF(přihlášky!D:D=\"S\",IF(přihlášky!C:C=\"Veteráni\",přihlášky!A:A,\" \"),\" \")","v":" "},{"$f":"IF(přihlášky!D:D=\"S\",IF(přihlášky!C:C=\"Veteráni\",přihlášky!B:B,\" \"),\" \")","v":" "},null,null,null,null,null," "," "]
[{"$f":"IF(přihlášky!D:D=\"S\",IF(přihlášky!C:C=\"Veteráni\",přihlášky!A:A,\" \"),\" \")","v":" "},{"$f":"IF(přihlášky!D:D=\"S\",IF(přihlášky!C:C=\"Veteráni\",přihlášky!B:B,\" \"),\" \")","v":" "},null,null,null,null,null," "," "]
[{"$f":"IF(přihlášky!D:D=\"S\",IF(přihlášky!C:C=\"Veteráni\",přihlášky!A:A,\" \"),\" \")","v":" "},{"$f":"IF(přihlášky!D:D=\"S\",IF(přihlášky!C:C=\"Veteráni\",přihlášky!B:B,\" \"),\" \")","v":" "},null,null,null,null,null," "," "]
[{"$f":"IF(přihlášky!D:D=\"S\",IF(přihlášky!C:C=\"Veteráni\",přihlášky!A:A,\" \"),\" \")","v":"Hana Lukášová"},{"$f":"IF(přihlášky!D:D=\"S\",IF(přihlášky!C:C=\"Veteráni\",přihlášky!B:B,\" \"),\" \")","v":"Baby Maria Magdalensis / Jessie"},null,null,null,null,null,"Hana Lukášová","Baby Maria Magdalensis / Jessie"]
[{"$f":"IF(přihlášky!D:D=\"S\",IF(přihlášky!C:C=\"Veteráni\",přihlášky!A:A,\" \"),\" \")","v":" "},{"$f":"IF(přihlášky!D:D=\"S\",IF(přihlášky!C:C=\"Veteráni\",přihlášky!B:B,\" \"),\" \")","v":" "},null,null,null,null,null," "," "]
[{"$f":"IF(přihlášky!D:D=\"S\",IF(přihlášky!C:C=\"Veteráni\",přihlášky!A:A,\" \"),\" \")","v":"Klára Velíková"},{"$f":"IF(přihlášky!D:D=\"S\",IF(přihlášky!C:C=\"Veteráni\",přihlášky!B:B,\" \"),\" \")","v":"Jessie"},null,null,null,null,null,"Klára Velíková","Jessie"]
[{"$f":"IF(přihlášky!D:D=\"S\",IF(přihlášky!C:C=\"Veteráni\",přihlášky!A:A,\" \"),\" \")","v":" "},{"$f":"IF(přihlášky!D:D=\"S\",IF(přihlášky!C:C=\"Veteráni\",přihlášky!B:B,\" \"),\" \")","v":" "},null,null,null,null,null," "," "]
[{"$f":"IF(přihlášky!D:D=\"S\",IF(přihlášky!C:C=\"Veteráni\",přihlášky!A:A,\" \"),\" \")","v":" "},{"$f":"IF(přihlášky!D:D=\"S\",IF(přihlášky!C:C=\"Veteráni\",přihlášky!B:B,\" \"),\" \")","v":" "},null,null,null,null,null," "," "]
[{"$f":"IF(přihlášky!D:D=\"S\",IF(přihlášky!C:C=\"Veteráni\",přihlášky!A:A,\" \"),\" \")","v":" "},{"$f":"IF(přihlášky!D:D=\"S\",IF(přihlášky!C:C=\"Veteráni\",přihlášky!B:B,\" \"),\" \")","v":" "},null,null,null,null,null," "," "]
[{"$f":"IF(přihlášky!D:D=\"S\",IF(přihlášky!C:C=\"Veteráni\",přihlášky!A:A,\" \"),\" \")","v":" "},{"$f":"IF(přihlášky!D:D=\"S\",IF(přihlášky!C:C=\"Veteráni\",přihlášky!B:B,\" \"),\" \")","v":" "},null,null,null,null,null," "," "]
[{"$f":"IF(přihlášky!D:D=\"S\",IF(přihlášky!C:C=\"Veteráni\",přihlášky!A:A,\" \"),\" \")","v":" "},{"$f":"IF(přihlášky!D:D=\"S\",IF(přihlášky!C:C=\"Veteráni\",přihlášky!B:B,\" \"),\" \")","v":" "},null,null,null,null,null," "," "]
[{"$f":"IF(přihlášky!D:D=\"S\",IF(přihlášky!C:C=\"Veteráni\",přihlášky!A:A,\" \"),\" \")","v":" "},{"$f":"IF(přihlášky!D:D=\"S\",IF(přihlášky!C:C=\"Veteráni\",přihlášky!B:B,\" \"),\" \")","v":" "},null,null,null,null,null," "," "]
[{"$f":"IF(přihlášky!D:D=\"S\",IF(přihlášky!C:C=\"Veteráni\",přihlášky!A:A,\" \"),\" \")","v":"Ilona Pánková"},{"$f":"IF(přihlášky!D:D=\"S\",IF(přihlášky!C:C=\"Veteráni\",přihlášky!B:B,\" \"),\" \")","v":"Čiky (fena)"},null,null,null,null,null,"Ilona Pánková","Čiky (fena)"]
[{"$f":"IF(přihlášky!D:D=\"S\",IF(přihlášky!C:C=\"Veteráni\",přihlášky!A:A,\" \"),\" \")","v":" "},{"$f":"IF(přihlášky!D:D=\"S\",IF(přihlášky!C:C=\"Veteráni\",přihlášky!B:B,\" \"),\" \")","v":" "},null,null,null,null,null," "," "]

{"sheet":"List3","index":10,"n_rows":36,"n_cols":15,"rows_kept":36,"cut":false,"hidden":false,"merged":[]}
["Jméno","Pes","Čas","Chyby, odmítnutí","DISK"]
[{"$f":"IF(přihlášky!D:D=\"L\",přihlášky!A:A,0),IF(přihlášky!C:C=\"Veteráni\",přihlášky!A:A,0)","v":{"$error":"#VALUE!"}},{"$f":"IF(přihlášky!C:C=\"Začátečníci\",přihlášky!A:A,0)","v":0},null,null,null,null,{"$f":"IF(přihlášky!D:D=\"L\",přihlášky!A:A,IF(přihlášky!C:C=\"Začátečníci\",přihlášky!A:A,0))","v":0},null,null,null,null,null,null,null,{"$f":"IF(přihlášky!D:D=\"L\",IF(přihlášky!C:C=\"Začátečníci\",přihlášky!A:A,0),0)","v":0}]
[{"$f":"IF(přihlášky!D:D=\"L\",přihlášky!A:A,0)","v":0},{"$f":"IF(přihlášky!C:C=\"Začátečníci\",přihlášky!A:A,0)","v":0},null,null,null,null,{"$f":"IF(přihlášky!D:D=\"L\",přihlášky!A:A,IF(přihlášky!C:C=\"Začátečníci\",přihlášky!A:A,0))","v":0},"Z ",null,null,null,null,null,null,{"$f":"IF(přihlášky!D:D=\"L\",IF(přihlášky!C:C=\"Začátečníci\",přihlášky!A:A,0),0)","v":0}]
[{"$f":"IF(přihlášky!D:D=\"L\",přihlášky!A:A,0)","v":0},{"$f":"IF(přihlášky!C:C=\"Začátečníci\",přihlášky!A:A,0)","v":"Lucie Trojanová"},null,null,null,null,{"$f":"IF(přihlášky!D:D=\"L\",přihlášky!A:A,IF(přihlášky!C:C=\"Začátečníci\",přihlášky!A:A,0))","v":"Lucie Trojanová"},null,null,null,null,null,null,null,{"$f":"IF(přihlášky!D:D=\"L\",IF(přihlášky!C:C=\"Začátečníci\",přihlášky!A:A,0),0)","v":0}]
[{"$f":"IF(přihlášky!D:D=\"L\",přihlášky!A:A,0)","v":"Pavla Eliášová"},{"$f":"IF(přihlášky!C:C=\"Začátečníci\",přihlášky!A:A,0)","v":"Pavla Eliášová"},null,null,null,null,{"$f":"IF(přihlášky!D:D=\"L\",přihlášky!A:A,IF(přihlášky!C:C=\"Začátečníci\",přihlášky!A:A,0))","v":"Pavla Eliášová"},null,null,null,null,null,null,null,{"$f":"IF(přihlášky!D:D=\"L\",IF(přihlášky!C:C=\"Začátečníci\",přihlášky!A:A,0),0)","v":"Pavla Eliášová"}]
[{"$f":"IF(přihlášky!D:D=\"L\",přihlášky!A:A,0)","v":"Plačková Zuzana"},{"$f":"IF(přihlášky!C:C=\"Začátečníci\",přihlášky!A:A,0)","v":"Plačková Zuzana"},null,null,null,null,{"$f":"IF(přihlášky!D:D=\"L\",přihlášky!A:A,IF(přihlášky!C:C=\"Začátečníci\",přihlášky!A:A,0))","v":"Plačková Zuzana"},null,null,null,null,null,null,null,{"$f":"IF(přihlášky!D:D=\"L\",IF(přihlášky!C:C=\"Začátečníci\",přihlášky!A:A,0),0)","v":"Plačková Zuzana"}]
[{"$f":"IF(přihlášky!D:D=\"L\",přihlášky!A:A,0)","v":"Lucie Bohuslavová"},{"$f":"IF(přihlášky!C:C=\"Začátečníci\",přihlášky!A:A,0)","v":"Lucie Bohuslavová"},null,null,null,null,{"$f":"IF(přihlášky!D:D=\"L\",přihlášky!A:A,IF(přihlášky!C:C=\"Začátečníci\",přihlášky!A:A,0))","v":"Lucie Bohuslavová"},null,null,null,null,null,null,null,{"$f":"IF(přihlášky!D:D=\"L\",IF(přihlášky!C:C=\"Začátečníci\",přihlášky!A:A,0),0)","v":"Lucie Bohuslavová"}]
[{"$f":"IF(přihlášky!D:D=\"L\",přihlášky!A:A,0)","v":0},{"$f":"IF(přihlášky!C:C=\"Začátečníci\",přihlášky!A:A,0)","v":0},null,null,null,null,{"$f":"IF(přihlášky!D:D=\"L\",přihlášky!A:A,IF(přihlášky!C:C=\"Začátečníci\",přihlášky!A:A,0))","v":0},null,null,null,null,null,null,null,{"$f":"IF(přihlášky!D:D=\"L\",IF(přihlášky!C:C=\"Začátečníci\",přihlášky!A:A,0),0)","v":0}]
[{"$f":"IF(přihlášky!D:D=\"L\",přihlášky!A:A,0)","v":0},{"$f":"IF(přihlášky!C:C=\"Začátečníci\",přihlášky!A:A,0)","v":0},null,null,null,null,{"$f":"IF(přihlášky!D:D=\"L\",přihlášky!A:A,IF(přihlášky!C:C=\"Začátečníci\",přihlášky!A:A,0))","v":0},"PL",null,null,null,null,null,null,{"$f":"IF(přihlášky!D:D=\"L\",IF(přihlášky!C:C=\"Začátečníci\",přihlášky!A:A,0),0)","v":0}]
[{"$f":"IF(přihlášky!D:D=\"L\",přihlášky!A:A,0)","v":"Antonín Motyčka"},{"$f":"IF(přihlášky!C:C=\"Začátečníci\",přihlášky!A:A,0)","v":0},null,null,null,null,{"$f":"IF(přihlášky!D:D=\"L\",přihlášky!A:A,IF(přihlášky!C:C=\"Začátečníci\",přihlášky!A:A,0))","v":"Antonín Motyčka"},null,null,null,null,null,null,null,{"$f":"IF(přihlášky!D:D=\"L\",IF(přihlášky!C:C=\"Začátečníci\",přihlášky!A:A,0),0)","v":0}]
[{"$f":"IF(přihlášky!D:D=\"L\",přihlášky!A:A,0)","v":"Karolína Korejzova"},{"$f":"IF(přihlášky!C:C=\"Začátečníci\",přihlášky!A:A,0)","v":"Karolína Korejzova"},null,null,null,null,{"$f":"IF(přihlášky!D:D=\"L\",přihlášky!A:A,IF(přihlášky!C:C=\"Začátečníci\",přihlášky!A:A,0))","v":"Karolína Korejzova"},null,null,null,null,null,null,null,{"$f":"IF(přihlášky!D:D=\"L\",IF(přihlášky!C:C=\"Začátečníci\",přihlášky!A:A,0),0)","v":"Karolína Korejzova"}]
[{"$f":"IF(přihlášky!D:D=\"L\",přihlášky!A:A,0)","v":"Markéta Dvořáková"},{"$f":"IF(přihlášky!C:C=\"Začátečníci\",přihlášky!A:A,0)","v":"Markéta Dvořáková"},null,null,null,null,{"$f":"IF(přihlášky!D:D=\"L\",přihlášky!A:A,IF(přihlášky!C:C=\"Začátečníci\",přihlášky!A:A,0))","v":"Markéta Dvořáková"},null,null,null,null,null,null,null,{"$f":"IF(přihlášky!D:D=\"L\",IF(přihlášky!C:C=\"Začátečníci\",přihlášky!A:A,0),0)","v":"Markéta Dvořáková"}]
[{"$f":"IF(přihlášky!D:D=\"L\",přihlášky!A:A,0)","v":0},{"$f":"IF(přihlášky!C:C=\"Začátečníci\",přihlášky!A:A,0)","v":0},null,null,null,null,{"$f":"IF(přihlášky!D:D=\"L\",přihlášky!A:A,IF(přihlášky!C:C=\"Začátečníci\",přihlášky!A:A,0))","v":0},null,null,null,null,null,null,null,{"$f":"IF(přihlášky!D:D=\"L\",IF(přihlášky!C:C=\"Začátečníci\",přihlášky!A:A,0),0)","v":0}]
[{"$f":"IF(přihlášky!D:D=\"L\",přihlášky!A:A,0)","v":"Antonín Motyčka"},{"$f":"IF(přihlášky!C:C=\"Začátečníci\",přihlášky!A:A,0)","v":"Antonín Motyčka"},null,null,null,null,{"$f":"IF(přihlášky!D:D=\"L\",přihlášky!A:A,IF(přihlášky!C:C=\"Začátečníci\",přihlášky!A:A,0))","v":"Antonín Motyčka"},null,null,null,null,null,null,null,{"$f":"IF(přihlášky!D:D=\"L\",IF(přihlášky!C:C=\"Začátečníci\",přihlášky!A:A,0),0)","v":"Antonín Motyčka"}]
[{"$f":"IF(přihlášky!D:D=\"L\",přihlášky!A:A,0)","v":"Evelína Dobešová"},{"$f":"IF(přihlášky!C:C=\"Začátečníci\",přihlášky!A:A,0)","v":"Evelína Dobešová"},null,null,null,null,{"$f":"IF(přihlášky!D:D=\"L\",přihlášky!A:A,IF(přihlášky!C:C=\"Začátečníci\",přihlášky!A:A,0))","v":"Evelína Dobešová"},"Z",null,null,null,null,null,null,{"$f":"IF(přihlášky!D:D=\"L\",IF(přihlášky!C:C=\"Začátečníci\",přihlášky!A:A,0),0)","v":"Evelína Dobešová"}]
[{"$f":"IF(přihlášky!D:D=\"L\",přihlášky!A:A,0)","v":0},{"$f":"IF(přihlášky!C:C=\"Začátečníci\",přihlášky!A:A,0)","v":"Jana Šaková"},null,null,null,null,{"$f":"IF(přihlášky!D:D=\"L\",přihlášky!A:A,IF(přihlášky!C:C=\"Začátečníci\",přihlášky!A:A,0))","v":"Jana Šaková"},null,null,null,null,null,null,null,{"$f":"IF(přihlášky!D:D=\"L\",IF(přihlášky!C:C=\"Začátečníci\",přihlášky!A:A,0),0)","v":0}]
[{"$f":"IF(přihlášky!D:D=\"L\",přihlášky!A:A,0)","v":0},{"$f":"IF(přihlášky!C:C=\"Začátečníci\",přihlášky!A:A,0)","v":0},null,null,null,null,{"$f":"IF(přihlášky!D:D=\"L\",přihlášky!A:A,IF(přihlášky!C:C=\"Začátečníci\",přihlášky!A:A,0))","v":0},null,null,null,null,null,null,null,{"$f":"IF(přihlášky!D:D=\"L\",IF(přihlášky!C:C=\"Začátečníci\",přihlášky!A:A,0),0)","v":0}]
[{"$f":"IF(přihlášky!D:D=\"L\",přihlášky!A:A,0)","v":"Denisa Pšeničková"},{"$f":"IF(přihlášky!C:C=\"Začátečníci\",přihlášky!A:A,0)","v":"Denisa Pšeničková"},null,null,null,null,{"$f":"IF(přihlášky!D:D=\"L\",přihlášky!A:A,IF(přihlášky!C:C=\"Začátečníci\",přihlášky!A:A,0))","v":"Denisa Pšeničková"},null,null,null,null,null,null,null,{"$f":"IF(přihlášky!D:D=\"L\",IF(přihlášky!C:C=\"Začátečníci\",přihlášky!A:A,0),0)","v":"Denisa Pšeničková"}]
[{"$f":"IF(přihlášky!D:D=\"L\",přihlášky!A:A,0)","v":"Zuzana Lochmanová"},{"$f":"IF(přihlášky!C:C=\"Začátečníci\",přihlášky!A:A,0)","v":0},null,null,null,null,{"$f":"IF(přihlášky!D:D=\"L\",přihlášky!A:A,IF(přihlášky!C:C=\"Začátečníci\",přihlášky!A:A,0))","v":"Zuzana Lochmanová"},"Z",null,null,null,null,null,null,{"$f":"IF(přihlášky!D:D=\"L\",IF(přihlášky!C:C=\"Začátečníci\",přihlášky!A:A,0),0)","v":0}]
[{"$f":"IF(přihlášky!D:D=\"L\",přihlášky!A:A,0)","v":0},{"$f":"IF(přihlášky!C:C=\"Začátečníci\",přihlášky!A:A,0)","v":"Petra Kořánová"},null,null,null,null,{"$f":"IF(přihlášky!D:D=\"L\",přihlášky!A:A,IF(přihlášky!C:C=\"Začátečníci\",přihlášky!A:A,0))","v":"Petra Kořánová"},"Z",null,null,null,null,null,null,{"$f":"IF(přihlášky!D:D=\"L\",IF(přihlášky!C:C=\"Začátečníci\",přihlášky!A:A,0),0)","v":0}]
[{"$f":"IF(přihlášky!D:D=\"L\",přihlášky!A:A,0)","v":0},{"$f":"IF(přihlášky!C:C=\"Začátečníci\",přihlášky!A:A,0)","v":"Nikol Hořejší"},null,null,null,null,{"$f":"IF(přihlášky!D:D=\"L\",přihlášky!A:A,IF(přihlášky!C:C=\"Začátečníci\",přihlášky!A:A,0))","v":"Nikol Hořejší"},"PL",null,null,null,null,null,null,{"$f":"IF(přihlášky!D:D=\"L\",IF(přihlášky!C:C=\"Začátečníci\",přihlášky!A:A,0),0)","v":0}]
[{"$f":"IF(přihlášky!D:D=\"L\",přihlášky!A:A,0)","v":"Olga Cermáková"},{"$f":"IF(přihlášky!C:C=\"Začátečníci\",přihlášky!A:A,0)","v":0},null,null,null,null,{"$f":"IF(přihlášky!D:D=\"L\",přihlášky!A:A,IF(přihlášky!C:C=\"Začátečníci\",přihlášky!A:A,0))","v":"Olga Cermáková"},"PL",null,null,null,null,null,null,{"$f":"IF(přihlášky!D:D=\"L\",IF(přihlášky!C:C=\"Začátečníci\",přihlášky!A:A,0),0)","v":0}]
[{"$f":"IF(přihlášky!D:D=\"L\",přihlášky!A:A,0)","v":"Alena Köhlerová"},{"$f":"IF(přihlášky!C:C=\"Začátečníci\",přihlášky!A:A,0)","v":0},null,null,null,null,{"$f":"IF(přihlášky!D:D=\"L\",přihlášky!A:A,IF(přihlášky!C:C=\"Začátečníci\",přihlášky!A:A,0))","v":"Alena Köhlerová"},"Z",null,null,null,null,null,null,{"$f":"IF(přihlášky!D:D=\"L\",IF(přihlášky!C:C=\"Začátečníci\",přihlášky!A:A,0),0)","v":0}]
[{"$f":"IF(přihlášky!D:D=\"L\",přihlášky!A:A,0)","v":0},{"$f":"IF(přihlášky!C:C=\"Začátečníci\",přihlášky!A:A,0)","v":"Diana Vyskočilová"},null,null,null,null,{"$f":"IF(přihlášky!D:D=\"L\",přihlášky!A:A,IF(přihlášky!C:C=\"Začátečníci\",přihlášky!A:A,0))","v":"Diana Vyskočilová"},null,null,null,null,null,null,null,{"$f":"IF(přihlášky!D:D=\"L\",IF(přihlášky!C:C=\"Začátečníci\",přihlášky!A:A,0),0)","v":0}]
[{"$f":"IF(přihlášky!D:D=\"L\",přihlášky!A:A,0)","v":0},{"$f":"IF(přihlášky!C:C=\"Začátečníci\",přihlášky!A:A,0)","v":0},null,null,null,null,{"$f":"IF(přihlášky!D:D=\"L\",přihlášky!A:A,IF(přihlášky!C:C=\"Začátečníci\",přihlášky!A:A,0))","v":0},null,null,null,null,null,null,null,{"$f":"IF(přihlášky!D:D=\"L\",IF(přihlášky!C:C=\"Začátečníci\",přihlášky!A:A,0),0)","v":0}]
[{"$f":"IF(přihlášky!D:D=\"L\",přihlášky!A:A,0)","v":"Alice Mládková"},{"$f":"IF(přihlášky!C:C=\"Začátečníci\",přihlášky!A:A,0)","v":0},null,null,null,null,{"$f":"IF(přihlášky!D:D=\"L\",přihlášky!A:A,IF(přihlášky!C:C=\"Začátečníci\",přihlášky!A:A,0))","v":"Alice Mládková"},null,null,null,null,null,null,null,{"$f":"IF(přihlášky!D:D=\"L\",IF(přihlášky!C:C=\"Začátečníci\",přihlášky!A:A,0),0)","v":0}]
[{"$f":"IF(přihlášky!D:D=\"L\",přihlášky!A:A,0)","v":"Alena Köhlerová"},{"$f":"IF(přihlášky!C:C=\"Začátečníci\",přihlášky!A:A,0)","v":0},null,null,null,null,{"$f":"IF(přihlášky!D:D=\"L\",přihlášky!A:A,IF(přihlášky!C:C=\"Začátečníci\",přihlášky!A:A,0))","v":"Alena Köhlerová"},null,null,null,null,null,null,null,{"$f":"IF(přihlášky!D:D=\"L\",IF(přihlášky!C:C=\"Začátečníci\",přihlášky!A:A,0),0)","v":0}]
[{"$f":"IF(přihlášky!D:D=\"L\",přihlášky!A:A,0)","v":0},{"$f":"IF(přihlášky!C:C=\"Začátečníci\",přihlášky!A:A,0)","v":0},null,null,null,null,{"$f":"IF(přihlášky!D:D=\"L\",přihlášky!A:A,IF(přihlášky!C:C=\"Začátečníci\",přihlášky!A:A,0))","v":0},null,null,null,null,null,null,null,{"$f":"IF(přihlášky!D:D=\"L\",IF(přihlášky!C:C=\"Začátečníci\",přihlášky!A:A,0),0)","v":0}]
[{"$f":"IF(přihlášky!D:D=\"L\",přihlášky!A:A,0)","v":"Mirka Perglová"},{"$f":"IF(přihlášky!C:C=\"Začátečníci\",přihlášky!A:A,0)","v":"Mirka Perglová"},null,null,null,null,{"$f":"IF(přihlášky!D:D=\"L\",přihlášky!A:A,IF(přihlášky!C:C=\"Začátečníci\",přihlášky!A:A,0))","v":"Mirka Perglová"},"ZS",null,null,null,null,null,null,{"$f":"IF(přihlášky!D:D=\"L\",IF(přihlášky!C:C=\"Začátečníci\",přihlášky!A:A,0),0)","v":"Mirka Perglová"}]
[{"$f":"IF(přihlášky!D:D=\"L\",přihlášky!A:A,0)","v":0},{"$f":"IF(přihlášky!C:C=\"Začátečníci\",přihlášky!A:A,0)","v":"Radka Klosová"},null,null,null,null,{"$f":"IF(přihlášky!D:D=\"L\",přihlášky!A:A,IF(přihlášky!C:C=\"Začátečníci\",přihlášky!A:A,0))","v":"Radka Klosová"},null,null,null,null,null,null,null,{"$f":"IF(přihlášky!D:D=\"L\",IF(přihlášky!C:C=\"Začátečníci\",přihlášky!A:A,0),0)","v":0}]
[]
["KDYŽ(přihlášky!D:D=\"L\";přihlášky!A:A;0)",null,null,null,null,null,null,null,null,null,null,null,null,null,"KDYŽ(přihlášky!D:D=\"L\";KDYŽ(přihlášky!C:C=\"Začátečníci\";přihlášky!A:A;0);0)"]
["Vyfiltruje velikost L",null,null,null,null,null,null,null,null,null,null,null,null,null,"Vyfiltruje pouze kategorii začátečníci a velikost L"]
[null,"KDYŽ(přihlášky!C:C=\"Začátečníci\";přihlášky!A:A;0)"]
[null,"Vyfiltruje kategorii Začátečníci",null,null,null,null,"KDYŽ(přihlášky!D:D=\"L\";přihlášky!A:A;KDYŽ(přihlášky!C:C=\"Začátečníci\";přihlášky!A:A;0))"]
[null,null,null,null,null,null,"Vyfiltruje začátečníky i L dohromady bez ohledu na další velikosti nebo kategorie"]

{"sheet":"List1","index":11,"n_rows":4,"n_cols":2,"rows_kept":4,"cut":false,"hidden":false,"merged":[]}
[null,"https://pc-help.cnews.cz/viewtopic.php?t=105537"]
[]
[]
[null,"https://exceltown.com/navody/power-bi/power-query/jak-z-tabulky-automaticky-vykopirovat-urcita-data/"]